DEPARTMENT,NOMINAL,TYPE OF EXPENDITURE,DESCRIPTION,PERIOD,YEARCODE,VALUE,ECFRS Ref,INVOICE DATE,DOCUMENT TYPE,SUPPLIER,Type
Purchases,B207,Stocks & WIP (Fleet Stores),VARIOUS,12,2018,107.00,401,28/02/2018,TMEX,CONCEPT ENGINEERING LTD,
Purchases,B207,Stocks & WIP (Fleet Stores),VARIOUS,12,2018,60.14,402,21/02/2018,TMEX,SOUTH ESSEX FASTENERS LTD,
Purchases,B207,Stocks & WIP (Fleet Stores),VARIOUS,12,2018,495.51,403,22/02/2018,TMEX,ATS EUROMASTER LIMITED,
Purchases,B207,Stocks & WIP (Fleet Stores),SEE TMEX 405,12,2018,2177.25,404,28/12/2017,TMEX,ATS EUROMASTER LIMITED,
Purchases,B207,Stocks & WIP (Fleet Stores),RE TMEX 404,12,2018,-2225.23,405,26/02/2018,TMEX,ATS EUROMASTER LIMITED,
Purchases,B207,Stocks & WIP (Fleet Stores),RE TMEX 407,12,2018,-946.27,406,26/02/2018,TMEX,ATS EUROMASTER LIMITED,
Purchases,B207,Stocks & WIP (Fleet Stores),SEE TMEX 406,12,2018,946.27,407,31/01/2018,TMEX,ATS EUROMASTER LIMITED,
Technical Services,2085,Breathing Apparatus,TEST & PAINT,12,2018,75.00,408,20/02/2018,TMEX,CYLINDER TESTING & SALES UK LTD,
Technical Services,2085,Breathing Apparatus,TEST & SERVICE,12,2018,696.00,409,20/02/2018,TMEX,CYLINDER TESTING & SALES UK LTD,
Purchases,B207,Stocks & WIP (Fleet Stores),VARIOUS,12,2018,270.87,410,28/02/2018,TMEX,MOTOR PARTS DIRECT,
Purchases,B207,Stocks & WIP (Fleet Stores),VARIOUS,12,2018,-175.82,411,01/03/2018,TMEX,MOTOR PARTS DIRECT,
Purchases,B207,Stocks & WIP (Fleet Stores),VARIOUS,12,2018,260.85,412,28/02/2018,TMEX,GODIVA LTD,
Purchases,B207,Stocks & WIP (Fleet Stores),TMEX 384 POSTED AS INV,12,2018,-29.87,413,22/01/2018,TMEX,TRUCKEAST LTD,
Purchases,B207,Stocks & WIP (Fleet Stores),TMEX 384 POSTED AS INV,12,2018,-29.87,414,22/01/2018,TMEX,TRUCKEAST LTD,
Purchases,B207,Stocks & WIP (Fleet Stores),VARIOUS ITEMS TMPI 6391,12,2018,299.99,415,08/03/2018,TMEX,JOHN GROSE GROUP LTD,
Workshop Engineering,2071,Calibration of Equipment,VARIOUS ITEMS TMPI 6393,12,2018,664.08,416,23/02/2018,TMEX,GEMCO EQUIPMENT LTD,
Purchases,B207,Stocks & WIP (Fleet Stores),VARIOUS ITEMS TMPI 6397,12,2018,329.99,417,06/03/2018,TMEX,UNDERWOODS GARAGE (TIPTREE) LTD,
Purchases,B207,Stocks & WIP (Fleet Stores),VARIOUS,12,2018,84.39,418,15/03/2018,TMEX,MOTOR PARTS DIRECT,
Purchases,B207,Stocks & WIP (Fleet Stores),VARIOUS,12,2018,75.91,419,14/03/2018,TMEX,JOHN GROSE GROUP LTD,
Workshops Management,3201,Petrol and Diesel,Petrol and Diesel,12,2018,167.76,420,14/03/2018,TMEX,MOTOR PARTS DIRECT,
Purchases,B207,Stocks & WIP (Fleet Stores),VARIOUS,12,2018,81.37,421,14/03/2018,TMEX,TRUCKEAST LTD,
Purchases,B207,Stocks & WIP (Fleet Stores),VARIOUS,12,2018,359.71,422,14/03/2018,TMEX,TRUCKEAST LTD,
Purchases,B207,Stocks & WIP (Fleet Stores),VARIOUS,12,2018,125.23,423,13/03/2018,TMEX,JOHN GROSE GROUP LTD,
Purchases,B207,Stocks & WIP (Fleet Stores),VARIOUS,12,2018,332.82,424,09/03/2018,TMEX,JOHN GROSE GROUP LTD,
Purchases,B207,Stocks & WIP (Fleet Stores),VARIOUS,12,2018,7.58,425,16/03/2018,TMEX,JOHN GROSE GROUP LTD,
Purchases,B207,Stocks & WIP (Fleet Stores),VARIOUS,12,2018,157.85,426,09/03/2018,TMEX,TRUCKEAST LTD,
Purchases,B207,Stocks & WIP (Fleet Stores),VARIOUS,12,2018,90.28,427,15/03/2018,TMEX,GODIVA LTD,
Purchases,B207,Stocks & WIP (Fleet Stores),VARIOUS,12,2018,5.75,428,28/02/2018,TMEX,TRUCKEAST LTD,
Purchases,B207,Stocks & WIP (Fleet Stores),VARIOUS,12,2018,170.71,429,13/03/2018,TMEX,THE HEIGHTEC GROUP LTD,
Purchases,B207,Stocks & WIP (Fleet Stores),VARIOUS,12,2018,387.25,430,19/03/2018,TMEX,THE HEIGHTEC GROUP LTD,
Purchases,B207,Stocks & WIP (Fleet Stores),VARIOUS,12,2018,24.37,431,20/03/2018,TMEX,LOOKERS FORD,
Purchases,B207,Stocks & WIP (Fleet Stores),VARIOUS,12,2018,77.25,432,19/03/2018,TMEX,LOOKERS LANDROVER,
Purchases,B207,Stocks & WIP (Fleet Stores),VARIOUS,12,2018,650.42,433,07/03/2018,TMEX,ATS EUROMASTER LIMITED,
Purchases,B207,Stocks & WIP (Fleet Stores),VARIOUS,12,2018,935.64,434,07/03/2018,TMEX,ATS EUROMASTER LIMITED,
Purchases,B207,Stocks & WIP (Fleet Stores),VARIOUS,12,2018,219.07,435,15/03/2018,TMEX,ATS EUROMASTER LIMITED,
Purchases,B207,Stocks & WIP (Fleet Stores),VARIOUS,12,2018,366.70,436,23/03/2018,TMEX,LOOKERS LANDROVER,
Purchases,B207,Stocks & WIP (Fleet Stores),VARIOUS,12,2018,116.03,437,21/03/2018,TMEX,TRUCKEAST LTD,
Purchases,B207,Stocks & WIP (Fleet Stores),VARIOUS,12,2018,65.41,438,21/03/2018,TMEX,TRUCKEAST LTD,
Technical Services,2085,Breathing Apparatus,VARIOUS,12,2018,472.84,439,21/03/2018,TMEX,DRAEGER SAFETY UK LTD,
Purchases,B207,Stocks & WIP (Fleet Stores),VARIOUS,12,2018,1367.00,440,20/03/2018,TMEX,GODIVA LTD,
Purchases,B207,Stocks & WIP (Fleet Stores),VARIOUS,12,2018,37.21,441,20/03/2018,TMEX,R S COMPONENTS LTD,
Purchases,B207,Stocks & WIP (Fleet Stores),VARIOUS,12,2018,190.69,442,23/03/2018,TMEX,JOHN GROSE GROUP LTD,
Purchases,B207,Stocks & WIP (Fleet Stores),VARIOUS,12,2018,325.42,443,26/03/2018,TMEX,TRUCKEAST LTD,
ICT,4005,IT Consumables,SECURE 30 DATA ERASE,12,2018,598.00,1034,27/06/2017,KPIN,RICOH UK LIMITED (Northampton),
Catering,0180,Casual and Temporary Staff,Casual and Temporary Staff,12,2018,272.64,6067,08/11/2017,KPIN,FIRST CALL EMPLOYMENT LTD,
Catering,0180,Casual and Temporary Staff,Casual and Temporary Staff,12,2018,136.32,6067,08/11/2017,KPIN,FIRST CALL EMPLOYMENT LTD,
Catering,0180,Casual and Temporary Staff,Casual and Temporary Staff,12,2018,62.48,6067,08/11/2017,KPIN,FIRST CALL EMPLOYMENT LTD,
Catering,0180,Casual and Temporary Staff,Casual and Temporary Staff,12,2018,369.20,6067,08/11/2017,KPIN,FIRST CALL EMPLOYMENT LTD,
Catering,0180,Casual and Temporary Staff,Casual and Temporary Staff,12,2018,493.85,6067,08/11/2017,KPIN,FIRST CALL EMPLOYMENT LTD,
Catering,0180,Casual and Temporary Staff,Casual and Temporary Staff,12,2018,91.72,6067,08/11/2017,KPIN,FIRST CALL EMPLOYMENT LTD,
Workshop Engineering,3404,Vehicle Spares,BATTERY CHGD scania / sabre v,12,2018,649.62,6325,26/02/2018,TMPI,LINCON BATTERIES LTD,
Workshop Engineering,3404,Vehicle Spares,MAIN RECOIL SPRING,12,2018,17.56,6326,27/02/2018,TMPI,ERNEST DOE & SONS LTD,
Workshop Engineering,3404,Vehicle Spares,BOTTOM PULLEY - VW CRAFTER,12,2018,108.89,6327,28/02/2018,TMPI,MOTOR PARTS DIRECT,
Workshop Engineering,3404,Vehicle Spares,FUEL FILTER - EN12 LJX,12,2018,14.73,6328,28/02/2018,TMPI,MOTOR PARTS DIRECT,
Workshop Engineering,3404,Vehicle Spares,OXYGEN SIZE W,12,2018,7.10,6329,26/02/2018,TMPI,B O C LTD,
Workshop Engineering,3404,Vehicle Spares,PURESHIELD ARGON SIZE W,12,2018,21.30,6329,26/02/2018,TMPI,B O C LTD,
Workshop Engineering,3404,Vehicle Spares,DISSOLVED ACETYLENE SIZE D,12,2018,10.40,6329,26/02/2018,TMPI,B O C LTD,
Workshop Engineering,3404,Vehicle Spares,DISSOLVED ACETYLENE SIZE F,12,2018,34.00,6329,26/02/2018,TMPI,B O C LTD,
Workshop Engineering,3404,Vehicle Spares,DISSOLVED ACETYLENE SIZE M,12,2018,61.00,6329,26/02/2018,TMPI,B O C LTD,
Workshop Engineering,3404,Vehicle Spares,ARGOSHIELD UNIVERSAL SIZE W,12,2018,14.20,6329,26/02/2018,TMPI,B O C LTD,
Workshop Engineering,3404,Vehicle Spares,TRACKROD END,12,2018,24.72,6330,01/03/2018,TMPI,MOTOR PARTS DIRECT,
Workshop Engineering,3404,Vehicle Spares,BATTERY,12,2018,63.06,6331,01/03/2018,TMPI,MOTOR PARTS DIRECT,
Workshop Engineering,3404,Vehicle Spares,A/KEY DOMW HD SCREW,12,2018,9.80,6333,21/02/2018,TMPI,SOUTH ESSEX FASTENERS LTD,
Workshop Engineering,3404,Vehicle Spares,GASKET FUEL RAIL FIG 8,12,2018,12.90,6335,27/02/2018,TMPI,TRUCKEAST LTD,
Workshop Engineering,3404,Vehicle Spares,AD BLU - COMPLETE FILTER KIT,12,2018,66.94,6335,27/02/2018,TMPI,TRUCKEAST LTD,
Workshop Engineering,3404,Vehicle Spares,POLLEN FILTER -  ( 09 + ),12,2018,73.08,6335,27/02/2018,TMPI,TRUCKEAST LTD,
Workshop Engineering,3404,Vehicle Spares,DOOR HINGE COVER - OFFSIDE,12,2018,26.18,6335,27/02/2018,TMPI,TRUCKEAST LTD,
Workshop Engineering,3404,Vehicle Spares,FUEL RAIL DOWTY WASHER SEAL,12,2018,12.90,6335,27/02/2018,TMPI,TRUCKEAST LTD,
Workshop Engineering,3404,Vehicle Spares,DOOR HINGE COVER - NEARSIDE,12,2018,26.18,6335,27/02/2018,TMPI,TRUCKEAST LTD,
Workshop Engineering,3404,Vehicle Spares,LED LAMP,12,2018,23.59,6336,27/02/2018,TMPI,TRUCKEAST LTD,
Workshop Engineering,3404,Vehicle Spares,FUEL FILTER ( P SERIES ),12,2018,11.69,6336,27/02/2018,TMPI,TRUCKEAST LTD,
Workshop Engineering,3404,Vehicle Spares,DRIVERS SEAT CONTROL - 4 SERIS,12,2018,19.22,6337,02/03/2018,TMPI,TRUCKEAST LTD,
Workshop Engineering,3404,Vehicle Spares,N/S MIRROR COWL,12,2018,53.13,6338,02/03/2018,TMPI,TRUCKEAST LTD,
Workshop Engineering,3404,Vehicle Spares,PATTERN PLASTIC - ADAIN,12,2018,71.50,6339,26/02/2018,TMPI,PROJECT PLASTICS LIMITED,
Workshop Engineering,3404,Vehicle Spares,BRAKE FLUID LEVEL SENSOR - LOC,12,2018,26.00,6340,01/03/2018,TMPI,ORWELL TRUCKS LTD,
Workshop Engineering,3404,Vehicle Spares,BATTERY,12,2018,76.32,6341,01/03/2018,TMPI,MOTOR PARTS DIRECT,
Workshop Engineering,3404,Vehicle Spares,FUEL FILTER - EJ55 DXP,12,2018,4.90,6342,02/03/2018,TMPI,MOTOR PARTS DIRECT,
Workshop Engineering,3404,Vehicle Spares,STEAM CLEAN,12,2018,72.00,6343,28/02/2018,TMPI,W J SERVICES,
Workshop Engineering,3404,Vehicle Spares,STEAM CLEAN,12,2018,72.00,6343,28/02/2018,TMPI,W J SERVICES,
Workshop Engineering,3404,Vehicle Spares,STEAM CLEAN,12,2018,72.00,6343,28/02/2018,TMPI,W J SERVICES,
Workshop Engineering,3404,Vehicle Spares,STEAM CLEAN,12,2018,72.00,6343,28/02/2018,TMPI,W J SERVICES,
Workshop Engineering,3404,Vehicle Spares,STEAM CLEAN,12,2018,72.00,6343,28/02/2018,TMPI,W J SERVICES,
Workshop Engineering,3404,Vehicle Spares,LED MEGAFLASH MICROBAR-MAGNET,12,2018,996.15,6344,27/02/2018,TMPI,RSG ENGINEERING LTD,
Workshop Engineering,3404,Vehicle Spares,DUAL PURPOSE LED BLUE/WHITE DA,12,2018,430.75,6344,27/02/2018,TMPI,RSG ENGINEERING LTD,
Workshop Engineering,3404,Vehicle Spares,REAR CORNER BEADING -SS ;;;; F,12,2018,150.00,6345,28/02/2018,TMPI,ANGLOCO LTD,
Workshop Engineering,3404,Vehicle Spares,CARRIAGE CHARGE,12,2018,15.00,6345,28/02/2018,TMPI,ANGLOCO LTD,
Workshop Engineering,3404,Vehicle Spares,LED STRIP LIGHT - PUMP BAY - V,12,2018,46.19,6346,28/02/2018,TMPI,ANGLOCO LTD,
Workshop Engineering,3404,Vehicle Spares,CARRIAGE CHARGE,12,2018,15.00,6346,28/02/2018,TMPI,ANGLOCO LTD,
Workshop Engineering,3404,Vehicle Spares,MICH - 215/55/16,12,2018,176.92,6347,23/02/2018,TMPI,ATS EUROMASTER LIMITED,
Workshop Engineering,3404,Vehicle Spares,WHL BALANCE,12,2018,8.70,6347,23/02/2018,TMPI,ATS EUROMASTER LIMITED,
Workshop Engineering,3404,Vehicle Spares,SCRAP,12,2018,2.32,6347,23/02/2018,TMPI,ATS EUROMASTER LIMITED,
Workshop Engineering,3404,Vehicle Spares,TRK VALVE,12,2018,3.72,6347,23/02/2018,TMPI,ATS EUROMASTER LIMITED,
Workshop Engineering,3404,Vehicle Spares,FIT COP,12,2018,29.50,6349,22/02/2018,TMPI,ATS EUROMASTER LIMITED,
Workshop Engineering,3404,Vehicle Spares,WHL BALANCE,12,2018,5.97,6350,22/02/2018,TMPI,ATS EUROMASTER LIMITED,
Workshop Engineering,3404,Vehicle Spares,VALVE CAP,12,2018,1.50,6350,22/02/2018,TMPI,ATS EUROMASTER LIMITED,
Operations,4111,Subsistence Allowances,Subsistence Allowances,12,2018,100.38,6351,28/02/2018,TMPI,2468 GROUP,
Workshop Engineering,3404,Vehicle Spares,OIL - 5/20,12,2018,23.96,6352,02/03/2018,TMPI,JOHN GROSE GROUP LTD,
Workshop Engineering,3404,Vehicle Spares,OIL FILTER - FIESTA,12,2018,4.60,6353,02/03/2018,TMPI,JOHN GROSE GROUP LTD,
Workshop Engineering,3404,Vehicle Spares,POLLEN FILTER,12,2018,10.11,6353,02/03/2018,TMPI,JOHN GROSE GROUP LTD,
Workshop Engineering,3404,Vehicle Spares,BRAKE PAD - FRONT WITH SENSOR,12,2018,86.09,6354,01/03/2018,TMPI,LOOKERS COLCHESTER VOLVO,
Workshop Engineering,3404,Vehicle Spares,CARRIAGE CHARGE,12,2018,12.00,6355,23/01/2018,TMPI,GODIVA LTD,
Workshop Engineering,3404,Vehicle Spares,THERMAL RELIEF VALVE ASSY wsp,12,2018,176.67,6355,23/01/2018,TMPI,GODIVA LTD,
Workshop Engineering,3404,Vehicle Spares,CARRIAGE CHARGE,12,2018,-12.00,6356,02/03/2018,TMPI,GODIVA LTD,
Workshop Engineering,3404,Vehicle Spares,REAR PADS - CHOICE,12,2018,30.89,6357,22/02/2018,TMPI,MOTOR PARTS DIRECT,
Workshop Engineering,3404,Vehicle Spares,REAR PADS,12,2018,23.19,6357,22/02/2018,TMPI,MOTOR PARTS DIRECT,
Workshop Engineering,3404,Vehicle Spares,REAR PADS - CHOICE,12,2018,-30.89,6358,28/02/2018,TMPI,MOTOR PARTS DIRECT,
Workshop Engineering,3404,Vehicle Spares,VENTILATING VALVE KIT,12,2018,89.04,6359,05/03/2018,TMPI,TRUCKEAST LTD,
Workshop Engineering,3404,Vehicle Spares,BRAKE DISCS,12,2018,94.56,6360,01/03/2018,TMPI,MOTOR PARTS DIRECT,
Workshop Engineering,3404,Vehicle Spares,POLLEN FILTER,12,2018,9.33,6361,28/02/2018,TMPI,MOTOR PARTS DIRECT,
Workshop Engineering,3404,Vehicle Spares,"4"" CLEAN & STRIP DISCS",12,2018,20.70,6364,02/03/2018,TMPI,HALSTEAD REFINISHING SUPPLIES LTD,
Workshop Engineering,3404,Vehicle Spares,ENGINE OIL,12,2018,7.73,6366,05/03/2018,TMPI,MOTOR PARTS DIRECT,
Workshop Engineering,3404,Vehicle Spares,12 V HORN - EU09 PZS,12,2018,9.02,6367,05/03/2018,TMPI,MOTOR PARTS DIRECT,
Workshop Engineering,3404,Vehicle Spares,AMBER BULB,12,2018,1.95,6368,02/03/2018,TMPI,MOTOR PARTS DIRECT,
Workshop Engineering,3404,Vehicle Spares,REAR EXHAUST,12,2018,58.95,6369,01/03/2018,TMPI,MOTOR PARTS DIRECT,
Workshop Engineering,3404,Vehicle Spares,RECOVERY FROM MALDON FIRESTATI,12,2018,237.50,6370,02/03/2018,TMPI,D&G TRUCKS LIMITED,
Workshop Engineering,3404,Vehicle Spares,REAR EXHAUST SILENCER,12,2018,-41.64,6371,05/03/2018,TMPI,MOTOR PARTS DIRECT,
Workshop Engineering,3404,Vehicle Spares,ELECTRIC CAB TILT PUMP,12,2018,1295.40,6372,03/03/2018,TMPI,TRUCKEAST LTD,
Purchasing & Supply,1310,Cleaning products,CARRIAGE CHARGE,12,2018,53.00,6373,23/02/2018,TMPI,FIRSTCALL CORPORATION LTD,
Purchasing & Supply,1310,Cleaning products,PRESSURE WASHER - TFR    ( 205,12,2018,766.50,6373,23/02/2018,TMPI,FIRSTCALL CORPORATION LTD,
Workshop Engineering,3404,Vehicle Spares,INSPECTION WORK,12,2018,202.65,6374,05/03/2018,TMPI,ORWELL TRUCKS LTD,
Workshop Engineering,3404,Vehicle Spares,DOUBLE NON-REVERSALBE CONNECTO,12,2018,10.32,6375,05/03/2018,TMPI,MOTOR PARTS DIRECT,
Workshop Engineering,3404,Vehicle Spares,1 LTR PAINT PATTERN - GREY,12,2018,57.54,6376,03/03/2018,TMPI,HALSTEAD REFINISHING SUPPLIES LTD,
Workshops Management,B217,Payments in Advance,Q-PULSE LICENCE 010318-010319,12,2018,721.00,6377,23/02/2018,TMPI,IDEAGEN GAEL LTD,
Workshops Management,3320,Purchase of Machinery & Plant,Q PULSE ANNUAL LICENCE RENEWAL,12,2018,-721.00,6377,23/02/2018,TMPI,IDEAGEN GAEL LTD,
Workshops Management,3320,Purchase of Machinery & Plant,Q PULSE ANNUAL LICENCE RENEWAL,12,2018,721.00,6377,23/02/2018,TMPI,IDEAGEN GAEL LTD,
Workshop Engineering,3404,Vehicle Spares,SPARE PART,12,2018,84.11,6378,20/02/2018,TMPI,IPSWICH TPS,
Workshop Engineering,3404,Vehicle Spares,LOCKING PIN,12,2018,11.58,6378,20/02/2018,TMPI,IPSWICH TPS,
Workshop Engineering,3404,Vehicle Spares,SPARE PART,12,2018,-84.11,6379,27/02/2018,TMPI,IPSWICH TPS,
Workshop Engineering,3404,Vehicle Spares,LOCKING PIN,12,2018,-11.58,6379,27/02/2018,TMPI,IPSWICH TPS,
Workshop Engineering,3404,Vehicle Spares,STORAGE BOX,12,2018,104.08,6380,24/02/2018,TMPI,R S COMPONENTS LTD,
Workshop Engineering,3404,Vehicle Spares,CONNECTOR BUTT BLUE,12,2018,28.05,6381,22/02/2018,TMPI,R S COMPONENTS LTD,
Workshop Engineering,3404,Vehicle Spares,RED TAPE,12,2018,22.35,6381,22/02/2018,TMPI,R S COMPONENTS LTD,
Workshop Engineering,3404,Vehicle Spares,CONNECTOR BUTT RED,12,2018,26.07,6381,22/02/2018,TMPI,R S COMPONENTS LTD,
Workshop Engineering,3404,Vehicle Spares,C14 CABLE MOUNT,12,2018,26.70,6382,22/02/2018,TMPI,R S COMPONENTS LTD,
Workshop Engineering,3404,Vehicle Spares,CARRIAGE CHARGE,12,2018,12.00,6383,28/02/2018,TMPI,E RAND AND SONS LTD,
Workshop Engineering,3404,Vehicle Spares,ALISON RETARDER SWITCH,12,2018,169.43,6383,28/02/2018,TMPI,E RAND AND SONS LTD,
Purchasing & Supply,4001,Stationery,REPLACEMENT BESPOKE STAMP FOR,12,2018,17.80,6384,05/03/2018,TMPI,BANNER GROUP LIMITED,
Workshop Engineering,3404,Vehicle Spares,12MM HOT GLUE STICKS,12,2018,26.20,6385,01/03/2018,TMPI,R S COMPONENTS LTD,
Workshop Engineering,3404,Vehicle Spares,FERNOX DS-3 SCALE REMOVER 2KG,12,2018,18.29,6386,16/02/2018,TMPI,O S LOCKE LTD,
Operations,2401,Laundry,CLEAN RAG BAGS,12,2018,129.42,6387,23/02/2018,TMPI,BELMONT SERVICES,
Workshops Management,3320,Purchase of Machinery & Plant,SPRAYBOOTH CALL-OUT CHARGE,12,2018,125.00,6388,26/02/2018,TMPI,SPRAYBOOTH SERVICES (UK) LTD,
Workshops Management,3320,Purchase of Machinery & Plant,LABOUR - REMOVED FAN MOTOR,12,2018,45.00,6388,26/02/2018,TMPI,SPRAYBOOTH SERVICES (UK) LTD,
Workshop Engineering,3404,Vehicle Spares,FLEXY WIPER BLADES,12,2018,17.66,6389,08/03/2018,TMPI,MOTOR PARTS DIRECT,
Workshop Engineering,3404,Vehicle Spares,CARRIAGE,12,2018,12.00,6390,06/03/2018,TMPI,GODIVA LTD,
Workshop Engineering,3404,Vehicle Spares,"2 1/2""SDV AL N- SPRAYED RED",12,2018,236.69,6390,06/03/2018,TMPI,GODIVA LTD,
Workshop Engineering,3404,Vehicle Spares,SWITCH - EU59 GHF,12,2018,28.50,6392,08/03/2018,TMPI,TRUCKEAST LTD,
Workshop Engineering,3404,Vehicle Spares,12 AMP REGULATOR RECTIFIOR,12,2018,100.10,6394,27/02/2018,TMPI,FISCHER PANDA UK LIMITED,
Workshop Engineering,3404,Vehicle Spares,CARRIAGE CHARGE,12,2018,10.50,6394,27/02/2018,TMPI,FISCHER PANDA UK LIMITED,
Workshop Engineering,3404,Vehicle Spares,FEMALE CONECTOR FOR REGULATOR,12,2018,1.96,6394,27/02/2018,TMPI,FISCHER PANDA UK LIMITED,
Workshop Engineering,3404,Vehicle Spares,ELECTRICAL REAR BOOT SWITCH,12,2018,46.80,6395,07/03/2018,TMPI,UNDERWOODS OF COLCHESTER VAUXHALL,
Workshop Engineering,3404,Vehicle Spares,OIL FILTER,12,2018,4.85,6396,07/03/2018,TMPI,MOTOR PARTS DIRECT,
Workshop Engineering,3404,Vehicle Spares,CABIN FILTER,12,2018,7.10,6396,07/03/2018,TMPI,MOTOR PARTS DIRECT,
Workshop Engineering,3404,Vehicle Spares,FUEL FILTER,12,2018,10.53,6396,07/03/2018,TMPI,MOTOR PARTS DIRECT,
Workshop Engineering,3404,Vehicle Spares,TERMINAL EYE BLUE 6;40MM,12,2018,2.25,6398,07/03/2018,TMPI,MOTOR PARTS DIRECT,
Workshop Engineering,3404,Vehicle Spares,TERMINAL EYE BLUE 8MM,12,2018,2.25,6398,07/03/2018,TMPI,MOTOR PARTS DIRECT,
Workshop Engineering,3404,Vehicle Spares,TERM FEMALE YELLOW 10;00MM,12,2018,4.80,6398,07/03/2018,TMPI,MOTOR PARTS DIRECT,
Workshop Engineering,3404,Vehicle Spares,TERMINAL EYE 8;40MM  YELLOW (D,12,2018,13.20,6399,06/03/2018,TMPI,MOTOR PARTS DIRECT,
Workshop Engineering,3404,Vehicle Spares,TERMINAL EYE 4BA BLUE,12,2018,3.46,6399,06/03/2018,TMPI,MOTOR PARTS DIRECT,
Workshop Engineering,3404,Vehicle Spares,"TERMINAL EYE 3/16"" BLUE",12,2018,3.76,6399,06/03/2018,TMPI,MOTOR PARTS DIRECT,
Workshop Engineering,3404,Vehicle Spares,VEHICLE INSPECTION,12,2018,82.50,6400,28/02/2018,TMPI,RANSOME ENGINEERING SERVICES LTD,
Workshop Engineering,3404,Vehicle Spares,OXYGEN SIZE W,12,2018,6.88,6401,01/02/2018,TMPI,B O C LTD,
Workshop Engineering,3404,Vehicle Spares,PURESHIELD ARGON SIZE W,12,2018,20.64,6401,01/02/2018,TMPI,B O C LTD,
Workshop Engineering,3404,Vehicle Spares,DISSOLVED ACETYLENE SIZE D,12,2018,10.00,6401,01/02/2018,TMPI,B O C LTD,
Workshop Engineering,3404,Vehicle Spares,ARGOSHIELD UNIVERSAL SIZE W,12,2018,13.76,6401,01/02/2018,TMPI,B O C LTD,
Workshop Engineering,3404,Vehicle Spares,DISSOLVED ACETYLENE SIZE F,12,2018,32.70,6401,01/02/2018,TMPI,B O C LTD,
Workshop Engineering,3404,Vehicle Spares,TIMING BELT KIT - AK63 FTF--(A,12,2018,73.50,6402,07/03/2018,TMPI,LOOKERS COLCHESTER VOLVO,
Workshop Engineering,3404,Vehicle Spares,TENSIONER AUXILIARY BELT,12,2018,39.25,6402,07/03/2018,TMPI,LOOKERS COLCHESTER VOLVO,
Workshop Engineering,3404,Vehicle Spares,AUXILIARY DRIVE BELT,12,2018,18.53,6402,07/03/2018,TMPI,LOOKERS COLCHESTER VOLVO,
Workshop Engineering,3404,Vehicle Spares,SCREW,12,2018,1.02,6402,07/03/2018,TMPI,LOOKERS COLCHESTER VOLVO,
Workshop Engineering,3404,Vehicle Spares,OIL FILTER - AK63 FTF - (AMBUL,12,2018,6.97,6403,07/03/2018,TMPI,LOOKERS COLCHESTER VOLVO,
Workshop Engineering,3404,Vehicle Spares,POLLEN FILTER,12,2018,20.36,6403,07/03/2018,TMPI,LOOKERS COLCHESTER VOLVO,
Workshop Engineering,3404,Vehicle Spares,SUMP PLUG WASHER,12,2018,1.02,6403,07/03/2018,TMPI,LOOKERS COLCHESTER VOLVO,
Workshop Engineering,3404,Vehicle Spares,FUEL FILTER,12,2018,21.40,6403,07/03/2018,TMPI,LOOKERS COLCHESTER VOLVO,
Workshop Engineering,3404,Vehicle Spares,AIR FILTER,12,2018,13.50,6403,07/03/2018,TMPI,LOOKERS COLCHESTER VOLVO,
Workshop Engineering,3404,Vehicle Spares,ENGINE OIL - 5LTR,12,2018,33.72,6404,07/03/2018,TMPI,MOTOR PARTS DIRECT,
Workshop Engineering,3404,Vehicle Spares,ENGINE OIL - 1LTR,12,2018,8.63,6404,07/03/2018,TMPI,MOTOR PARTS DIRECT,
Workshop Engineering,3404,Vehicle Spares,R CLIPS - SCANIA AIR BAGS,12,2018,11.00,6405,06/03/2018,TMPI,CENTRAL TRUCK AND BUS PARTS LTD,
Workshop Engineering,3404,Vehicle Spares,SUN VISOR LAMPS - LH,12,2018,49.30,6406,06/03/2018,TMPI,TRUCKEAST LTD,
Workshop Engineering,3404,Vehicle Spares,SUN VISOR LAMPS - RH,12,2018,49.30,6406,06/03/2018,TMPI,TRUCKEAST LTD,
Workshop Engineering,3404,Vehicle Spares,NUT,12,2018,17.46,6407,07/03/2018,TMPI,TRUCKEAST LTD,
Workshop Engineering,3404,Vehicle Spares,DRAG LINK,12,2018,317.27,6407,07/03/2018,TMPI,TRUCKEAST LTD,
Workshop Engineering,3404,Vehicle Spares,SPLIT PIN,12,2018,1.36,6407,07/03/2018,TMPI,TRUCKEAST LTD,
Workshop Engineering,3404,Vehicle Spares,CARRIAGE CHARGE,12,2018,15.00,6408,07/03/2018,TMPI,JOHN DENNIS COACHBUILDERS LTD,
Workshop Engineering,3404,Vehicle Spares,6 WAY CONTROL PANEL - 999 ECOM,12,2018,264.00,6408,07/03/2018,TMPI,JOHN DENNIS COACHBUILDERS LTD,
Workshop Engineering,3404,Vehicle Spares,BELTS,12,2018,19.13,6409,07/03/2018,TMPI,GRASSHOPPER (HORTICULTURAL) LTD,
Workshop Engineering,3404,Vehicle Spares,OIL FILTER,12,2018,10.63,6409,07/03/2018,TMPI,GRASSHOPPER (HORTICULTURAL) LTD,
Workshop Engineering,3404,Vehicle Spares,BELT,12,2018,24.44,6409,07/03/2018,TMPI,GRASSHOPPER (HORTICULTURAL) LTD,
Workshop Engineering,3404,Vehicle Spares,SPARK PLUGS,12,2018,6.24,6409,07/03/2018,TMPI,GRASSHOPPER (HORTICULTURAL) LTD,
Workshop Engineering,3404,Vehicle Spares,FUEL FILTER,12,2018,7.16,6409,07/03/2018,TMPI,GRASSHOPPER (HORTICULTURAL) LTD,
Workshop Engineering,3404,Vehicle Spares,WATER HOSE - PUMP TO HOSE REEL,12,2018,37.40,6410,05/03/2018,TMPI,ANGLIA HOSE & HYDRAULICS LTD,
Workshop Engineering,3404,Vehicle Spares,ORANGE OPTICAL DIFF SWITCH DOO,12,2018,94.47,6411,08/03/2018,TMPI,JOHN DENNIS COACHBUILDERS LTD,
Workshop Engineering,3404,Vehicle Spares,CARRIAGE CHARGE,12,2018,15.00,6411,08/03/2018,TMPI,JOHN DENNIS COACHBUILDERS LTD,
Workshop Engineering,3404,Vehicle Spares,DOOR SEAL SMALL ( PUMP BAY ),12,2018,81.80,6411,08/03/2018,TMPI,JOHN DENNIS COACHBUILDERS LTD,
Workshop Engineering,3404,Vehicle Spares,MALE HOSE COUPLER,12,2018,207.10,6412,07/03/2018,TMPI,HOLMATRO UK LIMITED,
Workshop Engineering,3404,Vehicle Spares,CARBURETTOR,12,2018,174.80,6412,07/03/2018,TMPI,HOLMATRO UK LIMITED,
Workshop Engineering,3404,Vehicle Spares,LED LIGHT SET ( 1X PAIR ISSUED,12,2018,40.28,6412,07/03/2018,TMPI,HOLMATRO UK LIMITED,
Workshop Engineering,3404,Vehicle Spares,PRESSURE RELIEF TOOL / CORE HO,12,2018,101.46,6412,07/03/2018,TMPI,HOLMATRO UK LIMITED,
Workshop Engineering,3404,Vehicle Spares,CARRIAGE CHARGE,12,2018,15.00,6412,07/03/2018,TMPI,HOLMATRO UK LIMITED,
Workshop Engineering,3404,Vehicle Spares,BEARING,12,2018,50.00,6413,08/03/2018,TMPI,MOTOR PARTS DIRECT,
Workshop Engineering,3404,Vehicle Spares,WINDOW MOTOR - NEARSIDE,12,2018,105.00,6414,07/03/2018,TMPI,CENTRAL TRUCK AND BUS PARTS LTD,
Workshop Engineering,3404,Vehicle Spares,TYPE 24 WABCO DIAPHRAGM - SCAN,12,2018,201.00,6415,08/03/2018,TMPI,CENTRAL TRUCK AND BUS PARTS LTD,
Workshop Engineering,3404,Vehicle Spares,BRAKE CHAMBER REPAIR KIT- SCAN,12,2018,192.50,6415,08/03/2018,TMPI,CENTRAL TRUCK AND BUS PARTS LTD,
Workshops Management,3320,Purchase of Machinery & Plant,CUMMINS INSITE LITE RSGR - REN,12,2018,654.42,6416,06/03/2018,TMPI,CUMMINS UK,
Technical Services,2085,Breathing Apparatus,"Service, test and certifcation",12,2018,9462.00,6417,06/03/2018,TMPI,WEBER RESCUE UK LTD,
Technical Services,2085,Breathing Apparatus,Additional parts; hosetail pro,12,2018,9.10,6417,06/03/2018,TMPI,WEBER RESCUE UK LTD,
Technical Services,2085,Breathing Apparatus,Freight and Packaging,12,2018,23.10,6418,01/02/2018,TMPI,INTERSPIRO LTD,
Technical Services,2085,Breathing Apparatus,"S- Mask, standard size type B",12,2018,1364.72,6418,01/02/2018,TMPI,INTERSPIRO LTD,
Technical Services,2085,Breathing Apparatus,"Filter Adaptor, S Mask-J Adapt",12,2018,502.88,6418,01/02/2018,TMPI,INTERSPIRO LTD,
Technical Services,2085,Breathing Apparatus,Foam Insert,12,2018,80.30,6419,05/03/2018,TMPI,INTERSPIRO LTD,
Technical Services,2085,Breathing Apparatus,Freight and Packaging for foam,12,2018,10.00,6419,05/03/2018,TMPI,INTERSPIRO LTD,
Purchasing & Supply,4001,Stationery,BLUE FOOLSCAP SPRING FILE,12,2018,19.95,6420,09/03/2018,TMPI,BANNER GROUP LIMITED,
Purchasing & Supply,4001,Stationery,REINFORCED POCKETS,12,2018,55.36,6420,09/03/2018,TMPI,BANNER GROUP LIMITED,
Purchasing & Supply,4001,Stationery,PK 5 BLACK N RED BOOK,12,2018,17.65,6420,09/03/2018,TMPI,BANNER GROUP LIMITED,
Purchasing & Supply,4001,Stationery,SHORTHAND NOTEBOOK,12,2018,1.60,6420,09/03/2018,TMPI,BANNER GROUP LIMITED,
Technical Services,2085,Breathing Apparatus,Safe-Air Tester Serial No; 532,12,2018,285.00,6421,14/03/2018,TMPI,FACTAIR LTD,
Technical Services,2085,Breathing Apparatus,Replacement LCD,12,2018,80.00,6421,14/03/2018,TMPI,FACTAIR LTD,
Technical Services,2085,Breathing Apparatus,Carriage,12,2018,25.00,6421,14/03/2018,TMPI,FACTAIR LTD,
Technical Services,2085,Breathing Apparatus,1;5hours labour @ 42p/h to re,12,2018,63.00,6421,14/03/2018,TMPI,FACTAIR LTD,
Not Analysed,B113,Fixed Assets Under Construction Vehicles,MOBILE DIGITAL TYRE INFLATION,12,2018,18440.00,6422,13/03/2018,TMPI,PNEUMATIC COMPONENTS LTD,
Workshop Engineering,3404,Vehicle Spares,CIRCUIT BOARD MK3 DRAGON LAMP,12,2018,144.00,6423,27/02/2018,TMPI,CIVIL DEFENCE SUPPLY LTD,
Workshop Engineering,3404,Vehicle Spares,CARRIAGE CHARGE,12,2018,10.00,6423,27/02/2018,TMPI,CIVIL DEFENCE SUPPLY LTD,
Workshop Engineering,3404,Vehicle Spares,CARRIAGE,12,2018,15.00,6424,27/02/2018,TMPI,CLARK MASTS SYSTEMS LTD,
Workshop Engineering,3404,Vehicle Spares,INSPECT AND REPAIR DAMAGED HAN,12,2018,315.00,6424,27/02/2018,TMPI,CLARK MASTS SYSTEMS LTD,
Workshop Engineering,3404,Vehicle Spares,INTERACTOR FACTOR COVER,12,2018,33.48,6425,19/03/2018,TMPI,TRUCKEAST LTD,
Workshop Engineering,3404,Vehicle Spares,NIGHT LIGHT SWITCH,12,2018,28.50,6425,19/03/2018,TMPI,TRUCKEAST LTD,
Workshop Engineering,3404,Vehicle Spares,OIL FILTER - AV09 HGL,12,2018,4.27,6426,16/03/2018,TMPI,MOTOR PARTS DIRECT,
Workshop Engineering,3404,Vehicle Spares,OIL FILTER - EU11 AYB,12,2018,6.37,6427,16/03/2018,TMPI,MOTOR PARTS DIRECT,
Workshop Engineering,3404,Vehicle Spares,OIL FILTER - EU11 AYA,12,2018,6.37,6427,16/03/2018,TMPI,MOTOR PARTS DIRECT,
Workshop Engineering,3404,Vehicle Spares,FLOPPY WIPER BLADES - ASTRA,12,2018,19.70,6428,17/03/2018,TMPI,MOTOR PARTS DIRECT,
Workshop Engineering,3404,Vehicle Spares,RHINO LARGE GAITOR KIT,12,2018,8.80,6430,15/03/2018,TMPI,MOTOR PARTS DIRECT,
Workshop Engineering,3404,Vehicle Spares,LOLER,12,2018,211.00,6431,28/02/2018,TMPI,TIP-N-LIFT UK LIMITED,
Workshop Engineering,3404,Vehicle Spares,SLEEVE,12,2018,3.95,6432,15/03/2018,TMPI,TRUCKEAST LTD,
Workshop Engineering,3404,Vehicle Spares,BELL CRANK - EU09 OKK,12,2018,5.05,6432,15/03/2018,TMPI,TRUCKEAST LTD,
Workshop Engineering,3404,Vehicle Spares,LATCH CLAMP,12,2018,9.36,6432,15/03/2018,TMPI,TRUCKEAST LTD,
Workshop Engineering,3404,Vehicle Spares,BRAKE PAD FRONT 14 REG CONNECT,12,2018,69.30,6433,14/03/2018,TMPI,JOHN GROSE GROUP LTD,
Workshop Engineering,3404,Vehicle Spares,BLACK WAX OIL - 5 LTR ;;;;;;;,12,2018,26.68,6435,15/03/2018,TMPI,HALSTEAD REFINISHING SUPPLIES LTD,
Workshop Engineering,3404,Vehicle Spares,AEROSOL SCANIA RED ( 1366683 ),12,2018,27.00,6435,15/03/2018,TMPI,HALSTEAD REFINISHING SUPPLIES LTD,
Workshop Engineering,3404,Vehicle Spares,SHUTZ UNDERSEAL BODY - 5 LTR,12,2018,5.97,6435,15/03/2018,TMPI,HALSTEAD REFINISHING SUPPLIES LTD,
Workshop Engineering,3404,Vehicle Spares,CAB TILT STICKER,12,2018,7.31,6436,16/03/2018,TMPI,TRUCKEAST LTD,
Workshop Engineering,3404,Vehicle Spares,SPLIT PIN - RL-S,12,2018,39.00,6437,15/03/2018,TMPI,FIRE LADDERS LTD,
Workshop Engineering,3404,Vehicle Spares,NEARSIDE DROPLINK -- S526 VAM,12,2018,12.06,6438,16/03/2018,TMPI,MOTOR PARTS DIRECT,
Workshop Engineering,3404,Vehicle Spares,AIR FILTER,12,2018,7.50,6439,15/03/2018,TMPI,JOHN GROSE GROUP LTD,
Workshop Engineering,3404,Vehicle Spares,MASS AIR FLOW SENSOR,12,2018,175.00,6440,15/03/2018,TMPI,JOHN GROSE GROUP LTD,
Workshop Engineering,3404,Vehicle Spares,FRONT WIPER BLADE,12,2018,4.98,6441,15/03/2018,TMPI,MOTOR PARTS DIRECT,
Workshop Engineering,3404,Vehicle Spares,FRONT WIPER BLADE,12,2018,3.16,6441,15/03/2018,TMPI,MOTOR PARTS DIRECT,
Workshop Engineering,3404,Vehicle Spares,2 STROKE ENGINE OIL FOR EQUIPM,12,2018,7.82,6442,15/03/2018,TMPI,MOTOR PARTS DIRECT,
Workshop Engineering,3404,Vehicle Spares,CARRIAGE CHARGE TO BUREAU VERI,12,2018,13.27,6443,09/03/2018,TMPI,T N T UK LTD,
Workshop Engineering,3404,Vehicle Spares,BOX 1000GRIT ABROLON D;A DISCS,12,2018,60.26,6444,13/03/2018,TMPI,HALSTEAD REFINISHING SUPPLIES LTD,
Workshop Engineering,3404,Vehicle Spares,BOX D;A DISCS ABROLON 2000GRIT,12,2018,60.26,6444,13/03/2018,TMPI,HALSTEAD REFINISHING SUPPLIES LTD,
Workshop Engineering,3404,Vehicle Spares,TAPE MASKING 48mm,12,2018,26.00,6444,13/03/2018,TMPI,HALSTEAD REFINISHING SUPPLIES LTD,
Workshop Engineering,3404,Vehicle Spares,TAPE MASKING  24mm,12,2018,26.00,6444,13/03/2018,TMPI,HALSTEAD REFINISHING SUPPLIES LTD,
Purchasing & Supply,2303,Clothing & Footwear,TYVEK OVERALL XL,12,2018,11.70,6445,13/03/2018,TMPI,HALSTEAD REFINISHING SUPPLIES LTD,
Purchasing & Supply,2303,Clothing & Footwear,TYVEK OVERALL LARGE,12,2018,11.70,6445,13/03/2018,TMPI,HALSTEAD REFINISHING SUPPLIES LTD,
Workshop Engineering,3404,Vehicle Spares,MAST LAMP LPP HELLA,12,2018,54.20,6446,13/03/2018,TMPI,MOTOR PARTS DIRECT,
Workshop Engineering,3404,Vehicle Spares,CARRIAGE CHARGE,12,2018,7.50,6446,13/03/2018,TMPI,MOTOR PARTS DIRECT,
Workshop Engineering,3404,Vehicle Spares,DIPSTICK,12,2018,52.28,6449,14/03/2018,TMPI,TRUCKEAST LTD,
Workshop Engineering,3404,Vehicle Spares,WINDSCREEN REPAIR,12,2018,165.00,6451,07/03/2018,TMPI,THE WINDSCREEN COMPANY,
Workshop Engineering,3404,Vehicle Spares,WINDSCREEN REPAIR,12,2018,40.00,6452,12/03/2018,TMPI,THE WINDSCREEN COMPANY,
Workshop Engineering,3404,Vehicle Spares,BRONTO SPIRAX G 80W-90 LITRES,12,2018,28.08,6454,12/03/2018,TMPI,MOTOR PARTS DIRECT,
Workshop Engineering,3404,Vehicle Spares,LPP BATTERY - GP1600,12,2018,53.27,6455,13/03/2018,TMPI,MOTOR PARTS DIRECT,
Workshop Engineering,3404,Vehicle Spares,AIR DRYER FILTER,12,2018,119.94,6456,13/03/2018,TMPI,CENTRAL TRUCK AND BUS PARTS LTD,
Workshop Engineering,3404,Vehicle Spares,PRESSURE WASHER SERVICE,12,2018,204.68,6457,08/03/2018,TMPI,A1 PRESSURE WASHERS LTD,
Workshop Engineering,3404,Vehicle Spares,NEW RADIATOR - WX11 CDU AMBULA,12,2018,130.00,6458,13/03/2018,TMPI,COLCHESTER RADIATOR SPECIALISTS,
Workshop Engineering,3404,Vehicle Spares,HIGH TEMPERATURE GASKETaerosol,12,2018,22.50,6459,09/03/2018,TMPI,MOTOR PARTS DIRECT,
Workshop Engineering,3404,Vehicle Spares,UPOL MATT BLACK,12,2018,12.75,6459,09/03/2018,TMPI,MOTOR PARTS DIRECT,
Workshop Engineering,3404,Vehicle Spares,DISTILLED WATER 1 LITRE BOTTLE,12,2018,3.60,6459,09/03/2018,TMPI,MOTOR PARTS DIRECT,
Workshop Engineering,3404,Vehicle Spares,WATER DISTILLED   5 LITRE,12,2018,10.10,6459,09/03/2018,TMPI,MOTOR PARTS DIRECT,
Workshop Engineering,3404,Vehicle Spares,BULB 12V 21W SBC - LLB335,12,2018,5.40,6459,09/03/2018,TMPI,MOTOR PARTS DIRECT,
Workshop Engineering,3404,Vehicle Spares,12V 55W LLB477 H7,12,2018,24.70,6459,09/03/2018,TMPI,MOTOR PARTS DIRECT,
Workshop Engineering,3404,Vehicle Spares,FUEL FILTER,12,2018,68.51,6460,12/03/2018,TMPI,ORWELL TRUCKS LTD,
Workshop Engineering,3404,Vehicle Spares,POLLEN FILTER,12,2018,21.80,6460,12/03/2018,TMPI,ORWELL TRUCKS LTD,
Workshop Engineering,3404,Vehicle Spares,OIL FILTER - EU62 BBO,12,2018,12.14,6460,12/03/2018,TMPI,ORWELL TRUCKS LTD,
Workshop Engineering,3404,Vehicle Spares,AIR FILTER,12,2018,17.10,6460,12/03/2018,TMPI,ORWELL TRUCKS LTD,
Workshop Engineering,3404,Vehicle Spares,N/S/F FOG LAMP - - FM15 NXH,12,2018,109.69,6461,09/03/2018,TMPI,COOPER COLCHESTER,
Workshop Engineering,3404,Vehicle Spares,MICH - 235/65/16,12,2018,337.05,6462,01/03/2018,TMPI,ATS EUROMASTER LIMITED,
Workshop Engineering,3404,Vehicle Spares,SCRAP,12,2018,3.48,6462,01/03/2018,TMPI,ATS EUROMASTER LIMITED,
Workshop Engineering,3404,Vehicle Spares,TRK VALVE,12,2018,5.58,6462,01/03/2018,TMPI,ATS EUROMASTER LIMITED,
Workshop Engineering,3404,Vehicle Spares,WHL BALANCE,12,2018,13.05,6462,01/03/2018,TMPI,ATS EUROMASTER LIMITED,
Workshop Engineering,3404,Vehicle Spares,HP CAP,12,2018,0.62,6463,01/03/2018,TMPI,ATS EUROMASTER LIMITED,
Workshop Engineering,3404,Vehicle Spares,MICH - 275/70/22;5,12,2018,333.74,6463,01/03/2018,TMPI,ATS EUROMASTER LIMITED,
Workshop Engineering,3404,Vehicle Spares,MOT & TEST,12,2018,91.00,6464,23/02/2018,TMPI,TRUCKEAST LTD,
Workshop Engineering,3404,Vehicle Spares,LANE FEE,12,2018,55.00,6464,23/02/2018,TMPI,TRUCKEAST LTD,
Workshop Engineering,3404,Vehicle Spares,WINDSCREEN REPAIR,12,2018,80.00,6465,03/03/2018,TMPI,THE WINDSCREEN COMPANY,
Workshop Engineering,3404,Vehicle Spares,LADDER GANTRY RELEASE CYLINDER,12,2018,93.60,6466,08/03/2018,TMPI,JOHN DENNIS COACHBUILDERS LTD,
Workshop Engineering,3404,Vehicle Spares,REAR SEAT BELT - 10 PLATE ONWA,12,2018,109.20,6466,08/03/2018,TMPI,JOHN DENNIS COACHBUILDERS LTD,
Workshop Engineering,3404,Vehicle Spares,CARRIAGE CHARGE,12,2018,15.00,6466,08/03/2018,TMPI,JOHN DENNIS COACHBUILDERS LTD,
Workshop Engineering,3404,Vehicle Spares,CARRIAGE CHARGE,12,2018,12.00,6469,08/03/2018,TMPI,RSG ENGINEERING LTD,
Workshop Engineering,3404,Vehicle Spares,6 WAY MINI STEALTH,12,2018,195.45,6469,08/03/2018,TMPI,RSG ENGINEERING LTD,
Workshop Engineering,3404,Vehicle Spares,FUEL INLET METERING VALVE- (V1,12,2018,139.83,6471,13/03/2018,TMPI,TRUCKEAST LTD,
Workshop Engineering,3404,Vehicle Spares,DOOR LOCK BARREL OFFSIDE -- EU,12,2018,229.35,6472,09/03/2018,TMPI,TRUCKEAST LTD,
Workshop Engineering,3404,Vehicle Spares,MILWAUKEE -( AP 12 E) CONTACT,12,2018,13.82,6473,08/03/2018,TMPI,HALSTEAD REFINISHING SUPPLIES LTD,
Workshop Engineering,3404,Vehicle Spares,CAM BELT,12,2018,21.77,6474,08/03/2018,TMPI,IPSWICH TPS,
Workshop Engineering,3404,Vehicle Spares,FUEL FILTER - PINZ,12,2018,13.37,6474,08/03/2018,TMPI,IPSWICH TPS,
Workshop Engineering,3404,Vehicle Spares,CAM BELT TENSIONER,12,2018,62.32,6475,09/03/2018,TMPI,IPSWICH TPS,
Workshop Engineering,3404,Vehicle Spares,CAM BELT TENSIONER,12,2018,36.04,6475,09/03/2018,TMPI,IPSWICH TPS,
Workshop Engineering,3404,Vehicle Spares,CAMSHAFT BELT,12,2018,26.20,6475,09/03/2018,TMPI,IPSWICH TPS,
Workshop Engineering,3404,Vehicle Spares,CAM BELT TENSIONER,12,2018,30.84,6475,09/03/2018,TMPI,IPSWICH TPS,
Workshop Engineering,3404,Vehicle Spares,TREAD DEPTH GAUGE,12,2018,29.80,6476,08/03/2018,TMPI,MOTOR PARTS DIRECT,
Workshop Engineering,3404,Vehicle Spares,POLLEN FILTER,12,2018,7.10,6477,09/03/2018,TMPI,MOTOR PARTS DIRECT,
Workshop Engineering,3404,Vehicle Spares,FUEL FILTER,12,2018,10.53,6477,09/03/2018,TMPI,MOTOR PARTS DIRECT,
Workshop Engineering,3404,Vehicle Spares,OIL FILTER - EU10BGY,12,2018,5.79,6477,09/03/2018,TMPI,MOTOR PARTS DIRECT,
Workshop Engineering,3404,Vehicle Spares,REAR BRAKE PADS - TRANSIT CONN,12,2018,30.89,6478,09/03/2018,TMPI,MOTOR PARTS DIRECT,
Workshop Engineering,3404,Vehicle Spares,14 TWIN WIRE,12,2018,35.09,6479,08/03/2018,TMPI,CO-STAR COMPONENTS,
Workshop Engineering,3404,Vehicle Spares,CARRIAGE CHARGE,12,2018,8.85,6479,08/03/2018,TMPI,CO-STAR COMPONENTS,
Workshop Engineering,3404,Vehicle Spares,FLEECE HARNESS TAPE,12,2018,59.00,6479,08/03/2018,TMPI,CO-STAR COMPONENTS,
Workshop Engineering,3404,Vehicle Spares,SPLIT TUBING,12,2018,23.90,6480,08/03/2018,TMPI,MOTOR PARTS DIRECT,
Workshop Engineering,3404,Vehicle Spares,SLEEVING,12,2018,2.33,6480,08/03/2018,TMPI,MOTOR PARTS DIRECT,
Workshop Engineering,3404,Vehicle Spares,SLEEVING,12,2018,2.33,6480,08/03/2018,TMPI,MOTOR PARTS DIRECT,
Workshop Engineering,3404,Vehicle Spares,HEATSHRINK,12,2018,2.70,6480,08/03/2018,TMPI,MOTOR PARTS DIRECT,
Workshop Engineering,3404,Vehicle Spares,HEATSHRINK,12,2018,2.70,6480,08/03/2018,TMPI,MOTOR PARTS DIRECT,
Workshop Engineering,3404,Vehicle Spares,9 V BATTERY,12,2018,28.40,6481,09/03/2018,TMPI,R S COMPONENTS LTD,
Workshop Engineering,3404,Vehicle Spares,BLACK GAFFA TAPE,12,2018,24.96,6481,09/03/2018,TMPI,R S COMPONENTS LTD,
Workshop Engineering,3404,Vehicle Spares,Norton Zirconia Aluminium Medi,12,2018,8.65,6482,09/03/2018,TMPI,R S COMPONENTS LTD,
Workshop Engineering,3404,Vehicle Spares,CARRIAGE CHARGE,12,2018,4.95,6482,09/03/2018,TMPI,R S COMPONENTS LTD,
Workshop Engineering,3404,Vehicle Spares,SENSOR - REAR BRAKE PADS,12,2018,14.01,6484,21/02/2018,TMPI,COOPER COLCHESTER,
Workshop Engineering,3404,Vehicle Spares,RTN FOR CREDIT;;;; COOLANT LEV,12,2018,10.21,6484,21/02/2018,TMPI,COOPER COLCHESTER,
Workshop Engineering,3404,Vehicle Spares,COOLANT HEADER TANK,12,2018,79.31,6484,21/02/2018,TMPI,COOPER COLCHESTER,
Workshop Engineering,3404,Vehicle Spares,RTN FOR CREDIT ;;;; REAR BRAKE,12,2018,67.98,6484,21/02/2018,TMPI,COOPER COLCHESTER,
Workshop Engineering,3404,Vehicle Spares,REAR BRAKE PADS,12,2018,53.62,6485,05/03/2018,TMPI,COOPER COLCHESTER,
Workshop Engineering,3404,Vehicle Spares,SENSOR - REAR BRAKE PADS,12,2018,-14.01,6486,05/03/2018,TMPI,COOPER COLCHESTER,
Workshop Engineering,3404,Vehicle Spares,RTN FOR CREDIT ;;;; REAR BRAKE,12,2018,-67.98,6486,05/03/2018,TMPI,COOPER COLCHESTER,
Workshop Engineering,3404,Vehicle Spares,RTN FOR CREDIT;;;; COOLANT LEV,12,2018,-10.21,6486,05/03/2018,TMPI,COOPER COLCHESTER,
Workshop Engineering,3404,Vehicle Spares,"CLIP , BUMPER",12,2018,13.90,6487,13/03/2018,TMPI,GLYN HOPKIN LIMITED,
Workshop Engineering,3404,Vehicle Spares,CONNECT MIRRIR CASING,12,2018,19.89,6489,26/02/2018,TMPI,JOHN GROSE GROUP LTD,
Workshop Engineering,3404,Vehicle Spares,CONNECT MIRRIR CASING,12,2018,-19.89,6490,13/03/2018,TMPI,JOHN GROSE GROUP LTD,
Workshop Engineering,3404,Vehicle Spares,BRAKE PADS - FRONT,12,2018,70.36,6491,27/02/2018,TMPI,LOOKERS COLCHESTER VOLVO,
Workshop Engineering,3404,Vehicle Spares,BRAKE PADS - REAR,12,2018,33.46,6491,27/02/2018,TMPI,LOOKERS COLCHESTER VOLVO,
Workshop Engineering,3404,Vehicle Spares,BRAKE PADS - FRONT,12,2018,-70.36,6492,06/03/2018,TMPI,LOOKERS COLCHESTER VOLVO,
Workshop Engineering,3404,Vehicle Spares,BRAKE PADS - FRONT,12,2018,45.48,6493,01/03/2018,TMPI,LOOKERS COLCHESTER VOLVO,
Workshop Engineering,3404,Vehicle Spares,BRAKE PADS - FRONT WEAR INDICA,12,2018,44.32,6493,01/03/2018,TMPI,LOOKERS COLCHESTER VOLVO,
Workshop Engineering,3404,Vehicle Spares,BRAKE PADS - FRONT,12,2018,-45.48,6494,06/03/2018,TMPI,LOOKERS COLCHESTER VOLVO,
Workshop Engineering,3404,Vehicle Spares,BRAKE PADS - FRONT WEAR INDICA,12,2018,-44.32,6494,06/03/2018,TMPI,LOOKERS COLCHESTER VOLVO,
Workshop Engineering,3404,Vehicle Spares,HOSE AS PATTERN - SW,12,2018,30.63,6495,16/03/2018,TMPI,ANGLIA HOSE & HYDRAULICS LTD,
Workshop Engineering,3404,Vehicle Spares,HYDROVANE - GAUGE ( 0 TO 16 BA,12,2018,8.19,6496,15/03/2018,TMPI,ANGLIA HOSE & HYDRAULICS LTD,
Workshop Engineering,3404,Vehicle Spares,STEP LIGHT - ( GRIPTONE - P/N,12,2018,76.80,6497,16/03/2018,TMPI,JOHN DENNIS COACHBUILDERS LTD,
Workshop Engineering,3404,Vehicle Spares,CARRIAGE CHARGE,12,2018,15.00,6497,16/03/2018,TMPI,JOHN DENNIS COACHBUILDERS LTD,
Workshop Engineering,3404,Vehicle Spares,EVAPOWAY SOLVENT DE GREASER,12,2018,204.96,6498,13/03/2018,TMPI,ANGLO NET LTD,
Workshop Engineering,3404,Vehicle Spares,CARRIAGE CHARGE,12,2018,8.95,6498,13/03/2018,TMPI,ANGLO NET LTD,
Workshop Engineering,3404,Vehicle Spares,FUEL FILTER (Holmatro),12,2018,78.50,6499,13/03/2018,TMPI,ERNEST DOE & SONS LTD,
Workshop Engineering,3404,Vehicle Spares,HOSE AS PATTERN - SW,12,2018,110.25,6501,08/03/2018,TMPI,ANGLIA HOSE & HYDRAULICS LTD,
Workshop Engineering,3404,Vehicle Spares,HOSE AS PATTERN - SW,12,2018,110.25,6501,08/03/2018,TMPI,ANGLIA HOSE & HYDRAULICS LTD,
Workshop Engineering,3404,Vehicle Spares,BRAKE PIPE AS PATTERN,12,2018,37.66,6502,09/03/2018,TMPI,ANGLIA HOSE & HYDRAULICS LTD,
Workshop Engineering,3404,Vehicle Spares,TERM F/MALE SHROUD 0;25 YELLOW,12,2018,37.68,6503,07/03/2018,TMPI,R S COMPONENTS LTD,
Workshop Engineering,3404,Vehicle Spares,TERMINAL FEMALE BLUE 6;35mm,12,2018,18.56,6503,07/03/2018,TMPI,R S COMPONENTS LTD,
Workshop Engineering,3404,Vehicle Spares,TERM F/MALE SHROUD 0;25 BLUE -,12,2018,37.11,6503,07/03/2018,TMPI,R S COMPONENTS LTD,
Purchasing & Supply,2303,Clothing & Footwear,XL NITRILE GLOVES POWDER FREE,12,2018,85.20,6504,08/03/2018,TMPI,WURTH UK LTD,
Purchasing & Supply,2303,Clothing & Footwear,LARGE NITRILE GLOVES POWDER FR,12,2018,85.20,6504,08/03/2018,TMPI,WURTH UK LTD,
Workshop Engineering,3404,Vehicle Spares,STORAGE BOXES,12,2018,156.12,6505,06/03/2018,TMPI,R S COMPONENTS LTD,
Workshop Engineering,3404,Vehicle Spares,PTO SOLENOID WITH CLAMP - ( DS,12,2018,116.00,6506,13/03/2018,TMPI,BSP HYDRAULICS LIMITED,
Workshop Engineering,3404,Vehicle Spares,CARRIAGE CHARGE,12,2018,16.00,6506,13/03/2018,TMPI,BSP HYDRAULICS LIMITED,
Workshop Engineering,3404,Vehicle Spares,PTO - SOLENOID,12,2018,183.00,6506,13/03/2018,TMPI,BSP HYDRAULICS LIMITED,
Workshop Engineering,3404,Vehicle Spares,11 METRE EXTENDING ROPE - 105,12,2018,86.78,6507,13/03/2018,TMPI,SUPPLY PLUS LIMITED,
Workshop Engineering,3404,Vehicle Spares,CARRIAGE CHARGE,12,2018,9.15,6507,13/03/2018,TMPI,SUPPLY PLUS LIMITED,
Workshop Engineering,3404,Vehicle Spares,AAA BATTERY,12,2018,35.20,6508,12/03/2018,TMPI,R S COMPONENTS LTD,
Workshop Engineering,2071,Calibration of Equipment,RETURN CARRIAGE CHARGE,12,2018,20.00,6509,13/03/2018,TMPI,TSI FLOWMETERS LTD,
Workshop Engineering,2071,Calibration of Equipment,RECALIBRATE FLOWMETER - (EFA T,12,2018,200.00,6509,13/03/2018,TMPI,TSI FLOWMETERS LTD,
Workshop Engineering,3404,Vehicle Spares,FUEL RAIL PIPE KIT,12,2018,63.92,6510,08/03/2018,TMPI,HARRIS TRUCK & VAN LTD,
Workshop Engineering,3404,Vehicle Spares,OIL FILTER - PINZ EU56FZX,12,2018,3.30,6511,08/03/2018,TMPI,MOTOR PARTS DIRECT,
Workshop Engineering,3404,Vehicle Spares,DRIVE BELT,12,2018,22.31,6511,08/03/2018,TMPI,MOTOR PARTS DIRECT,
Workshop Engineering,3404,Vehicle Spares,CARRIAGE CHARGE,12,2018,15.00,6512,15/03/2018,TMPI,JOHN DENNIS COACHBUILDERS LTD,
Workshop Engineering,3404,Vehicle Spares,PTO - BOLT SET,12,2018,57.35,6512,15/03/2018,TMPI,JOHN DENNIS COACHBUILDERS LTD,
Workshop Engineering,3404,Vehicle Spares,PTO - GASKET ( METAL),12,2018,14.65,6512,15/03/2018,TMPI,JOHN DENNIS COACHBUILDERS LTD,
Workshop Engineering,3404,Vehicle Spares,PTO - GASKET ( METAL ),12,2018,29.30,6512,15/03/2018,TMPI,JOHN DENNIS COACHBUILDERS LTD,
Workshop Engineering,3404,Vehicle Spares,WASHER PUMP,12,2018,39.71,6513,19/03/2018,TMPI,LOOKERS COLCHESTER VOLVO,
Workshop Engineering,3404,Vehicle Spares,OIL FILTER - RANGER,12,2018,19.61,6514,16/03/2018,TMPI,JOHN GROSE GROUP LTD,
Workshop Engineering,3404,Vehicle Spares,FUEL FILTER - RANGER,12,2018,10.67,6514,16/03/2018,TMPI,JOHN GROSE GROUP LTD,
Workshop Engineering,3404,Vehicle Spares,OIL SEAL,12,2018,5.74,6515,12/03/2018,TMPI,GRASSHOPPER (HORTICULTURAL) LTD,
Workshop Engineering,3404,Vehicle Spares,BRUSH EXTENTION HANDLE - CLEAN,12,2018,31.41,6516,19/03/2018,TMPI,MOTOR PARTS DIRECT,
Workshop Engineering,3404,Vehicle Spares,FLEXI WASH BLADE - DRAPER,12,2018,11.04,6517,13/03/2018,TMPI,MOTOR PARTS DIRECT,
Workshop Engineering,3404,Vehicle Spares,BRUSH HEAD - CLEANING,12,2018,145.67,6517,13/03/2018,TMPI,MOTOR PARTS DIRECT,
Workshop Engineering,3404,Vehicle Spares,BRUSH EXTENTION HANDLE - CLEAN,12,2018,41.88,6517,13/03/2018,TMPI,MOTOR PARTS DIRECT,
Workshop Engineering,3404,Vehicle Spares,OIL FILTER,12,2018,4.27,6518,19/03/2018,TMPI,MOTOR PARTS DIRECT,
Workshop Engineering,3404,Vehicle Spares,AIR FILTER,12,2018,4.17,6518,19/03/2018,TMPI,MOTOR PARTS DIRECT,
Workshop Engineering,3404,Vehicle Spares,POLLEN FILTER,12,2018,9.59,6518,19/03/2018,TMPI,MOTOR PARTS DIRECT,
Workshop Engineering,3404,Vehicle Spares,FUEL FILTER,12,2018,19.52,6518,19/03/2018,TMPI,MOTOR PARTS DIRECT,
Workshop Engineering,3404,Vehicle Spares,AUX DRIVE BELT,12,2018,38.29,6518,19/03/2018,TMPI,MOTOR PARTS DIRECT,
Workshops Management,3320,Purchase of Machinery & Plant,LABOUR CHARGE,12,2018,59.00,6519,08/02/2018,TMPI,VIXEN SURFACE TREATMENTS LTD,
Workshops Management,3320,Purchase of Machinery & Plant,CALLOUT CHARGE,12,2018,299.00,6519,08/02/2018,TMPI,VIXEN SURFACE TREATMENTS LTD,
Workshops Management,3320,Purchase of Machinery & Plant,PUMP TO BULKHEAD HOSE,12,2018,28.65,6520,14/03/2018,TMPI,VIXEN SURFACE TREATMENTS LTD,
Workshops Management,3320,Purchase of Machinery & Plant,GAS STRUTS,12,2018,210.70,6520,14/03/2018,TMPI,VIXEN SURFACE TREATMENTS LTD,
Workshops Management,3320,Purchase of Machinery & Plant,SMALL DEBRIS FILTER,12,2018,36.70,6520,14/03/2018,TMPI,VIXEN SURFACE TREATMENTS LTD,
Workshops Management,3320,Purchase of Machinery & Plant,JETWASH 3 PHASE PUMP,12,2018,950.00,6520,14/03/2018,TMPI,VIXEN SURFACE TREATMENTS LTD,
Workshops Management,3320,Purchase of Machinery & Plant,EMERGENCY STOP RELAY,12,2018,39.25,6520,14/03/2018,TMPI,VIXEN SURFACE TREATMENTS LTD,
Workshops Management,3320,Purchase of Machinery & Plant,HEATING ELEMENT,12,2018,459.05,6520,14/03/2018,TMPI,VIXEN SURFACE TREATMENTS LTD,
Workshops Management,3320,Purchase of Machinery & Plant,BOOM PIN,12,2018,211.50,6520,14/03/2018,TMPI,VIXEN SURFACE TREATMENTS LTD,
Workshops Management,3320,Purchase of Machinery & Plant,ADDITIONAL LABOUR,12,2018,472.00,6520,14/03/2018,TMPI,VIXEN SURFACE TREATMENTS LTD,
Workshops Management,3320,Purchase of Machinery & Plant,BULKHEAD TO BOOM PIN HOSE,12,2018,14.65,6520,14/03/2018,TMPI,VIXEN SURFACE TREATMENTS LTD,
Workshops Management,3320,Purchase of Machinery & Plant,SPRAY BOOM PUSHES,12,2018,70.15,6520,14/03/2018,TMPI,VIXEN SURFACE TREATMENTS LTD,
Workshops Management,3320,Purchase of Machinery & Plant,"1"" HOSE TAILS",12,2018,6.72,6520,14/03/2018,TMPI,VIXEN SURFACE TREATMENTS LTD,
Workshops Management,3320,Purchase of Machinery & Plant,FRONT LID SEAL,12,2018,55.50,6520,14/03/2018,TMPI,VIXEN SURFACE TREATMENTS LTD,
Workshop Engineering,3404,Vehicle Spares,N/S MIRROR COMPLETE,12,2018,102.19,6521,19/03/2018,TMPI,JOHN GROSE GROUP LTD,
Workshop Engineering,3404,Vehicle Spares,N/S MIRROR CASING - BLACK,12,2018,21.07,6521,19/03/2018,TMPI,JOHN GROSE GROUP LTD,
Workshop Engineering,3404,Vehicle Spares,AIR FILTER - ( 65 REG SPRINTER,12,2018,27.36,6522,17/03/2018,TMPI,ORWELL TRUCKS LTD,
Workshop Engineering,3404,Vehicle Spares,ENGINE OIL  (65 REG SPRINTER),12,2018,57.00,6522,17/03/2018,TMPI,ORWELL TRUCKS LTD,
Workshop Engineering,3404,Vehicle Spares,OIL FILTER - ( 65 REG SPRINTER,12,2018,9.72,6522,17/03/2018,TMPI,ORWELL TRUCKS LTD,
Workshop Engineering,3404,Vehicle Spares,ENGINE OIL  (65 REG SPRINTER),12,2018,14.95,6522,17/03/2018,TMPI,ORWELL TRUCKS LTD,
Workshop Engineering,3404,Vehicle Spares,FUEL FILTER - SCANIA,12,2018,30.75,6523,19/03/2018,TMPI,CENTRAL TRUCK AND BUS PARTS LTD,
Workshop Engineering,3404,Vehicle Spares,POLLEN FILTER - ( 09 + ),12,2018,45.00,6523,19/03/2018,TMPI,CENTRAL TRUCK AND BUS PARTS LTD,
Workshop Engineering,3404,Vehicle Spares,OIL FILTER - SCANIA / VOLVO,12,2018,38.75,6523,19/03/2018,TMPI,CENTRAL TRUCK AND BUS PARTS LTD,
Workshop Engineering,3404,Vehicle Spares,INTERCOOLER HOSE - WX11CDV--(A,12,2018,75.00,6524,20/03/2018,TMPI,CENTRAL TRUCK AND BUS PARTS LTD,
Technical Services,2085,Breathing Apparatus,TRP RESET KEYS,12,2018,94.60,6525,15/03/2018,TMPI,INTERSPIRO LTD,
Technical Services,2085,Breathing Apparatus,CARRIAGE,12,2018,10.00,6525,15/03/2018,TMPI,INTERSPIRO LTD,
Technical Services,2085,Breathing Apparatus,Ear speaker kit,12,2018,557.70,6525,15/03/2018,TMPI,INTERSPIRO LTD,
Technical Services,2085,Breathing Apparatus,Spiroguide manifold - Black Bu,12,2018,60.93,6526,28/01/2018,TMPI,INTERSPIRO LTD,
Technical Services,2085,Breathing Apparatus,SpiroCom - Mic Tom,12,2018,118.47,6526,28/01/2018,TMPI,INTERSPIRO LTD,
Technical Services,2085,Breathing Apparatus,SprioCom - Intermittent Speake,12,2018,214.48,6526,28/01/2018,TMPI,INTERSPIRO LTD,
Technical Services,2085,Breathing Apparatus,SpiroCom - Broken Base,12,2018,19.50,6526,28/01/2018,TMPI,INTERSPIRO LTD,
Technical Services,2085,Breathing Apparatus,S-Breathing Valve - Faulty Cas,12,2018,83.73,6527,29/01/2018,TMPI,INTERSPIRO LTD,
Technical Services,2085,Breathing Apparatus,Damaged Wire to DDU 1433375,12,2018,19.50,6528,06/02/2018,TMPI,INTERSPIRO LTD,
Technical Services,2085,Breathing Apparatus,Black Button Fault 1433329/143,12,2018,40.62,6528,06/02/2018,TMPI,INTERSPIRO LTD,
Technical Services,2085,Breathing Apparatus,Cable too short 1531335,12,2018,13.00,6528,06/02/2018,TMPI,INTERSPIRO LTD,
Technical Services,2085,Breathing Apparatus,Fluctuating Pressure Sensor an,12,2018,33.31,6528,06/02/2018,TMPI,INTERSPIRO LTD,
Technical Services,2085,Breathing Apparatus,Intermittent Mic Fault 1434232,12,2018,6.50,6528,06/02/2018,TMPI,INTERSPIRO LTD,
Technical Services,2085,Breathing Apparatus,Carriage,12,2018,15.00,6529,13/03/2018,TMPI,SPEEDINGS LTD,
Technical Services,2085,Breathing Apparatus,Black Antibac Mesh Facemark Ba,12,2018,267.75,6529,13/03/2018,TMPI,SPEEDINGS LTD,
Workshop Engineering,3404,Vehicle Spares,ROUND REFLECTOR - 80MM O/D - 6,12,2018,37.50,6530,21/03/2018,TMPI,ANGLOCO LTD,
Workshop Engineering,3404,Vehicle Spares,CARRIAGE CHARGE,12,2018,15.00,6530,21/03/2018,TMPI,ANGLOCO LTD,
Workshop Engineering,3404,Vehicle Spares,LED STEP LIGHT - ( CAB FOOTWEL,12,2018,118.80,6531,21/03/2018,TMPI,ANGLOCO LTD,
Workshop Engineering,3404,Vehicle Spares,CARRIAGE CHARGE,12,2018,15.00,6531,21/03/2018,TMPI,ANGLOCO LTD,
Workshop Engineering,3404,Vehicle Spares,BODY LOCK VALVE,12,2018,101.62,6532,21/03/2018,TMPI,ANGLOCO LTD,
Workshop Engineering,3404,Vehicle Spares,BRONTO CAGE FLOODLIGHT  - 500w,12,2018,28.65,6532,21/03/2018,TMPI,ANGLOCO LTD,
Workshop Engineering,3404,Vehicle Spares,CARRIAGE CHARGE,12,2018,15.00,6532,21/03/2018,TMPI,ANGLOCO LTD,
Workshop Engineering,3404,Vehicle Spares,CARRIAGE CHARGE,12,2018,15.00,6533,21/03/2018,TMPI,ANGLOCO LTD,
Workshop Engineering,3404,Vehicle Spares,REVERSE ALARM BUZZER - KX65BYN,12,2018,97.50,6533,21/03/2018,TMPI,ANGLOCO LTD,
Workshop Engineering,3404,Vehicle Spares,BODY LOCK VALVE - ANGLOCO,12,2018,101.62,6534,21/03/2018,TMPI,ANGLOCO LTD,
Workshop Engineering,3404,Vehicle Spares,CARRIAGE CHARGE,12,2018,15.00,6534,21/03/2018,TMPI,ANGLOCO LTD,
Purchasing & Supply,1310,Cleaning products,WASH N WAX SHAMPOO,12,2018,328.00,6535,16/02/2018,TMPI,FIRSTCALL CORPORATION LTD,
Purchasing & Supply,1310,Cleaning products,P - WAVE PADS,12,2018,76.00,6535,16/02/2018,TMPI,FIRSTCALL CORPORATION LTD,
Purchasing & Supply,1310,Cleaning products,SCREENWASH ALL SEASON premium,12,2018,290.00,6535,16/02/2018,TMPI,FIRSTCALL CORPORATION LTD,
Purchasing & Supply,1310,Cleaning products,CARRIAGE CHARGE - PALLET,12,2018,45.00,6535,16/02/2018,TMPI,FIRSTCALL CORPORATION LTD,
Purchasing & Supply,2024,Cleaning Equipment,CAREPOINT SERVICES,12,2018,308.25,6538,13/03/2018,TMPI,SAFETY KLEEN UK LTD,
Workshop Engineering,3404,Vehicle Spares,LANE FEE,12,2018,55.00,6539,06/03/2018,TMPI,TRUCKEAST LTD,
Workshop Engineering,3404,Vehicle Spares,MOT FEE 2 AXLE VEHICLES -- WX1,12,2018,91.00,6539,06/03/2018,TMPI,TRUCKEAST LTD,
Workshop Engineering,3404,Vehicle Spares,PTO SOLENOID WITH CLAMP - ( DS,12,2018,244.20,6540,20/03/2018,TMPI,E RAND AND SONS LTD,
Workshop Engineering,3404,Vehicle Spares,CARRIAGE CHARGE,12,2018,14.00,6541,08/03/2018,TMPI,E RAND AND SONS LTD,
Workshop Engineering,3404,Vehicle Spares,CARRIAGE CHARGE - PRE 12PM,12,2018,30.00,6542,16/03/2018,TMPI,BSP HYDRAULICS LIMITED,
Workshop Engineering,3404,Vehicle Spares,PTO - WIRING LOOM - 276 SERIS,12,2018,78.00,6542,16/03/2018,TMPI,BSP HYDRAULICS LIMITED,
Workshop Engineering,3404,Vehicle Spares,BATTERY - 3 YEAR WARRANTY - EU,12,2018,98.06,6543,20/03/2018,TMPI,MOTOR PARTS DIRECT,
Workshop Engineering,3404,Vehicle Spares,FUEL FILTER,12,2018,10.53,6545,19/03/2018,TMPI,MOTOR PARTS DIRECT,
Workshop Engineering,3404,Vehicle Spares,MICH - 205/60/16,12,2018,162.32,6546,13/03/2018,TMPI,ATS EUROMASTER LIMITED,
Workshop Engineering,3404,Vehicle Spares,SCRAP,12,2018,2.32,6546,13/03/2018,TMPI,ATS EUROMASTER LIMITED,
Workshop Engineering,3404,Vehicle Spares,WHL BALANCE,12,2018,8.70,6546,13/03/2018,TMPI,ATS EUROMASTER LIMITED,
Workshop Engineering,3404,Vehicle Spares,VALVE FITTED,12,2018,3.72,6546,13/03/2018,TMPI,ATS EUROMASTER LIMITED,
Workshop Engineering,3404,Vehicle Spares,MICH - 205/55/16,12,2018,235.96,6547,13/03/2018,TMPI,ATS EUROMASTER LIMITED,
Workshop Engineering,3404,Vehicle Spares,SCRAP,12,2018,4.64,6547,13/03/2018,TMPI,ATS EUROMASTER LIMITED,
Workshop Engineering,3404,Vehicle Spares,WHL BALANCE,12,2018,17.40,6547,13/03/2018,TMPI,ATS EUROMASTER LIMITED,
Workshop Engineering,3404,Vehicle Spares,VALVE FITTED,12,2018,7.44,6547,13/03/2018,TMPI,ATS EUROMASTER LIMITED,
Workshop Engineering,3404,Vehicle Spares,BRIDGESTONE - 275/70/22;5,12,2018,341.72,6548,07/03/2018,TMPI,ATS EUROMASTER LIMITED,
Workshop Engineering,3404,Vehicle Spares,REGROOVE,12,2018,36.40,6548,07/03/2018,TMPI,ATS EUROMASTER LIMITED,
Workshop Engineering,3404,Vehicle Spares,CARRIAGE CHARGE,12,2018,15.00,6550,20/03/2018,TMPI,JOHN DENNIS COACHBUILDERS LTD,
Workshop Engineering,3404,Vehicle Spares,EXTERNAL JUMP START SOCKET - G,12,2018,263.26,6550,20/03/2018,TMPI,JOHN DENNIS COACHBUILDERS LTD,
Workshop Engineering,3404,Vehicle Spares,CARRIAGE CHARGE,12,2018,15.00,6552,15/03/2018,TMPI,HOLMATRO UK LIMITED,
Workshop Engineering,3404,Vehicle Spares,BLADE SET-pedal cutter,12,2018,412.30,6552,15/03/2018,TMPI,HOLMATRO UK LIMITED,
Workshop Engineering,3404,Vehicle Spares,PROTECTION SLEEVE-cutter,12,2018,95.38,6552,15/03/2018,TMPI,HOLMATRO UK LIMITED,
Workshop Engineering,3404,Vehicle Spares,FEMALE ALL COUPLER,12,2018,315.40,6552,15/03/2018,TMPI,HOLMATRO UK LIMITED,
Workshop Engineering,3404,Vehicle Spares,CARBURETTOR,12,2018,87.40,6552,15/03/2018,TMPI,HOLMATRO UK LIMITED,
Workshop Engineering,3404,Vehicle Spares,LATE PAYMENT FEE,12,2018,15.00,6553,01/02/2018,TMPI,B O C LTD,
Workshop Engineering,3404,Vehicle Spares,CHERRY PICKER SERVICE,12,2018,276.00,6554,21/03/2018,TMPI,PARAMOUNT PLATFORMS LIMITED,
Workshop Engineering,3404,Vehicle Spares,REVERSE ALARM BUZZER,12,2018,97.50,6555,21/03/2018,TMPI,ANGLOCO LTD,
Workshop Engineering,3404,Vehicle Spares,CARRIAGE CHARGE,12,2018,15.00,6555,21/03/2018,TMPI,ANGLOCO LTD,
Workshop Engineering,3404,Vehicle Spares,OUTTER - FRONT GRILLE--( AMBUL,12,2018,71.06,6556,22/03/2018,TMPI,NORFOLK TRUCK & VAN LTD,
Workshop Engineering,3404,Vehicle Spares,INNER     - FRONT GRILLE,12,2018,31.99,6556,22/03/2018,TMPI,NORFOLK TRUCK & VAN LTD,
Workshop Engineering,3404,Vehicle Spares,CONSPICUITY PANELS - REFLECTIV,12,2018,79.32,6557,21/03/2018,TMPI,ANGLOCO LTD,
Workshop Engineering,3404,Vehicle Spares,T24RD ROLLING DIAPHRAGM scania,12,2018,83.92,6558,20/03/2018,TMPI,WRIGHTPART LTD,
Workshop Engineering,3404,Vehicle Spares,T24RD ROLLING DIAPHRAGM scania,12,2018,20.98,6559,21/03/2018,TMPI,WRIGHTPART LTD,
Workshop Engineering,3404,Vehicle Spares,TRK VALVE,12,2018,1.86,6561,15/03/2018,TMPI,ATS EUROMASTER LIMITED,
Workshop Engineering,3404,Vehicle Spares,MINOR REPAIR,12,2018,8.06,6561,15/03/2018,TMPI,ATS EUROMASTER LIMITED,
Workshop Engineering,3404,Vehicle Spares,TRK BALANCE,12,2018,4.35,6561,15/03/2018,TMPI,ATS EUROMASTER LIMITED,
Workshop Engineering,3404,Vehicle Spares,BRIDGESTINE - 315/70/22;5,12,2018,387.02,6562,15/03/2018,TMPI,ATS EUROMASTER LIMITED,
Workshop Engineering,3404,Vehicle Spares,HP CAP,12,2018,1.70,6562,15/03/2018,TMPI,ATS EUROMASTER LIMITED,
Workshop Engineering,3404,Vehicle Spares,MAINS POWER LEAD - (EFA TRADIN,12,2018,50.00,6563,20/03/2018,TMPI,TSI FLOWMETERS LTD,
Workshop Engineering,3404,Vehicle Spares,CARRIAGE CHARGE,12,2018,15.00,6563,20/03/2018,TMPI,TSI FLOWMETERS LTD,
Operations,2401,Laundry,RENTAL CHARGES 28;01;2018 - 24,12,2018,485.08,6564,24/02/2018,TMPI,JOHNSONS APPARELMASTER LTD,
Workshop Engineering,3404,Vehicle Spares,HOSE & FITTINGS AS PATTERN ---,12,2018,1.71,6565,20/03/2018,TMPI,ANGLIA HOSE & HYDRAULICS LTD,
Workshop Engineering,3404,Vehicle Spares,WHEEL,12,2018,8.59,6565,20/03/2018,TMPI,ANGLIA HOSE & HYDRAULICS LTD,
Workshop Engineering,3404,Vehicle Spares,COMPRESSOR GAUGE 50MM ( LARGE,12,2018,31.64,6565,20/03/2018,TMPI,ANGLIA HOSE & HYDRAULICS LTD,
Workshop Engineering,3404,Vehicle Spares,GAUGE,12,2018,7.91,6565,20/03/2018,TMPI,ANGLIA HOSE & HYDRAULICS LTD,
Workshop Engineering,3404,Vehicle Spares,REGROOVE,12,2018,72.80,6566,15/03/2018,TMPI,ATS EUROMASTER LIMITED,
Workshop Engineering,3404,Vehicle Spares,BRIDGESTONE - 315/70/22;5,12,2018,774.04,6566,15/03/2018,TMPI,ATS EUROMASTER LIMITED,
Workshop Engineering,3404,Vehicle Spares,FITTING CHARGE,12,2018,29.50,6566,15/03/2018,TMPI,ATS EUROMASTER LIMITED,
Workshop Engineering,3404,Vehicle Spares,HP CAPS,12,2018,6.80,6566,15/03/2018,TMPI,ATS EUROMASTER LIMITED,
Workshop Engineering,3404,Vehicle Spares,BATTERY CHGD scania / sabre v,12,2018,108.27,6567,22/03/2018,TMPI,LINCON BATTERIES LTD,
Workshop Engineering,3404,Vehicle Spares,BATTERY CHGD scania / sabre v,12,2018,-108.27,6568,22/03/2018,TMPI,LINCON BATTERIES LTD,
Workshop Engineering,3404,Vehicle Spares,OIL FILTER,12,2018,3.46,6569,26/02/2018,TMPI,IPSWICH TPS,
Workshop Engineering,3404,Vehicle Spares,POLLEN FILTER,12,2018,8.91,6569,26/02/2018,TMPI,IPSWICH TPS,
Workshop Engineering,3404,Vehicle Spares,CAMBELT KIT,12,2018,87.27,6569,26/02/2018,TMPI,IPSWICH TPS,
Workshop Engineering,3404,Vehicle Spares,WATER PUMP,12,2018,26.60,6569,26/02/2018,TMPI,IPSWICH TPS,
Workshop Engineering,3404,Vehicle Spares,AUX BELT,12,2018,19.59,6569,26/02/2018,TMPI,IPSWICH TPS,
Workshop Engineering,3404,Vehicle Spares,WATER PUMP SURCHARGE,12,2018,35.00,6569,26/02/2018,TMPI,IPSWICH TPS,
Workshop Engineering,3404,Vehicle Spares,WATER PUMP SURCHARGE,12,2018,-35.00,6570,06/03/2018,TMPI,IPSWICH TPS,
Workshop Engineering,3404,Vehicle Spares,JETWASH REPAIR PARTS - PATTERN,12,2018,45.16,6571,22/03/2018,TMPI,ANGLIA HOSE & HYDRAULICS LTD,
Workshop Engineering,3404,Vehicle Spares,FUEL FILTER HOUSING ASSY - EU1,12,2018,112.59,6573,23/03/2018,TMPI,UNDERWOODS OF COLCHESTER VAUXHALL,
Workshop Engineering,3404,Vehicle Spares,FUEL FILTER HOUSING ASSY - EU1,12,2018,112.59,6573,23/03/2018,TMPI,UNDERWOODS OF COLCHESTER VAUXHALL,
Workshop Engineering,3404,Vehicle Spares,TORCH - WORKLAMP,12,2018,74.97,6574,23/03/2018,TMPI,JOHN GROSE GROUP LTD,
Workshop Engineering,3404,Vehicle Spares,0;5LTR STRAIGHT PAINT - AMBULA,12,2018,10.50,6575,22/03/2018,TMPI,HALSTEAD REFINISHING SUPPLIES LTD,
Workshop Engineering,3404,Vehicle Spares,"6"" COMPOUNDING FOAM G-MOP - FA",12,2018,5.25,6576,22/03/2018,TMPI,HALSTEAD REFINISHING SUPPLIES LTD,
Workshop Engineering,3404,Vehicle Spares,RUPES POLLISHING TOOL,12,2018,252.00,6576,22/03/2018,TMPI,HALSTEAD REFINISHING SUPPLIES LTD,
Workshop Engineering,3404,Vehicle Spares,CONTROL VALVE,12,2018,76.72,6577,22/03/2018,TMPI,TRUCKEAST LTD,
Workshop Engineering,3404,Vehicle Spares,FRONT PADS,12,2018,130.28,6578,22/03/2018,TMPI,NORFOLK TRUCK & VAN LTD,
Workshop Engineering,3404,Vehicle Spares,FRONT PAD SENSORS,12,2018,25.63,6578,22/03/2018,TMPI,NORFOLK TRUCK & VAN LTD,
Workshop Engineering,3404,Vehicle Spares,SIGHT TUBE - SABRE / JDC SCANI,12,2018,101.31,6579,21/03/2018,TMPI,ALEXANDER DENNIS LTD (PARTS DIVISION),
Workshop Engineering,3404,Vehicle Spares,FASTENER DOOR TRIM BLACK,12,2018,17.40,6580,21/03/2018,TMPI,ALEXANDER DENNIS LTD (PARTS DIVISION),
Workshop Engineering,3404,Vehicle Spares,OFFSIDE REAR SPRING - AV09HGL,12,2018,20.31,6583,22/03/2018,TMPI,MOTOR PARTS DIRECT,
Workshop Engineering,3404,Vehicle Spares,V BELT,12,2018,22.74,6584,22/03/2018,TMPI,MOTOR PARTS DIRECT,
Workshop Engineering,3404,Vehicle Spares,BATTERY - 3 YEAR WARRENTY,12,2018,63.06,6585,22/03/2018,TMPI,MOTOR PARTS DIRECT,
Workshop Engineering,3404,Vehicle Spares,NIGHTSCAN - O-RING AS568A-118,12,2018,0.20,6586,16/03/2018,TMPI,THE WILL-BURT COMPANY (EU) LIMITED,
Workshop Engineering,3404,Vehicle Spares,NIGHTSCAN - INTERNAL BUMPER 2;,12,2018,0.40,6586,16/03/2018,TMPI,THE WILL-BURT COMPANY (EU) LIMITED,
Workshop Engineering,3404,Vehicle Spares,NIGHTSCAN - INTERNAL BUMPER 3;,12,2018,0.50,6586,16/03/2018,TMPI,THE WILL-BURT COMPANY (EU) LIMITED,
Workshop Engineering,3404,Vehicle Spares,"NIGHTSCAN - 3;0"" U-CUP SEAL",12,2018,7.85,6586,16/03/2018,TMPI,THE WILL-BURT COMPANY (EU) LIMITED,
Workshop Engineering,3404,Vehicle Spares,PCB BOARD HAND HELD CONTROL,12,2018,337.19,6586,16/03/2018,TMPI,THE WILL-BURT COMPANY (EU) LIMITED,
Workshop Engineering,3404,Vehicle Spares,NIGHTSCAN - O-RING AS568A-118,12,2018,0.20,6586,16/03/2018,TMPI,THE WILL-BURT COMPANY (EU) LIMITED,
Workshop Engineering,3404,Vehicle Spares,NIGHTSCAN - STRAIN RELIEF,12,2018,18.00,6586,16/03/2018,TMPI,THE WILL-BURT COMPANY (EU) LIMITED,
Workshop Engineering,3404,Vehicle Spares,NIGHTSCAN - STRAIN RELIEF,12,2018,20.00,6586,16/03/2018,TMPI,THE WILL-BURT COMPANY (EU) LIMITED,
Workshop Engineering,3404,Vehicle Spares,"NIGHTSCAN - 2;0"" U-CUP SEAL",12,2018,4.80,6586,16/03/2018,TMPI,THE WILL-BURT COMPANY (EU) LIMITED,
Workshop Engineering,3404,Vehicle Spares,"NIGHTSCAN - 2;5"" U-CUP SEAL",12,2018,6.00,6586,16/03/2018,TMPI,THE WILL-BURT COMPANY (EU) LIMITED,
Workshop Engineering,3404,Vehicle Spares,PAN FLAG ( WILLBURT ),12,2018,36.00,6586,16/03/2018,TMPI,THE WILL-BURT COMPANY (EU) LIMITED,
Workshop Engineering,3404,Vehicle Spares,CARRIAGE CHARGE,12,2018,110.00,6586,16/03/2018,TMPI,THE WILL-BURT COMPANY (EU) LIMITED,
Workshop Engineering,3404,Vehicle Spares,IVECO BADGE - (LOC) FRONT GRIL,12,2018,35.87,6587,24/03/2018,TMPI,NORFOLK TRUCK & VAN LTD,
Workshop Engineering,3404,Vehicle Spares,OIL FILTER - SP08-DUJ,12,2018,11.95,6588,23/03/2018,TMPI,MOTOR PARTS DIRECT,
Workshop Engineering,3404,Vehicle Spares,AIR FILTER,12,2018,19.03,6588,23/03/2018,TMPI,MOTOR PARTS DIRECT,
Workshop Engineering,3404,Vehicle Spares,FUEL FILTER,12,2018,19.64,6588,23/03/2018,TMPI,MOTOR PARTS DIRECT,
Workshop Engineering,3404,Vehicle Spares,DIFFERENTIAL - FORD CONNECT,12,2018,550.53,6589,24/03/2018,TMPI,JOHN GROSE GROUP LTD,
Workshop Engineering,3404,Vehicle Spares,CAP,12,2018,189.55,6590,21/02/2018,TMPI,WALTER FRANK & SONS LTD,
Workshop Engineering,3404,Vehicle Spares,CARRIAGE CHARGE,12,2018,15.00,6590,21/02/2018,TMPI,WALTER FRANK & SONS LTD,
Workshop Engineering,3404,Vehicle Spares,AQUARIUM SERVICE - STEVE SMITH,12,2018,262.50,6592,23/03/2018,TMPI,D PITTOCK ENGINEERING LTD,
Workshop Engineering,3404,Vehicle Spares,FRONT PADS WIRE ASSEMBLY,12,2018,5.95,6593,26/03/2018,TMPI,LOOKERS FORD,
Workshop Engineering,3404,Vehicle Spares,FRONT PADS,12,2018,21.15,6593,26/03/2018,TMPI,LOOKERS FORD,
Workshop Engineering,3404,Vehicle Spares,RS PRO 1 PAIR FOIL-PET TAPE MU,12,2018,58.02,6595,19/03/2018,TMPI,R S COMPONENTS LTD,
Workshop Engineering,3404,Vehicle Spares,Arcol HS50 Series Aluminium Ho,12,2018,6.12,6595,19/03/2018,TMPI,R S COMPONENTS LTD,
Workshop Engineering,3404,Vehicle Spares,AUX DRIVE BELT,12,2018,-38.29,6597,23/03/2018,TMPI,MOTOR PARTS DIRECT,
Workshop Engineering,3404,Vehicle Spares,"24"" FRONT WIPER BLADES",12,2018,12.36,6598,27/03/2018,TMPI,MOTOR PARTS DIRECT,
Workshop Engineering,3404,Vehicle Spares,OIL FILTER,12,2018,10.16,6599,27/03/2018,TMPI,MOTOR PARTS DIRECT,
Workshop Engineering,3404,Vehicle Spares,GEARBOX SEALANT - RED,12,2018,6.57,6602,26/03/2018,TMPI,MOTOR PARTS DIRECT,
Technical Services,2085,Breathing Apparatus,Carriage,12,2018,10.00,6603,22/03/2018,TMPI,B.N.O.S. MEDITECH LTD,
Technical Services,2085,Breathing Apparatus,1;6mm polyester natural 500 Me,12,2018,45.00,6603,22/03/2018,TMPI,B.N.O.S. MEDITECH LTD,
Technical Services,2085,Breathing Apparatus,Medical Oxygen Size J,12,2018,29.10,6604,20/03/2018,TMPI,B O C LTD,
Technical Services,2085,Breathing Apparatus,Fixed Charge,12,2018,33.87,6604,20/03/2018,TMPI,B O C LTD,
Technical Services,2085,Breathing Apparatus,Environmental Charge,12,2018,2.16,6604,20/03/2018,TMPI,B O C LTD,
Technical Services,2085,Breathing Apparatus,Environmental Charge,12,2018,0.72,6605,21/03/2018,TMPI,B O C LTD,
Technical Services,2085,Breathing Apparatus,Medical Oxygen Size J,12,2018,9.70,6605,21/03/2018,TMPI,B O C LTD,
Workshop Engineering,2924,Quality Assurance,Continuing Assessment 26/3/18,12,2018,954.00,6606,28/03/2018,TMPI,BRITISH STANDARDS INSTITUTION,
Workshop Engineering,3404,Vehicle Spares,AIR FILTER,12,2018,10.42,6608,28/03/2018,TMPI,MOTOR PARTS DIRECT,
Workshop Engineering,3404,Vehicle Spares,POLLEN FILTER,12,2018,9.59,6609,28/03/2018,TMPI,MOTOR PARTS DIRECT,
Workshop Engineering,3404,Vehicle Spares,ANTI ROILL BAR BUSHES,12,2018,11.55,6610,27/03/2018,TMPI,NORFOLK TRUCK & VAN LTD,
Workshop Engineering,3404,Vehicle Spares,ANTI ROILL BAR BUSHES,12,2018,3.85,6611,27/03/2018,TMPI,NORFOLK TRUCK & VAN LTD,
Operations,2401,Laundry,GARMENT EMBLEM - NAME,12,2018,4.35,6612,26/03/2018,TMPI,JOHNSONS APPARELMASTER LTD,
Operations,2401,Laundry,GARMENT EMBLEMS - LOGO,12,2018,16.50,6612,26/03/2018,TMPI,JOHNSONS APPARELMASTER LTD,
Workshop Engineering,3404,Vehicle Spares,RECOVER FROM CM4 9EY TO W/S,12,2018,136.25,6613,27/03/2018,TMPI,D&G TRUCKS LIMITED,
Workshop Engineering,3404,Vehicle Spares,YELLOW DIAMOND GRADE - 15cm X,12,2018,39.82,6614,27/03/2018,TMPI,BLUELITE GRAPHICS LTD,
Workshop Engineering,3404,Vehicle Spares,CARRIAGE CHARGE,12,2018,15.00,6614,27/03/2018,TMPI,BLUELITE GRAPHICS LTD,
Workshop Engineering,3404,Vehicle Spares,RED DIAMOND GRADE - 15cm X 2mt,12,2018,36.92,6614,27/03/2018,TMPI,BLUELITE GRAPHICS LTD,
Workshop Engineering,3404,Vehicle Spares,O/S MIRROR GLASS,12,2018,28.05,6615,27/03/2018,TMPI,JOHN GROSE GROUP LTD,
Workshop Engineering,3404,Vehicle Spares,O/S MIRROR CASING,12,2018,21.07,6615,27/03/2018,TMPI,JOHN GROSE GROUP LTD,
Workshop Engineering,3404,Vehicle Spares,REAR CAB ROLLERS WITH BRACKET,12,2018,342.78,6616,23/03/2018,TMPI,ALEXANDER DENNIS LTD (PARTS DIVISION),
Workshop Engineering,3404,Vehicle Spares,SIGHT TUBE - SABRE / JDC SCANI,12,2018,33.77,6617,26/03/2018,TMPI,ALEXANDER DENNIS LTD (PARTS DIVISION),
Workshop Engineering,3404,Vehicle Spares,BLUE FLAT PACK STORAGE BOXES,12,2018,156.12,6618,01/02/2018,TMPI,R S COMPONENTS LTD,
Workshop Engineering,3404,Vehicle Spares,TAPE DOUBLE SIDED STRIPS,12,2018,69.00,6618,01/02/2018,TMPI,R S COMPONENTS LTD,
Workshops Management,3320,Purchase of Machinery & Plant,FAN REFERBISHMENT / LABOUR,12,2018,584.39,6619,08/03/2018,TMPI,SPRAYBOOTH SERVICES (UK) LTD,
Workshop Engineering,3404,Vehicle Spares,FIXED MONTHLY WASTE FEE ,12,2018,26.04,6620,27/03/2018,TMPI,MORELLI GROUP LTD,
Workshop Engineering,3404,Vehicle Spares,CONTAMINATED WASTE PAINT,12,2018,64.09,6620,27/03/2018,TMPI,MORELLI GROUP LTD,
Workshop Engineering,3404,Vehicle Spares,WASTE OIL FILTERS,12,2018,45.50,6620,27/03/2018,TMPI,MORELLI GROUP LTD,
Workshop Engineering,3404,Vehicle Spares,RECTIFY/REPAIR (ENGINE FAULT C,12,2018,240.00,6621,28/03/2018,TMPI,NORFOLK TRUCK & VAN LTD,
Workshop Engineering,3404,Vehicle Spares,FRONT PADS,12,2018,22.00,6622,28/03/2018,TMPI,MOTOR PARTS DIRECT,
Workshop Engineering,3404,Vehicle Spares,REAR PADS,12,2018,18.00,6622,28/03/2018,TMPI,MOTOR PARTS DIRECT,
Workshop Engineering,3404,Vehicle Spares,SCRAP,12,2018,2.32,6623,22/03/2018,TMPI,ATS EUROMASTER LIMITED,
Workshop Engineering,3404,Vehicle Spares,WHL BALANCE,12,2018,8.70,6623,22/03/2018,TMPI,ATS EUROMASTER LIMITED,
Workshop Engineering,3404,Vehicle Spares,TRK VALVE,12,2018,3.72,6623,22/03/2018,TMPI,ATS EUROMASTER LIMITED,
Workshop Engineering,3404,Vehicle Spares,MICH - 205/60/16,12,2018,146.76,6623,22/03/2018,TMPI,ATS EUROMASTER LIMITED,
Workshop Engineering,3404,Vehicle Spares,BRIDGESTONE - 315/70/22;5,12,2018,387.02,6626,22/03/2018,TMPI,ATS EUROMASTER LIMITED,
Workshop Engineering,3404,Vehicle Spares,315/70/22;5 - CREDIT,12,2018,542.61,6628,17/03/2018,TMPI,ATS EUROMASTER LIMITED,
Workshop Engineering,3404,Vehicle Spares,ADMIN CHARGE - CREDIT,12,2018,10.35,6628,17/03/2018,TMPI,ATS EUROMASTER LIMITED,
Workshop Engineering,3404,Vehicle Spares,OUT OF HOURS RESPONCE - CREDIT,12,2018,116.10,6628,17/03/2018,TMPI,ATS EUROMASTER LIMITED,
Workshop Engineering,3404,Vehicle Spares,OUT OF HOURS RESPONCE - CREDIT,12,2018,116.10,6629,23/01/2018,TMPI,ATS EUROMASTER LIMITED,
Workshop Engineering,3404,Vehicle Spares,315/70/22;5 - CREDIT,12,2018,542.61,6629,23/01/2018,TMPI,ATS EUROMASTER LIMITED,
Workshop Engineering,3404,Vehicle Spares,ADMIN CHARGE - CREDIT,12,2018,10.35,6629,23/01/2018,TMPI,ATS EUROMASTER LIMITED,
Workshop Engineering,3404,Vehicle Spares,BRIDGESTONE - 315/70/22;5,12,2018,387.00,6630,22/03/2018,TMPI,ATS EUROMASTER LIMITED,
Workshop Engineering,3404,Vehicle Spares,RAPID RESPONCE ADMIN CHARGE,12,2018,10.35,6630,22/03/2018,TMPI,ATS EUROMASTER LIMITED,
Workshop Engineering,3404,Vehicle Spares,OUT OF HOURS RESPONCE CHARGE,12,2018,116.10,6630,22/03/2018,TMPI,ATS EUROMASTER LIMITED,
Workshop Engineering,3404,Vehicle Spares,OUT OF HOURS RESPONCE - CREDIT,12,2018,-116.10,6631,16/03/2018,TMPI,ATS EUROMASTER LIMITED,
Workshop Engineering,3404,Vehicle Spares,315/70/22;5 - CREDIT,12,2018,-542.61,6631,16/03/2018,TMPI,ATS EUROMASTER LIMITED,
Workshop Engineering,3404,Vehicle Spares,ADMIN CHARGE - CREDIT,12,2018,-10.35,6631,16/03/2018,TMPI,ATS EUROMASTER LIMITED,
Workshop Engineering,3404,Vehicle Spares,315/70/22;5 - CREDIT,12,2018,-542.61,6632,22/03/2018,TMPI,ATS EUROMASTER LIMITED,
Workshop Engineering,3404,Vehicle Spares,ADMIN CHARGE - CREDIT,12,2018,-10.35,6632,22/03/2018,TMPI,ATS EUROMASTER LIMITED,
Workshop Engineering,3404,Vehicle Spares,OUT OF HOURS RESPONCE - CREDIT,12,2018,-116.10,6632,22/03/2018,TMPI,ATS EUROMASTER LIMITED,
Property Services,1499,Furniture and Fittings,To supply 1200mm wide Trophy C,12,2018,927.80,6994,06/12/2017,KPIN,BATES OFFICE SERVICES LIMITED,
Property Services,1499,Furniture and Fittings,To assemble display unit,12,2018,50.00,6994,06/12/2017,KPIN,BATES OFFICE SERVICES LIMITED,
Property Services,1499,Furniture and Fittings,Delivery charge,12,2018,95.00,6994,06/12/2017,KPIN,BATES OFFICE SERVICES LIMITED,
Workshops Management,3050,Leasing Charges,Leasing Charges,12,2018,-270.38,7684,19/12/2017,KPIN,LEX AUTOLEASE LTD,
Property Services,1060,Grounds Maintenance,Skip daily rental,12,2018,44.33,7797,31/12/2017,KPIN,GREEN RECYCLING LIMITED,
Water Services,2087,Water Services,HW1449,12,2018,338.00,7969,21/12/2017,KPIN,AFFINITY WATER LIMITED (HYDRANTS),
Property Services,2903,Consultancy Fees,1718/411 -External Shower/wc w,12,2018,1587.59,7992,31/12/2017,KPIN,INGLETON WOOD LLP,
Property Services,1060,Grounds Maintenance,CREDIT KPIN 5479,12,2018,-84.12,8060,21/11/2017,KPIN,MITIE LANDSCAPES LIMITED,
Workshops Management,3050,Leasing Charges,Leasing Charges,12,2018,-217.30,8093,03/01/2018,KPIN,LEX AUTOLEASE LTD,
Property Services,0180,Casual and Temporary Staff,Casual and Temporary Staff,12,2018,209.85,8448,14/01/2018,KPIN,PURE RESOURCING SOLUTIONS LTD,
Human Resources,B217,Payments in Advance,Wholetime Recruitment Firefigh,12,2018,15000.00,8463,15/01/2018,KPIN,SHL GROUP LTD,
Human Resources,4016,Recruitment,Recruitment,12,2018,15000.00,8463,15/01/2018,KPIN,SHL GROUP LTD,
Human Resources,4016,Recruitment,Recruitment,12,2018,-15000.00,8463,15/01/2018,KPIN,SHL GROUP LTD,
Stores,B205,Stocks & WIP (Purchasing & Supply Stores),Visiting Cards (Batch of Eight,12,2018,62.00,8615,23/01/2018,KPIN,THE PRINTING PLACE LIMITED,
Training,0715,In House Operational Training,In House Operational Training,12,2018,6800.00,8623,23/01/2018,KPIN,DECORPANEL LTD,
Property Services,4003,Postage Direct Mailing & Carriage,Postage - Response DEC,12,2018,7.14,8702,22/01/2018,KPIN,ROYAL MAIL GROUP LIMITED,
ICT,4005,IT Consumables,Iphone SE 32GB Spacy Grey. Goo,12,2018,470.00,8733,26/01/2018,KPIN,O2 (UK) LIMITED,
Workshops Management,3050,Leasing Charges,Leasing Charges,12,2018,270.38,8831,25/01/2018,KPIN,LEX AUTOLEASE LTD,
Workshops Management,3050,Leasing Charges,Leasing Charges,12,2018,217.30,8832,25/01/2018,KPIN,LEX AUTOLEASE LTD,
Human Resources,0180,Casual and Temporary Staff,Casual and Temporary Staff,12,2018,574.72,9002,28/01/2018,KPIN,PURE RESOURCING SOLUTIONS LTD,
Human Resources,0180,Casual and Temporary Staff,Casual and Temporary Staff,12,2018,35.92,9002,28/01/2018,KPIN,PURE RESOURCING SOLUTIONS LTD,
Community Safety,0180,Casual and Temporary Staff,Casual and Temporary Staff,12,2018,28.95,9003,28/01/2018,KPIN,PURE RESOURCING SOLUTIONS LTD,
Community Safety,0180,Casual and Temporary Staff,Casual and Temporary Staff,12,2018,531.34,9003,28/01/2018,KPIN,PURE RESOURCING SOLUTIONS LTD,
ICT,4005,IT Consumables,System Engineering - configura,12,2018,2848.75,9007,30/01/2018,KPIN,FREQUENTIS,
Operations - USAR,2030,Operational Equipment Support,CARRIAGE,12,2018,4.45,9052,31/01/2018,KPIN,TACTREE,
Operations - USAR,2030,Operational Equipment Support,TDU TROUSERS - EXCHANGE,12,2018,43.50,9052,31/01/2018,KPIN,TACTREE,
Not Analysed,B116,Fixed Assets Under Construction Operational Equipment,DELIVERY CHARGE - KPIN 5487,12,2018,150.00,9072,20/12/2017,KPIN,PULSE FITNESS LIMITED,
Essex Civil Prot ECC,2510,IT Communications,DAISY BILL 31/01/18,12,2018,57.88,9113,01/02/2018,KPIN,DAISY COMMUNICATIONS LIMITED,
Property Services,0180,Casual and Temporary Staff,Casual and Temporary Staff,12,2018,1115.65,9160,07/02/2018,KPIN,HAYS CONSTRUCTION & PROPERTY,
Property Services,0180,Casual and Temporary Staff,Casual and Temporary Staff,12,2018,15.30,9160,07/02/2018,KPIN,HAYS CONSTRUCTION & PROPERTY,
Property Services,0180,Casual and Temporary Staff,Casual and Temporary Staff,12,2018,215.46,9161,07/02/2018,KPIN,HAYS CONSTRUCTION & PROPERTY,
Property Services,0180,Casual and Temporary Staff,Casual and Temporary Staff,12,2018,50.40,9161,07/02/2018,KPIN,HAYS CONSTRUCTION & PROPERTY,
Property Services,0180,Casual and Temporary Staff,Casual and Temporary Staff,12,2018,1115.65,9161,07/02/2018,KPIN,HAYS CONSTRUCTION & PROPERTY,
Stores,B205,Stocks & WIP (Purchasing & Supply Stores),Stewart Superior 225Mm Clock W,12,2018,14.04,9169,07/02/2018,KPIN,BANNER GROUP LIMITED,
Stores,B205,Stocks & WIP (Purchasing & Supply Stores),Banner A1 Pln Non-Bleed Flip P,12,2018,32.90,9169,07/02/2018,KPIN,BANNER GROUP LIMITED,
Stores,B205,Stocks & WIP (Purchasing & Supply Stores),Bann Abs 2H Perforator 22St Bk,12,2018,8.70,9169,07/02/2018,KPIN,BANNER GROUP LIMITED,
Stores,B205,Stocks & WIP (Purchasing & Supply Stores),Bann Fs Doc Wallet 32Mm Buff,12,2018,7.26,9169,07/02/2018,KPIN,BANNER GROUP LIMITED,
Stores,B205,Stocks & WIP (Purchasing & Supply Stores),Ban P/Handle S/Stl Scissor 203,12,2018,5.10,9169,07/02/2018,KPIN,BANNER GROUP LIMITED,
Stores,B205,Stocks & WIP (Purchasing & Supply Stores),Banner Whiteboard Foam Cleaner,12,2018,27.90,9169,07/02/2018,KPIN,BANNER GROUP LIMITED,
Community Safety,4019,Community Safety,Bann Rld Record Card 127x203,12,2018,1.75,9169,07/02/2018,KPIN,BANNER GROUP LIMITED,
Stores,B205,Stocks & WIP (Purchasing & Supply Stores),Ban Env Window DL White,12,2018,7.00,9169,07/02/2018,KPIN,BANNER GROUP LIMITED,
Stores,B205,Stocks & WIP (Purchasing & Supply Stores),Bann A4 Clear Punch Pocket 50M,12,2018,7.90,9169,07/02/2018,KPIN,BANNER GROUP LIMITED,
Stores,B205,Stocks & WIP (Purchasing & Supply Stores),Pavo Laminating Pouch A4 150Mu,12,2018,77.98,9169,07/02/2018,KPIN,BANNER GROUP LIMITED,
Stores,B205,Stocks & WIP (Purchasing & Supply Stores),Bann Shatter Resist Ruler 30Mm,12,2018,2.38,9169,07/02/2018,KPIN,BANNER GROUP LIMITED,
Stores,B205,Stocks & WIP (Purchasing & Supply Stores),Bann Abs Full Strip Stapler Bk,12,2018,5.30,9169,07/02/2018,KPIN,BANNER GROUP LIMITED,
Stores,B205,Stocks & WIP (Purchasing & Supply Stores),Assorted key ring Pk50,12,2018,22.02,9169,07/02/2018,KPIN,BANNER GROUP LIMITED,
Stores,B205,Stocks & WIP (Purchasing & Supply Stores),Banner Medium Ballpoint Pen Bl,12,2018,6.65,9169,07/02/2018,KPIN,BANNER GROUP LIMITED,
Stores,B205,Stocks & WIP (Purchasing & Supply Stores),Bann Rld Record Card 102x152,12,2018,0.53,9169,07/02/2018,KPIN,BANNER GROUP LIMITED,
Stores,B205,Stocks & WIP (Purchasing & Supply Stores),Desktop Tape Dispenser,12,2018,6.20,9169,07/02/2018,KPIN,BANNER GROUP LIMITED,
Training,0715,In House Operational Training,In House Operational Training,12,2018,42.90,9169,07/02/2018,KPIN,BANNER GROUP LIMITED,
Training,0715,In House Operational Training,In House Operational Training,12,2018,1.10,9169,07/02/2018,KPIN,BANNER GROUP LIMITED,
Purchasing & Supply,2012,Office/Admin Equipment (incl copiers),Fellowes Copyholder Stand A4 D,12,2018,4.97,9169,07/02/2018,KPIN,BANNER GROUP LIMITED,
Property Services,0180,Casual and Temporary Staff,Casual and Temporary Staff,12,2018,33.84,9188,08/02/2018,KPIN,HAYS CONSTRUCTION & PROPERTY,
ICT,2510,IT Communications,MONTHLY CHGS,12,2018,1247.00,9192,03/02/2018,KPIN,EE LTD,
Purchasing & Supply,2303,Clothing & Footwear,Shoe Brush Applier 4 (EA) 157B,12,2018,6.25,9210,08/02/2018,KPIN,BUNZL CLEANING & HYGIENE SUPPLIES,
Purchasing & Supply,2024,Cleaning Equipment,Scrubbing Brush Union 8 (EA) 1,12,2018,4.10,9210,08/02/2018,KPIN,BUNZL CLEANING & HYGIENE SUPPLIES,
Purchasing & Supply,2024,Cleaning Equipment,Cleanline Pine Disinfectant QA,12,2018,1.37,9210,08/02/2018,KPIN,BUNZL CLEANING & HYGIENE SUPPLIES,
Purchasing & Supply,2024,Cleaning Equipment,CleanWorks Twine Socket Mop Ye,12,2018,5.56,9210,08/02/2018,KPIN,BUNZL CLEANING & HYGIENE SUPPLIES,
Purchasing & Supply,2024,Cleaning Equipment,6663 Scott Performance Hand To,12,2018,120.40,9210,08/02/2018,KPIN,BUNZL CLEANING & HYGIENE SUPPLIES,
Purchasing & Supply,2024,Cleaning Equipment,Flash All Purpose Lemon 5L (EA,12,2018,46.48,9210,08/02/2018,KPIN,BUNZL CLEANING & HYGIENE SUPPLIES,
Purchasing & Supply,2024,Cleaning Equipment,Dettol Antibacterial Surface C,12,2018,21.00,9210,08/02/2018,KPIN,BUNZL CLEANING & HYGIENE SUPPLIES,
Purchasing & Supply,2024,Cleaning Equipment,Cleanline Lavender Polish Aero,12,2018,5.10,9210,08/02/2018,KPIN,BUNZL CLEANING & HYGIENE SUPPLIES,
Purchasing & Supply,2024,Cleaning Equipment,Shades Air Fresh Summer Flower,12,2018,3.68,9210,08/02/2018,KPIN,BUNZL CLEANING & HYGIENE SUPPLIES,
Purchasing & Supply,2024,Cleaning Equipment,Nail Brush Plastic 3.5/9CM (EA,12,2018,3.96,9210,08/02/2018,KPIN,BUNZL CLEANING & HYGIENE SUPPLIES,
Purchasing & Supply,2024,Cleaning Equipment,Swarfega Lemon Hand Cleaner 4L,12,2018,12.55,9210,08/02/2018,KPIN,BUNZL CLEANING & HYGIENE SUPPLIES,
Purchasing & Supply,2024,Cleaning Equipment,Endbac Cleaner Sanitiser Powde,12,2018,16.40,9210,08/02/2018,KPIN,BUNZL CLEANING & HYGIENE SUPPLIES,
Purchasing & Supply,2024,Cleaning Equipment,CleanWorks Aluminium Mop Handl,12,2018,8.00,9210,08/02/2018,KPIN,BUNZL CLEANING & HYGIENE SUPPLIES,
Purchasing & Supply,1310,Cleaning products,Viakal Limescale Remover 500ML,12,2018,7.44,9210,08/02/2018,KPIN,BUNZL CLEANING & HYGIENE SUPPLIES,
Purchasing & Supply,1310,Cleaning products,8538 Scott 320 Toilet Roll 2Pl,12,2018,30.93,9210,08/02/2018,KPIN,BUNZL CLEANING & HYGIENE SUPPLIES,
Purchasing & Supply,1310,Cleaning products,Bryta Dishwasher Powder 5KG (E,12,2018,11.84,9210,08/02/2018,KPIN,BUNZL CLEANING & HYGIENE SUPPLIES,
Purchasing & Supply,1310,Cleaning products,Cleanline Non Biological Powde,12,2018,10.39,9210,08/02/2018,KPIN,BUNZL CLEANING & HYGIENE SUPPLIES,
Purchasing & Supply,1310,Cleaning products,General Purpose Detergent 5L (,12,2018,5.28,9210,08/02/2018,KPIN,BUNZL CLEANING & HYGIENE SUPPLIES,
Purchasing & Supply,1310,Cleaning products,Milton Professional Disinfecti,12,2018,30.78,9210,08/02/2018,KPIN,BUNZL CLEANING & HYGIENE SUPPLIES,
Technical Services,2030,Operational Equipment Support,Tork Wiping Paper Mini Centref,12,2018,69.72,9210,08/02/2018,KPIN,BUNZL CLEANING & HYGIENE SUPPLIES,
Stores,B205,Stocks & WIP (Purchasing & Supply Stores),CANCELLED BY KPIN10216,12,2018,1.39,9210,08/02/2018,KPIN,BUNZL CLEANING & HYGIENE SUPPLIES,
Purchasing & Supply,2024,Cleaning Equipment,6663 Scott Performance Hand To,12,2018,96.32,9227,08/02/2018,KPIN,BUNZL CLEANING & HYGIENE SUPPLIES,
Workshops Management,3050,Leasing Charges,Leasing Charges,12,2018,-82.89,9229,25/01/2018,KPIN,LEX AUTOLEASE LTD,
Technical Services,2030,Operational Equipment Support,CARRIAGE,12,2018,7.95,9249,09/02/2018,KPIN,SAFEQUIP LTD,
Technical Services,2030,Operational Equipment Support,WHITE / RED / BLUE IR LED'S,12,2018,1459.60,9249,09/02/2018,KPIN,SAFEQUIP LTD,
Property Services,0180,Casual and Temporary Staff,Casual and Temporary Staff,12,2018,1190.00,9252,09/02/2018,KPIN,HAYS CONSTRUCTION & PROPERTY,
ICT,2510,IT Communications,CALL / RENTAL CHARGES,12,2018,3218.67,9273,10/02/2018,KPIN,O2 (UK) LIMITED,
ICT,2510,IT Communications,CALL / RENTAL CHARGES,12,2018,178.52,9274,10/02/2018,KPIN,O2 (UK) LIMITED,
Workshops Management,3050,Leasing Charges,Leasing Charges,12,2018,-44.50,9290,25/01/2018,KPIN,LEX AUTOLEASE LTD,
Corporate Comms,4008,Media Expenses,TRIM certificates,12,2018,96.00,9293,12/02/2018,KPIN,BENSONS PRINTING COMPANY LTD,
Corporate Comms,4008,Media Expenses,Printing - WT recruit postcard,12,2018,191.00,9294,12/02/2018,KPIN,BENSONS PRINTING COMPANY LTD,
Community Safety,4021,Home Safety,2000 Fire in the Home booklets,12,2018,940.00,9296,12/02/2018,KPIN,BENSONS PRINTING COMPANY LTD,
Human Resources,0960,Occupational Health,Occupational Health,12,2018,148.00,9380,14/02/2018,KPIN,CHELMSFORD PRIORY,
Stores,B205,Stocks & WIP (Purchasing & Supply Stores),"Polish, Shoe, Black (Box of 12",12,2018,48.80,9393,08/02/2018,KPIN,CHARLES BIRCH (ESSEX) LTD,
Purchasing & Supply,2303,Clothing & Footwear,Black shoe polish own brand as,12,2018,17.50,9393,08/02/2018,KPIN,CHARLES BIRCH (ESSEX) LTD,
Stores,B205,Stocks & WIP (Purchasing & Supply Stores),Freight Misc,12,2018,6.95,9393,08/02/2018,KPIN,CHARLES BIRCH (ESSEX) LTD,
Purchasing & Supply,2012,Office/Admin Equipment (incl copiers),918-0009 Banner 1200x1200 Dryw,12,2018,79.12,9398,14/02/2018,KPIN,BANNER GROUP LIMITED,
Purchasing & Supply,2024,Cleaning Equipment,"Oven Cloths Heavy Duty 19x30"" ",12,2018,4.72,9400,14/02/2018,KPIN,BUNZL CLEANING & HYGIENE SUPPLIES,
Purchasing & Supply,2024,Cleaning Equipment,6663 Scott Performance Hand To,12,2018,72.24,9400,14/02/2018,KPIN,BUNZL CLEANING & HYGIENE SUPPLIES,
Purchasing & Supply,2024,Cleaning Equipment,Nail Brush Plastic 3.5/9CM (EA,12,2018,0.99,9400,14/02/2018,KPIN,BUNZL CLEANING & HYGIENE SUPPLIES,
Purchasing & Supply,2024,Cleaning Equipment,Jumbo Sponge 220x120x50MM (EA),12,2018,1.36,9400,14/02/2018,KPIN,BUNZL CLEANING & HYGIENE SUPPLIES,
Purchasing & Supply,2024,Cleaning Equipment,Wash Leather 2 Foot Square (EA,12,2018,11.40,9400,14/02/2018,KPIN,BUNZL CLEANING & HYGIENE SUPPLIES,
Purchasing & Supply,2024,Cleaning Equipment,8577 Scott Folded Toilet Tissu,12,2018,46.86,9400,14/02/2018,KPIN,BUNZL CLEANING & HYGIENE SUPPLIES,
Purchasing & Supply,1310,Cleaning products,Bryta Dishwasher Powder 5KG (E,12,2018,11.84,9400,14/02/2018,KPIN,BUNZL CLEANING & HYGIENE SUPPLIES,
Human Resources,2016,Fitness Equipment,Investigate the cost to repiar,12,2018,35.00,9401,09/02/2018,KPIN,SPORTSAFE UK LTD,
Purchasing & Supply,2024,Cleaning Equipment,Dettol Antibacterial Surface C,12,2018,26.25,9402,14/02/2018,KPIN,BUNZL CLEANING & HYGIENE SUPPLIES,
Purchasing & Supply,2024,Cleaning Equipment,6663 Scott Performance Hand To,12,2018,96.32,9402,14/02/2018,KPIN,BUNZL CLEANING & HYGIENE SUPPLIES,
Purchasing & Supply,2024,Cleaning Equipment,Cleanline Glass & Stainless St,12,2018,6.84,9402,14/02/2018,KPIN,BUNZL CLEANING & HYGIENE SUPPLIES,
Purchasing & Supply,2024,Cleaning Equipment,Jumbo Sponge 220x120x50MM (EA),12,2018,3.40,9402,14/02/2018,KPIN,BUNZL CLEANING & HYGIENE SUPPLIES,
Project 2020,0180,Casual and Temporary Staff,Casual and Temporary Staff,12,2018,549.37,9404,09/02/2018,KPIN,REED SPECIALIST RECRUITMENT LIMITED,
Police Collaboration,0180,Casual and Temporary Staff,Casual and Temporary Staff,12,2018,549.37,9404,09/02/2018,KPIN,REED SPECIALIST RECRUITMENT LIMITED,
Police Collaboration,0180,Casual and Temporary Staff,Casual and Temporary Staff,12,2018,-549.37,9404,09/02/2018,KPIN,REED SPECIALIST RECRUITMENT LIMITED,
Safer Comms Admin,0180,Casual and Temporary Staff,Casual and Temporary Staff,12,2018,215.25,9405,09/02/2018,KPIN,REED SPECIALIST RECRUITMENT LIMITED,
Safer Comms Admin,0180,Casual and Temporary Staff,Casual and Temporary Staff,12,2018,242.88,9406,09/02/2018,KPIN,REED SPECIALIST RECRUITMENT LIMITED,
Property Services,1050,Building Maintenance,Evidence of a water leak on ce,12,2018,1352.31,9416,08/02/2018,KPIN,R J SPECIALIST COATINGS,
Training,0715,In House Operational Training,In House Operational Training,12,2018,430.00,9425,12/02/2018,KPIN,CAMBRIDGE MARKETING COLLEGE,
ICT,4005,IT Consumables,Precision Tower 3620 XCTO Base,12,2018,1833.00,9427,15/02/2018,KPIN,DATA PRO IT LIMITED,
ICT,4005,IT Consumables,4 TB USB-C + USB 3.0 Portable ,12,2018,183.00,9427,15/02/2018,KPIN,DATA PRO IT LIMITED,
Property Services,4003,Postage Direct Mailing & Carriage,Visitor Sign In Sheets and wal,12,2018,1155.50,9454,12/02/2018,KPIN,SG WORLD LTD,
Community Safety,0180,Casual and Temporary Staff,Casual and Temporary Staff,12,2018,582.73,9456,11/02/2018,KPIN,PURE RESOURCING SOLUTIONS LTD,
Human Resources,0180,Casual and Temporary Staff,Casual and Temporary Staff,12,2018,269.40,9457,11/02/2018,KPIN,PURE RESOURCING SOLUTIONS LTD,
Community Safety,0180,Casual and Temporary Staff,Casual and Temporary Staff,12,2018,233.25,9458,11/02/2018,KPIN,PURE RESOURCING SOLUTIONS LTD,
ICT,0180,Casual and Temporary Staff,Casual and Temporary Staff,12,2018,652.86,9459,11/02/2018,KPIN,PURE RESOURCING SOLUTIONS LTD,
ICT,0180,Casual and Temporary Staff,Casual and Temporary Staff,12,2018,33.70,9459,11/02/2018,KPIN,PURE RESOURCING SOLUTIONS LTD,
ICT,4005,IT Consumables,Headsets for Lync phones,12,2018,256.00,9463,16/02/2018,KPIN,HEADSETS4BUSINESS LTD,
ICT,B217,Payments in Advance,Period 3 - March,12,2018,8404.41,9469,16/02/2018,KPIN,REMSDAQ LTD,
ICT,2040,IT Maintenance and Contracts,Period 3 - March,12,2018,-8404.41,9469,16/02/2018,KPIN,REMSDAQ LTD,
ICT,2040,IT Maintenance and Contracts,Period 3 - March,12,2018,8404.41,9469,16/02/2018,KPIN,REMSDAQ LTD,
Police Collaboration,0180,Casual and Temporary Staff,Casual and Temporary Staff,12,2018,433.08,9471,16/02/2018,KPIN,REED SPECIALIST RECRUITMENT LIMITED,
Police Collaboration,0180,Casual and Temporary Staff,Casual and Temporary Staff,12,2018,-433.08,9471,16/02/2018,KPIN,REED SPECIALIST RECRUITMENT LIMITED,
Project 2020,0180,Casual and Temporary Staff,Casual and Temporary Staff,12,2018,433.08,9471,16/02/2018,KPIN,REED SPECIALIST RECRUITMENT LIMITED,
Purchasing & Supply,1310,Cleaning products,Bryta Dishwasher Powder 5KG (E,12,2018,11.84,9483,16/02/2018,KPIN,BUNZL CLEANING & HYGIENE SUPPLIES,
Purchasing & Supply,2024,Cleaning Equipment,Dettol Antibacterial Surface C,12,2018,31.50,9483,16/02/2018,KPIN,BUNZL CLEANING & HYGIENE SUPPLIES,
Purchasing & Supply,2024,Cleaning Equipment,Cleanline Glass & Stainless St,12,2018,4.56,9483,16/02/2018,KPIN,BUNZL CLEANING & HYGIENE SUPPLIES,
Purchasing & Supply,2024,Cleaning Equipment,6332 Kleenex Hair & Body Showe,12,2018,91.64,9483,16/02/2018,KPIN,BUNZL CLEANING & HYGIENE SUPPLIES,
Purchasing & Supply,2024,Cleaning Equipment,Shield 3 Way Toilet Cleaner 1L,12,2018,22.70,9483,16/02/2018,KPIN,BUNZL CLEANING & HYGIENE SUPPLIES,
Purchasing & Supply,2024,Cleaning Equipment,Shades Air Fresh Summer Flower,12,2018,9.20,9483,16/02/2018,KPIN,BUNZL CLEANING & HYGIENE SUPPLIES,
Purchasing & Supply,2024,Cleaning Equipment,6663 Scott Performance Hand To,12,2018,72.24,9483,16/02/2018,KPIN,BUNZL CLEANING & HYGIENE SUPPLIES,
Property Services,1050,Building Maintenance,Back panel - Lincat food displ,12,2018,410.00,9487,19/02/2018,KPIN,WARDS CATERING EQUIPMENT SERVICES,
Operations,4110,Travelling Expenses,Travelling Expenses,12,2018,-37.40,9488,19/02/2018,KPIN,CAPITA TRAVEL AND EVENTS LTD,
Operations,4110,Travelling Expenses,Travelling Expenses,12,2018,59.60,9488,19/02/2018,KPIN,CAPITA TRAVEL AND EVENTS LTD,
Operations,4110,Travelling Expenses,Travelling Expenses,12,2018,3.50,9488,19/02/2018,KPIN,CAPITA TRAVEL AND EVENTS LTD,
Operations,4110,Travelling Expenses,Travelling Expenses,12,2018,47.80,9488,19/02/2018,KPIN,CAPITA TRAVEL AND EVENTS LTD,
Operations,4110,Travelling Expenses,Travelling Expenses,12,2018,3.50,9488,19/02/2018,KPIN,CAPITA TRAVEL AND EVENTS LTD,
Operations,4110,Travelling Expenses,Travelling Expenses,12,2018,52.40,9488,19/02/2018,KPIN,CAPITA TRAVEL AND EVENTS LTD,
Operations,4110,Travelling Expenses,Travelling Expenses,12,2018,3.50,9488,19/02/2018,KPIN,CAPITA TRAVEL AND EVENTS LTD,
Operations,4110,Travelling Expenses,Travelling Expenses,12,2018,3.50,9488,19/02/2018,KPIN,CAPITA TRAVEL AND EVENTS LTD,
Operations,4110,Travelling Expenses,Travelling Expenses,12,2018,-37.40,9488,19/02/2018,KPIN,CAPITA TRAVEL AND EVENTS LTD,
Operations,4110,Travelling Expenses,Travelling Expenses,12,2018,65.80,9488,19/02/2018,KPIN,CAPITA TRAVEL AND EVENTS LTD,
Finance & Pay,0943,LGPS Early Retirement Costs,LGPS Early Retirement Costs,12,2018,9095.09,9489,13/02/2018,KPIN,ESSEX PENSION FUND,
Community Safety,4019,Community Safety,Community Safety,12,2018,0.00,9496,19/02/2018,KPIN,PRESERVATION EQUIPMENT LTD,
Community Safety,4019,Community Safety,737 - 9514 Polyester 'L' Velop,12,2018,84.60,9496,19/02/2018,KPIN,PRESERVATION EQUIPMENT LTD,
Community Safety,4019,Community Safety,737 - 0810 Polyester 'L' Velop,12,2018,76.45,9496,19/02/2018,KPIN,PRESERVATION EQUIPMENT LTD,
Community Safety,4019,Community Safety,780 - 3040 - Labels (12 per pa,12,2018,40.75,9496,19/02/2018,KPIN,PRESERVATION EQUIPMENT LTD,
Community Safety,4019,Community Safety,735-1713 - 30 x Clamshell Stor,12,2018,217.50,9496,19/02/2018,KPIN,PRESERVATION EQUIPMENT LTD,
Technical Services,2030,Operational Equipment Support,Cost of parts used for servici,12,2018,59.75,9501,20/02/2018,KPIN,SUFFOLK MARINE SAFETY LTD,
Technical Services,2030,Operational Equipment Support,Lifejacket servicing,12,2018,292.68,9501,20/02/2018,KPIN,SUFFOLK MARINE SAFETY LTD,
Technical Services,2030,Operational Equipment Support,Collection & Delivery,12,2018,19.00,9501,20/02/2018,KPIN,SUFFOLK MARINE SAFETY LTD,
Purchasing & Supply,1310,Cleaning products,KLEENEX HAND CLEANSER,12,2018,54.40,9510,19/02/2018,KPIN,BUNZL CLEANING & HYGIENE SUPPLIES,
Purchasing & Supply,1310,Cleaning products,General Purpose Detergent 5L (,12,2018,31.68,9510,19/02/2018,KPIN,BUNZL CLEANING & HYGIENE SUPPLIES,
Catering,2017,Canteen Equipment,RB6 General Purpose Hand Scour,12,2018,2.04,9510,19/02/2018,KPIN,BUNZL CLEANING & HYGIENE SUPPLIES,
Training,0715,In House Operational Training,In House Operational Training,12,2018,90.00,9513,16/02/2018,KPIN,SKILLS FOR JUSTICE ENTERPRISE LTD,
Operations - USAR,2030,Operational Equipment Support,SH321NAV XL - 5:11 Stryker L/S,12,2018,81.60,9514,15/02/2018,KPIN,TACTREE,
Operations - USAR,2030,Operational Equipment Support,SH321NAV Large - 5:11 Stryker,12,2018,81.60,9514,15/02/2018,KPIN,TACTREE,
Operations - USAR,2030,Operational Equipment Support,SH321NAV MD - 5:11 Stryker L/S,12,2018,81.60,9514,15/02/2018,KPIN,TACTREE,
Operations - USAR,2030,Operational Equipment Support,Velcro Badges,12,2018,26.94,9514,15/02/2018,KPIN,TACTREE,
Stores,B205,Stocks & WIP (Purchasing & Supply Stores),Cleaning Cloth:Rags White 7Lb,12,2018,98.25,9515,16/02/2018,KPIN,S G SHIELDS (BENFLEET) LTD,
Training,0702,External Training - L&D Panel,External Training - L&D Panel,12,2018,915.00,9516,06/02/2018,KPIN,THE OUTREACH ORGANISATION LTD,
Training,4111,Subsistence Allowances,Subsistence Allowances,12,2018,22.00,9516,06/02/2018,KPIN,THE OUTREACH ORGANISATION LTD,
Training,4111,Subsistence Allowances,Subsistence Allowances,12,2018,200.00,9516,06/02/2018,KPIN,THE OUTREACH ORGANISATION LTD,
Training,0715,In House Operational Training,In House Operational Training,12,2018,1800.00,9517,20/02/2018,KPIN,WRITTLE UNIVERSITY COLLEGE,
Training,0715,In House Operational Training,In House Operational Training,12,2018,-1800.00,9517,20/02/2018,KPIN,WRITTLE UNIVERSITY COLLEGE,
Training,B217,Payments in Advance,05 - 06/04/2018 - Large Animal,12,2018,1800.00,9517,20/02/2018,KPIN,WRITTLE UNIVERSITY COLLEGE,
Training,B217,Payments in Advance,29 - 30/05/2018 - Large Animal,12,2018,1800.00,9518,20/02/2018,KPIN,WRITTLE UNIVERSITY COLLEGE,
Training,0715,In House Operational Training,In House Operational Training,12,2018,-1800.00,9518,20/02/2018,KPIN,WRITTLE UNIVERSITY COLLEGE,
Training,0715,In House Operational Training,In House Operational Training,12,2018,1800.00,9518,20/02/2018,KPIN,WRITTLE UNIVERSITY COLLEGE,
Purchasing & Supply,4001,Stationery,PDF File copies,12,2018,40.00,9523,20/02/2018,KPIN,DATAGRAPHIC GROUP LTD,
Purchasing & Supply,4001,Stationery,Monthly Printing of Payslips A,12,2018,425.43,9523,20/02/2018,KPIN,DATAGRAPHIC GROUP LTD,
Purchasing & Supply,4001,Stationery,Direct Delivery to Head Office,12,2018,23.40,9523,20/02/2018,KPIN,DATAGRAPHIC GROUP LTD,
Purchasing & Supply,4001,Stationery,Postage to Sites,12,2018,102.14,9523,20/02/2018,KPIN,DATAGRAPHIC GROUP LTD,
Finance & Pay,4203,Risk Protection - Third Party Costs,19173011671 ,12,2018,474.20,9526,14/02/2018,KPIN,ZURICH MUNICIPAL,
Finance & Pay,4203,Risk Protection - Third Party Costs,19173011671,12,2018,6275.98,9526,14/02/2018,KPIN,ZURICH MUNICIPAL,
Finance & Pay,4203,Risk Protection - Third Party Costs,19173011671 ,12,2018,8124.91,9526,14/02/2018,KPIN,ZURICH MUNICIPAL,
Water Services,2087,Water Services,HR66118,12,2018,518.00,9534,07/02/2018,KPIN,AFFINITY WATER LIMITED (HYDRANTS),
Workshops Management,3050,Leasing Charges,Leasing Charges,12,2018,279.54,9535,12/02/2018,KPIN,LEX AUTOLEASE LTD,
Water Services,2087,Water Services,HR66165,12,2018,518.00,9536,07/02/2018,KPIN,AFFINITY WATER LIMITED (HYDRANTS),
Water Services,2087,Water Services,HR66124,12,2018,518.00,9537,08/02/2018,KPIN,AFFINITY WATER LIMITED (HYDRANTS),
Water Services,2087,Water Services,HR66105,12,2018,518.00,9538,08/02/2018,KPIN,AFFINITY WATER LIMITED (HYDRANTS),
Water Services,2087,Water Services,HR65993,12,2018,518.00,9539,08/02/2018,KPIN,AFFINITY WATER LIMITED (HYDRANTS),
Water Services,2087,Water Services,HR66000,12,2018,518.00,9540,08/02/2018,KPIN,AFFINITY WATER LIMITED (HYDRANTS),
Water Services,2087,Water Services,HR65976,12,2018,518.00,9541,08/02/2018,KPIN,AFFINITY WATER LIMITED (HYDRANTS),
Water Services,2087,Water Services,HR65954,12,2018,518.00,9542,08/02/2018,KPIN,AFFINITY WATER LIMITED (HYDRANTS),
Water Services,2087,Water Services,HR65959,12,2018,518.00,9543,08/02/2018,KPIN,AFFINITY WATER LIMITED (HYDRANTS),
Water Services,2087,Water Services,HR66039,12,2018,882.00,9544,08/02/2018,KPIN,AFFINITY WATER LIMITED (HYDRANTS),
Water Services,2087,Water Services,HR66085,12,2018,882.00,9545,08/02/2018,KPIN,AFFINITY WATER LIMITED (HYDRANTS),
Water Services,2087,Water Services,HR66003,12,2018,882.00,9548,08/02/2018,KPIN,AFFINITY WATER LIMITED (HYDRANTS),
Training,4111,Subsistence Allowances,Subsistence Allowances,12,2018,154.00,9550,14/02/2018,KPIN,SARAHS CATERING LIMITED,
Training,4111,Subsistence Allowances,Subsistence Allowances,12,2018,20.00,9550,14/02/2018,KPIN,SARAHS CATERING LIMITED,
Not Analysed,B114,Fixed Assets Under Construction ITC Equipment,Replacing DCS Terminals with A,12,2018,225.08,9551,20/02/2018,KPIN,C S ELECTRICAL ESSEX LTD,
Not Analysed,B114,Fixed Assets Under Construction ITC Equipment,Replacing DCS Terminals with A,12,2018,-225.08,9551,20/02/2018,KPIN,C S ELECTRICAL ESSEX LTD,
ICT,4005,IT Consumables,Replacing DCS Terminals with A,12,2018,225.08,9551,20/02/2018,KPIN,C S ELECTRICAL ESSEX LTD,
Property Services,1060,Grounds Maintenance,Landscaping - February,12,2018,53.17,9553,19/02/2018,KPIN,PINNACLE ESSEX,
Property Services,1060,Grounds Maintenance,Landscaping - February,12,2018,55.83,9553,19/02/2018,KPIN,PINNACLE ESSEX,
Property Services,1060,Grounds Maintenance,Landscaping - February,12,2018,53.17,9553,19/02/2018,KPIN,PINNACLE ESSEX,
Property Services,1060,Grounds Maintenance,Landscaping - February,12,2018,208.92,9553,19/02/2018,KPIN,PINNACLE ESSEX,
Property Services,1060,Grounds Maintenance,Landscaping - February,12,2018,92.25,9553,19/02/2018,KPIN,PINNACLE ESSEX,
Property Services,1060,Grounds Maintenance,Landscaping - February,12,2018,54.50,9553,19/02/2018,KPIN,PINNACLE ESSEX,
Property Services,1060,Grounds Maintenance,Landscaping - February,12,2018,55.83,9553,19/02/2018,KPIN,PINNACLE ESSEX,
Property Services,1060,Grounds Maintenance,Landscaping - February,12,2018,241.58,9553,19/02/2018,KPIN,PINNACLE ESSEX,
Property Services,1060,Grounds Maintenance,Landscaping - February,12,2018,64.42,9553,19/02/2018,KPIN,PINNACLE ESSEX,
Property Services,1060,Grounds Maintenance,Landscaping - February,12,2018,83.25,9553,19/02/2018,KPIN,PINNACLE ESSEX,
Property Services,1060,Grounds Maintenance,Landscaping - February,12,2018,55.83,9553,19/02/2018,KPIN,PINNACLE ESSEX,
Property Services,1060,Grounds Maintenance,Landscaping - February,12,2018,132.58,9553,19/02/2018,KPIN,PINNACLE ESSEX,
Property Services,1330,Building Cleaning,Monthly Clean including kitche,12,2018,966.00,9556,19/02/2018,KPIN,PINNACLE ESSEX,
Property Services,1330,Building Cleaning,Monthly Clean including kitche,12,2018,108.75,9556,19/02/2018,KPIN,PINNACLE ESSEX,
Property Services,1330,Building Cleaning,Monthly Clean including kitche,12,2018,1353.42,9556,19/02/2018,KPIN,PINNACLE ESSEX,
Property Services,1330,Building Cleaning,Monthly Clean including kitche,12,2018,1986.33,9556,19/02/2018,KPIN,PINNACLE ESSEX,
Property Services,1330,Building Cleaning,Monthly Clean including kitche,12,2018,2256.50,9556,19/02/2018,KPIN,PINNACLE ESSEX,
Property Services,1330,Building Cleaning,Monthly Clean including kitche,12,2018,217.50,9556,19/02/2018,KPIN,PINNACLE ESSEX,
Human Resources,0960,Occupational Health,Occupational Health,12,2018,148.00,9559,21/02/2018,KPIN,CHELMSFORD PRIORY,
Human Resources,0960,Occupational Health,Occupational Health,12,2018,148.00,9560,21/02/2018,KPIN,CHELMSFORD PRIORY,
ICT,4005,IT Consumables,Call out to Ground floor Front,12,2018,95.00,9563,16/02/2018,KPIN,UTILIZE PLC,
Water Services,2087,Water Services,Calibration of Cable Avoidance,12,2018,285.00,9567,12/02/2018,KPIN,SUBTECH SAFETY LIMITED,
Water Services,2087,Water Services,Collection & delivery,12,2018,30.00,9567,12/02/2018,KPIN,SUBTECH SAFETY LIMITED,
Catering,0180,Casual and Temporary Staff,Casual and Temporary Staff,12,2018,-272.64,9576,19/02/2018,KPIN,FIRST CALL EMPLOYMENT LTD,
Training,4111,Subsistence Allowances,Subsistence Allowances,12,2018,49.50,9577,12/02/2018,KPIN,THE SANDWICH MAN,
Training,4111,Subsistence Allowances,Subsistence Allowances,12,2018,40.50,9577,12/02/2018,KPIN,THE SANDWICH MAN,
Training,4111,Subsistence Allowances,Subsistence Allowances,12,2018,33.00,9577,12/02/2018,KPIN,THE SANDWICH MAN,
Training,4111,Subsistence Allowances,Subsistence Allowances,12,2018,66.00,9577,12/02/2018,KPIN,THE SANDWICH MAN,
Training,4111,Subsistence Allowances,Subsistence Allowances,12,2018,55.00,9577,12/02/2018,KPIN,THE SANDWICH MAN,
Training,4111,Subsistence Allowances,Subsistence Allowances,12,2018,55.00,9577,12/02/2018,KPIN,THE SANDWICH MAN,
Training,4111,Subsistence Allowances,Subsistence Allowances,12,2018,66.00,9577,12/02/2018,KPIN,THE SANDWICH MAN,
Training,4111,Subsistence Allowances,Subsistence Allowances,12,2018,66.00,9577,12/02/2018,KPIN,THE SANDWICH MAN,
Training,4111,Subsistence Allowances,Subsistence Allowances,12,2018,110.00,9577,12/02/2018,KPIN,THE SANDWICH MAN,
Training,4111,Subsistence Allowances,Subsistence Allowances,12,2018,11.00,9577,12/02/2018,KPIN,THE SANDWICH MAN,
Training,4111,Subsistence Allowances,Subsistence Allowances,12,2018,49.50,9577,12/02/2018,KPIN,THE SANDWICH MAN,
Training,4111,Subsistence Allowances,Subsistence Allowances,12,2018,5.50,9577,12/02/2018,KPIN,THE SANDWICH MAN,
Purchasing & Supply,1310,Cleaning products,Builders Bucket Heavy Duty Bla,12,2018,6.44,9578,21/02/2018,KPIN,BUNZL CLEANING & HYGIENE SUPPLIES,
Purchasing & Supply,1310,Cleaning products,Viakal Limescale Remover 500ML,12,2018,3.72,9578,21/02/2018,KPIN,BUNZL CLEANING & HYGIENE SUPPLIES,
Purchasing & Supply,2024,Cleaning Equipment,White Tea Towel 50X40CM (EA) T,12,2018,4.40,9578,21/02/2018,KPIN,BUNZL CLEANING & HYGIENE SUPPLIES,
Purchasing & Supply,2024,Cleaning Equipment,CleanWorks Twine Socket Mop Ye,12,2018,8.34,9578,21/02/2018,KPIN,BUNZL CLEANING & HYGIENE SUPPLIES,
Purchasing & Supply,2024,Cleaning Equipment,Cleanline Lavender Polish Aero,12,2018,1.70,9578,21/02/2018,KPIN,BUNZL CLEANING & HYGIENE SUPPLIES,
Purchasing & Supply,2024,Cleaning Equipment,Floor Cloth Heavy 48x45CM (EA),12,2018,2.08,9578,21/02/2018,KPIN,BUNZL CLEANING & HYGIENE SUPPLIES,
Purchasing & Supply,2024,Cleaning Equipment,Shades Air Fresh Summer Flower,12,2018,11.04,9578,21/02/2018,KPIN,BUNZL CLEANING & HYGIENE SUPPLIES,
Purchasing & Supply,2024,Cleaning Equipment,6663 Scott Performance Hand To,12,2018,144.48,9578,21/02/2018,KPIN,BUNZL CLEANING & HYGIENE SUPPLIES,
Purchasing & Supply,2024,Cleaning Equipment,Dustpan & Brush Set Soft Blue ,12,2018,6.24,9578,21/02/2018,KPIN,BUNZL CLEANING & HYGIENE SUPPLIES,
Purchasing & Supply,2024,Cleaning Equipment,Nail Brush Plastic 3.5/9CM (EA,12,2018,1.32,9578,21/02/2018,KPIN,BUNZL CLEANING & HYGIENE SUPPLIES,
Purchasing & Supply,2024,Cleaning Equipment,Stockinette Dishcloth Super Bl,12,2018,6.92,9578,21/02/2018,KPIN,BUNZL CLEANING & HYGIENE SUPPLIES,
Purchasing & Supply,2024,Cleaning Equipment,"Oven Cloths Heavy Duty 19x30"" ",12,2018,4.72,9578,21/02/2018,KPIN,BUNZL CLEANING & HYGIENE SUPPLIES,
Purchasing & Supply,2024,Cleaning Equipment,CleanWorks Aluminium Mop Handl,12,2018,9.60,9578,21/02/2018,KPIN,BUNZL CLEANING & HYGIENE SUPPLIES,
Purchasing & Supply,2024,Cleaning Equipment,Dettol Antibacterial Surface C,12,2018,21.00,9578,21/02/2018,KPIN,BUNZL CLEANING & HYGIENE SUPPLIES,
Purchasing & Supply,2024,Cleaning Equipment,Cleanline Thin Bleach 4.5% 5L ,12,2018,2.96,9578,21/02/2018,KPIN,BUNZL CLEANING & HYGIENE SUPPLIES,
Purchasing & Supply,2024,Cleaning Equipment,Cleanline Glass & Stainless St,12,2018,6.84,9578,21/02/2018,KPIN,BUNZL CLEANING & HYGIENE SUPPLIES,
Purchasing & Supply,2024,Cleaning Equipment,8577 Scott Folded Toilet Tissu,12,2018,93.72,9578,21/02/2018,KPIN,BUNZL CLEANING & HYGIENE SUPPLIES,
Purchasing & Supply,2024,Cleaning Equipment,Dish Washing Brush Plastic Sma,12,2018,1.48,9578,21/02/2018,KPIN,BUNZL CLEANING & HYGIENE SUPPLIES,
Catering,2017,Canteen Equipment,RB6 General Purpose Hand Scour,12,2018,4.08,9578,21/02/2018,KPIN,BUNZL CLEANING & HYGIENE SUPPLIES,
Community Safety,0180,Casual and Temporary Staff,Casual and Temporary Staff,12,2018,-626.24,9586,21/02/2018,KPIN,SUCCESS RECRUIT LIMITED,
Community Safety,0180,Casual and Temporary Staff,Casual and Temporary Staff,12,2018,626.24,9586,21/02/2018,KPIN,SUCCESS RECRUIT LIMITED,
Police Collaboration,0180,Casual and Temporary Staff,Casual and Temporary Staff,12,2018,626.24,9586,21/02/2018,KPIN,SUCCESS RECRUIT LIMITED,
Community Safety,0180,Casual and Temporary Staff,Casual and Temporary Staff,12,2018,286.88,9587,18/02/2018,KPIN,PURE RESOURCING SOLUTIONS LTD,
Community Safety,0180,Casual and Temporary Staff,Casual and Temporary Staff,12,2018,178.83,9590,18/02/2018,KPIN,PURE RESOURCING SOLUTIONS LTD,
Human Resources,0180,Casual and Temporary Staff,Casual and Temporary Staff,12,2018,386.14,9591,18/02/2018,KPIN,PURE RESOURCING SOLUTIONS LTD,
Human Resources,0180,Casual and Temporary Staff,Casual and Temporary Staff,12,2018,143.68,9591,18/02/2018,KPIN,PURE RESOURCING SOLUTIONS LTD,
Community Safety,0180,Casual and Temporary Staff,Casual and Temporary Staff,12,2018,589.04,9592,18/02/2018,KPIN,PURE RESOURCING SOLUTIONS LTD,
Purchasing & Supply,2024,Cleaning Equipment,Handle Pine 60x1 1/8 (EA) 15.1,12,2018,1.42,9594,21/02/2018,KPIN,BUNZL CLEANING & HYGIENE SUPPLIES,
Purchasing & Supply,2024,Cleaning Equipment,Dustpan & Brush Set Soft Blue ,12,2018,2.08,9594,21/02/2018,KPIN,BUNZL CLEANING & HYGIENE SUPPLIES,
Purchasing & Supply,2024,Cleaning Equipment,Cleanline Thin Bleach 4.5% 5L ,12,2018,2.96,9594,21/02/2018,KPIN,BUNZL CLEANING & HYGIENE SUPPLIES,
Purchasing & Supply,2024,Cleaning Equipment,Stockinette Dishcloth Super Bl,12,2018,3.46,9594,21/02/2018,KPIN,BUNZL CLEANING & HYGIENE SUPPLIES,
Purchasing & Supply,2024,Cleaning Equipment,Cleanline Eco Hard Surface Cle,12,2018,12.22,9594,21/02/2018,KPIN,BUNZL CLEANING & HYGIENE SUPPLIES,
Purchasing & Supply,2024,Cleaning Equipment,Cleanline Pine Disinfectant QA,12,2018,2.74,9594,21/02/2018,KPIN,BUNZL CLEANING & HYGIENE SUPPLIES,
Purchasing & Supply,2024,Cleaning Equipment,CleanWorks Twine Socket Mop Ye,12,2018,8.34,9594,21/02/2018,KPIN,BUNZL CLEANING & HYGIENE SUPPLIES,
Purchasing & Supply,2024,Cleaning Equipment,Dettol Antibacterial Surface C,12,2018,10.50,9594,21/02/2018,KPIN,BUNZL CLEANING & HYGIENE SUPPLIES,
Property Services,1510,Rates,RATES 2016/17,12,2018,261.00,9595,16/02/2018,KPIN,COLCHESTER BOROUGH COUNCIL,
Property Services,1510,Rates,RATES 2017/18,12,2018,419.87,9596,15/02/2018,KPIN,COLCHESTER BOROUGH COUNCIL,
Property Services,1330,Building Cleaning,Confidential Waste - FEB,12,2018,50.00,9651,22/02/2018,KPIN,SHRED 4 SECURITY LTD,
Property Services,3436,Fuel Pump Maintenance,To check gauges - delivery amo,12,2018,323.24,9652,22/02/2018,KPIN,VECTEC LTD,
Property Services,1330,Building Cleaning,Confidential Waste - FEB,12,2018,50.00,9656,22/02/2018,KPIN,SHRED 4 SECURITY LTD,
ICT,2510,IT Communications,SIMS,12,2018,34.98,9657,17/02/2018,KPIN,HUTCHISON 3G UK LTD,
ICT,4005,IT Consumables,RE KPIN 8546,12,2018,-94.15,9658,16/02/2018,KPIN,CPC,
Human Resources,2903,Consultancy Fees,Mediation Event,12,2018,950.00,9667,22/02/2018,KPIN,UK MEDIATION LTD,
Property Services,1499,Furniture and Fittings,12no JEMINI ULTRA MULTI PURP S,12,2018,252.00,9669,23/02/2018,KPIN,BATES OFFICE SERVICES LIMITED,
ICT,2510,IT Communications,Maintenance Business Premium C,12,2018,118.12,9670,20/02/2018,KPIN,BT GLOBAL SERVICES,
ICT,2510,IT Communications,Configuration management - Arc,12,2018,9.23,9670,20/02/2018,KPIN,BT GLOBAL SERVICES,
ICT,2510,IT Communications,CSAC327971 IP Clear Year 1 Ann,12,2018,1470.00,9670,20/02/2018,KPIN,BT GLOBAL SERVICES,
ICT,2510,IT Communications,Fault Management Year 1,12,2018,8.71,9670,20/02/2018,KPIN,BT GLOBAL SERVICES,
ICT,2510,IT Communications,Retrospective PO for Microsoft,12,2018,2572.50,9670,20/02/2018,KPIN,BT GLOBAL SERVICES,
ICT,2510,IT Communications,CSAC327971 IP Clear Year 1 Ann,12,2018,689.00,9670,20/02/2018,KPIN,BT GLOBAL SERVICES,
Property Services,4003,Postage Direct Mailing & Carriage,Karabiners sent back to Cotswo,12,2018,13.26,9671,16/02/2018,KPIN,T N T UK LTD,
Property Services,4003,Postage Direct Mailing & Carriage,Parcel to Sure Moisture Meters,12,2018,13.27,9671,16/02/2018,KPIN,T N T UK LTD,
Property Services,4003,Postage Direct Mailing & Carriage,Parcel to Tactree ,12,2018,13.27,9671,16/02/2018,KPIN,T N T UK LTD,
Stores,B205,Stocks & WIP (Purchasing & Supply Stores),Traffic Tape. Red/White + Frs.,12,2018,79.50,9672,21/02/2018,KPIN,PRO-TECT SIGNS LTD,
Stores,B205,Stocks & WIP (Purchasing & Supply Stores),Tape. Hazard Warning.       Bl,12,2018,48.00,9672,21/02/2018,KPIN,PRO-TECT SIGNS LTD,
Stores,B205,Stocks & WIP (Purchasing & Supply Stores),Freight Misc,12,2018,20.00,9672,21/02/2018,KPIN,PRO-TECT SIGNS LTD,
ICT,2040,IT Maintenance and Contracts,Credit  KPIN 4303 (OCT),12,2018,-1223.93,9673,22/02/2018,KPIN,REMSDAQ LTD,
ICT,2040,IT Maintenance and Contracts,Credit KPIN 4971 (NOV),12,2018,-2855.85,9673,22/02/2018,KPIN,REMSDAQ LTD,
Purchasing & Supply,4001,Stationery,FB11 Stores Requisition Pad x ,12,2018,278.00,9674,22/02/2018,KPIN,THE PRINTING PLACE LIMITED,
Training,0702,External Training - L&D Panel,External Training - L&D Panel,12,2018,800.00,9675,29/09/2017,KPIN,CHALLENGE CONSULTANCY LTD,
Training,4111,Subsistence Allowances,Subsistence Allowances,12,2018,32.51,9675,29/09/2017,KPIN,CHALLENGE CONSULTANCY LTD,
Property Services,1499,Furniture and Fittings,Need keys for locked lockers -,12,2018,1098.60,9677,23/02/2018,KPIN,BRENTWOOD LOCK & SAFE CO LTD,
Stores,B205,Stocks & WIP (Purchasing & Supply Stores),"Resusciade, mouth to mouth shi",12,2018,85.00,9681,23/02/2018,KPIN,S P SERVICES (UK) LTD,
Stores,B205,Stocks & WIP (Purchasing & Supply Stores),Mask - Oxygene Therapy  Adult ,12,2018,47.50,9681,23/02/2018,KPIN,S P SERVICES (UK) LTD,
Stores,B205,Stocks & WIP (Purchasing & Supply Stores),Freight Misc,12,2018,4.95,9681,23/02/2018,KPIN,S P SERVICES (UK) LTD,
Operations,2026,First Aid,CL250 - 250ML EYE WASH ,12,2018,1.95,9681,23/02/2018,KPIN,S P SERVICES (UK) LTD,
Property Services,1040,Planned Works,Vermin Control Bi Monthly.  Ch,12,2018,65.00,9682,20/02/2018,KPIN,MID-ESSEX PEST CONTROL,
Property Services,1040,Planned Works,Vermin Control Bi Monthly.  Ch,12,2018,65.00,9683,19/02/2018,KPIN,MID-ESSEX PEST CONTROL,
Property Services,1060,Grounds Maintenance,Grounds Maintenance,12,2018,234.44,9684,28/02/2018,KPIN,CONTOUR LANDSCAPES LTD,
Property Services,1060,Grounds Maintenance,Grounds Maintenance,12,2018,27.58,9684,28/02/2018,KPIN,CONTOUR LANDSCAPES LTD,
Property Services,1060,Grounds Maintenance,Grounds Maintenance,12,2018,30.89,9684,28/02/2018,KPIN,CONTOUR LANDSCAPES LTD,
Property Services,1060,Grounds Maintenance,Grounds Maintenance,12,2018,231.75,9684,28/02/2018,KPIN,CONTOUR LANDSCAPES LTD,
Technical Services,2032,Operational Equip-Initial Purchase,"Bag, Rucksack River Trek 75L, ",12,2018,27.06,9685,23/02/2018,KPIN,PALM EQUIPMENT INTERNATIONAL LIMITED,
Technical Services,2032,Operational Equip-Initial Purchase,Freight Misc,12,2018,8.50,9685,23/02/2018,KPIN,PALM EQUIPMENT INTERNATIONAL LIMITED,
Project 2020,0180,Casual and Temporary Staff,Casual and Temporary Staff,12,2018,336.84,9687,23/02/2018,KPIN,REED SPECIALIST RECRUITMENT LIMITED,
Police Collaboration,0180,Casual and Temporary Staff,Casual and Temporary Staff,12,2018,-336.84,9687,23/02/2018,KPIN,REED SPECIALIST RECRUITMENT LIMITED,
Police Collaboration,0180,Casual and Temporary Staff,Casual and Temporary Staff,12,2018,336.84,9687,23/02/2018,KPIN,REED SPECIALIST RECRUITMENT LIMITED,
Property Services,1321,Water Meters,BILLERICAY FIXED CHG,12,2018,22.16,9693,15/02/2018,KPIN,NWG BUSINESS,
Property Services,1321,Water Meters,30.08.17 BILLERICAY,12,2018,-37.32,9693,15/02/2018,KPIN,NWG BUSINESS,
Property Services,1322,Sewerage Charges,04/08/17-01/02/18,12,2018,43.38,9694,16/02/2018,KPIN,ANGLIAN WATER,
Property Services,1321,Water Meters,29.11.17 KELVEDON PK,12,2018,450.92,9695,14/02/2018,KPIN,NWG BUSINESS,
Property Services,1321,Water Meters,KELVEDON PK FIXED CHG,12,2018,270.28,9695,14/02/2018,KPIN,NWG BUSINESS,
Property Services,1321,Water Meters,14.02.18 KELVEDON PK,12,2018,315.64,9695,14/02/2018,KPIN,NWG BUSINESS,
Stores,B205,Stocks & WIP (Purchasing & Supply Stores),Safety glasses - Clear lens,12,2018,399.20,9698,23/02/2018,KPIN,ARCO LTD,
Technical Services,2030,Operational Equipment Support,"Board write on, nominal role. ",12,2018,17.99,9701,08/02/2018,KPIN,CLIFTON CANVAS DEVELOPMENTS LTD,
Technical Services,2030,Operational Equipment Support,Freight Misc,12,2018,4.99,9701,08/02/2018,KPIN,CLIFTON CANVAS DEVELOPMENTS LTD,
Stores,B205,Stocks & WIP (Purchasing & Supply Stores),CE400X Toner Black HP507X - 11,12,2018,618.65,9702,21/02/2018,KPIN,XMA LIMITED,
Stores,B205,Stocks & WIP (Purchasing & Supply Stores),CE403YC Magenta Toner HP507A -,12,2018,835.70,9702,21/02/2018,KPIN,XMA LIMITED,
Stores,B205,Stocks & WIP (Purchasing & Supply Stores),HP940XL Cartridge C4907A Cyan,12,2018,10.18,9702,21/02/2018,KPIN,XMA LIMITED,
Stores,B205,Stocks & WIP (Purchasing & Supply Stores),HP 940XL Cartridge C4906A Blac,12,2018,30.96,9702,21/02/2018,KPIN,XMA LIMITED,
Stores,B205,Stocks & WIP (Purchasing & Supply Stores),HP 940XL Cartridge C4909A Yell,12,2018,20.36,9703,21/02/2018,KPIN,XMA LIMITED,
Stores,B205,Stocks & WIP (Purchasing & Supply Stores),Print Head HP940 (C4900A) ,12,2018,39.92,9703,21/02/2018,KPIN,XMA LIMITED,
Stores,B205,Stocks & WIP (Purchasing & Supply Stores),Print Head HP 940 (C4901A),12,2018,39.92,9703,21/02/2018,KPIN,XMA LIMITED,
Stores,B205,Stocks & WIP (Purchasing & Supply Stores),HP 940XL Cartridge C4908A Mage,12,2018,20.36,9703,21/02/2018,KPIN,XMA LIMITED,
Stores,B205,Stocks & WIP (Purchasing & Supply Stores),"Toner cartridge, yellow, CE252",12,2018,265.26,9704,21/02/2018,KPIN,XMA LIMITED,
Stores,B205,Stocks & WIP (Purchasing & Supply Stores),"Toner cartridge, Magenta CE253",12,2018,129.60,9704,21/02/2018,KPIN,XMA LIMITED,
Stores,B205,Stocks & WIP (Purchasing & Supply Stores),CE401YC Cyan Toner HP507A - 60,12,2018,501.42,9704,21/02/2018,KPIN,XMA LIMITED,
Stores,B205,Stocks & WIP (Purchasing & Supply Stores),CE402YC Yellow Toner HP507A - ,12,2018,501.42,9704,21/02/2018,KPIN,XMA LIMITED,
Stores,B205,Stocks & WIP (Purchasing & Supply Stores),"Toner, Cyan, CE251A",12,2018,122.66,9704,21/02/2018,KPIN,XMA LIMITED,
Stores,B205,Stocks & WIP (Purchasing & Supply Stores),Toner Magenta for Colour Laser,12,2018,178.95,9704,21/02/2018,KPIN,XMA LIMITED,
Stores,B205,Stocks & WIP (Purchasing & Supply Stores),Toner Black fo Colour Laserjet,12,2018,40.26,9704,21/02/2018,KPIN,XMA LIMITED,
Purchasing & Supply,2024,Cleaning Equipment,Cleanline Thin Bleach 4.5% 5L ,12,2018,8.88,9707,23/02/2018,KPIN,BUNZL CLEANING & HYGIENE SUPPLIES,
Purchasing & Supply,2024,Cleaning Equipment,Dettol Antibacterial Surface C,12,2018,17.50,9707,23/02/2018,KPIN,BUNZL CLEANING & HYGIENE SUPPLIES,
Purchasing & Supply,2024,Cleaning Equipment,Bryta Oven & Grill Foam 500ML ,12,2018,5.98,9707,23/02/2018,KPIN,BUNZL CLEANING & HYGIENE SUPPLIES,
Purchasing & Supply,2024,Cleaning Equipment,Cleanline Glass & Stainless St,12,2018,6.84,9707,23/02/2018,KPIN,BUNZL CLEANING & HYGIENE SUPPLIES,
Purchasing & Supply,2024,Cleaning Equipment,Cleanline Cream Cleaner 500ML ,12,2018,2.13,9707,23/02/2018,KPIN,BUNZL CLEANING & HYGIENE SUPPLIES,
Purchasing & Supply,2024,Cleaning Equipment,Brasso Liquid Metal Polish 175,12,2018,12.80,9707,23/02/2018,KPIN,BUNZL CLEANING & HYGIENE SUPPLIES,
Purchasing & Supply,2024,Cleaning Equipment,Stockinette Dishcloth Super Bl,12,2018,1.73,9707,23/02/2018,KPIN,BUNZL CLEANING & HYGIENE SUPPLIES,
Purchasing & Supply,2024,Cleaning Equipment,6663 Scott Performance Hand To,12,2018,96.32,9707,23/02/2018,KPIN,BUNZL CLEANING & HYGIENE SUPPLIES,
Purchasing & Supply,2024,Cleaning Equipment,8577 Scott Folded Toilet Tissu,12,2018,93.72,9707,23/02/2018,KPIN,BUNZL CLEANING & HYGIENE SUPPLIES,
Purchasing & Supply,2024,Cleaning Equipment,Shield 3 Way Toilet Cleaner 1L,12,2018,6.81,9707,23/02/2018,KPIN,BUNZL CLEANING & HYGIENE SUPPLIES,
Purchasing & Supply,2024,Cleaning Equipment,Cleanline Heavy Duty Degreaser,12,2018,20.40,9707,23/02/2018,KPIN,BUNZL CLEANING & HYGIENE SUPPLIES,
Purchasing & Supply,1310,Cleaning products,General Purpose Detergent 5L (,12,2018,21.12,9707,23/02/2018,KPIN,BUNZL CLEANING & HYGIENE SUPPLIES,
Purchasing & Supply,1310,Cleaning products,Bryta Dishwasher Powder 5KG (E,12,2018,11.84,9707,23/02/2018,KPIN,BUNZL CLEANING & HYGIENE SUPPLIES,
Technical Services,2031,Managed Personal Protective Equipment,Activity 89241 to replace lost,12,2018,37.41,9708,20/02/2018,KPIN,BALLYCLARE LIMITED,
Technical Services,2031,Managed Personal Protective Equipment,Activity 89203 to replace Will,12,2018,60.68,9709,20/02/2018,KPIN,BALLYCLARE LIMITED,
Operations,4009,Operational Support Costs,AS0545 Body armour system - Ma,12,2018,16974.54,9711,23/02/2018,KPIN,AEGIS ENGINEERING LTD,
Operations,4009,Operational Support Costs,AS0545 Body armour system - Ma,12,2018,-16974.54,9711,23/02/2018,KPIN,AEGIS ENGINEERING LTD,
Operations,4009,Operational Support Costs,AS0545 Body armour system - Ma,12,2018,16974.54,9711,23/02/2018,KPIN,AEGIS ENGINEERING LTD,
Property Services,2903,Consultancy Fees,1718/428 - Various sites - Int,12,2018,3960.00,9713,26/02/2018,KPIN,CALFORDSEADEN LLP,
Training,B217,Payments in Advance,Prince 2 courses 2304-270418,12,2018,8250.00,9714,14/02/2018,KPIN,DATRIX LEARNING SERVICES,
Training,0702,External Training - L&D Panel,External Training - L&D Panel,12,2018,8250.00,9714,14/02/2018,KPIN,DATRIX LEARNING SERVICES,
Training,0702,External Training - L&D Panel,External Training - L&D Panel,12,2018,-8250.00,9714,14/02/2018,KPIN,DATRIX LEARNING SERVICES,
Catering,2017,Canteen Equipment,Dishwasher - fault showing dra,12,2018,100.00,9715,26/02/2018,KPIN,GW COMMERCIAL EQUIPMENT LIMITED,
Catering,2017,Canteen Equipment,Dishwasher - fault showing dra,12,2018,76.63,9715,26/02/2018,KPIN,GW COMMERCIAL EQUIPMENT LIMITED,
Property Services,1060,Grounds Maintenance,102V055 A1 Medium duty 30kg sp,12,2018,197.00,9716,21/02/2018,KPIN,KEY INDUSTRIAL EQUIPMENT LTD,
Property Services,1050,Building Maintenance,Two seperation boards / framew,12,2018,259.40,9717,25/02/2018,KPIN,NORMAN DAVID MAINTENANCE,
Property Services,1050,Building Maintenance,Construct cupboards in garage ,12,2018,1891.17,9718,25/02/2018,KPIN,NORMAN DAVID MAINTENANCE,
Community Safety,4019,Community Safety,Fellowes Black DS-500C Cross C,12,2018,82.57,9719,26/02/2018,KPIN,BANNER GROUP LIMITED,
Purchasing & Supply,2303,Clothing & Footwear,Clothing & Footwear,12,2018,67.99,9720,26/02/2018,KPIN,ARCO LTD,
Purchasing & Supply,2303,Clothing & Footwear,6T30010 Trojan Hector Safety T,12,2018,41.59,9720,26/02/2018,KPIN,ARCO LTD,
Property Services,0180,Casual and Temporary Staff,Casual and Temporary Staff,12,2018,31.50,9721,26/02/2018,KPIN,HAYS CONSTRUCTION & PROPERTY,
Property Services,1060,Grounds Maintenance,Felling/removal Tree 2856 and ,12,2018,1062.56,9722,26/02/2018,KPIN,C R SWIFT LANDSCAPING LTD,
Property Services,1060,Grounds Maintenance,To carry out reduction to Leyl,12,2018,901.00,9723,26/02/2018,KPIN,C R SWIFT LANDSCAPING LTD,
Property Services,1060,Grounds Maintenance,"To carry out the reduction, hi",12,2018,1040.79,9724,26/02/2018,KPIN,C R SWIFT LANDSCAPING LTD,
Property Services,1060,Grounds Maintenance,Felling of trees 2817 and 2821,12,2018,1618.88,9725,26/02/2018,KPIN,C R SWIFT LANDSCAPING LTD,
Property Services,1060,Grounds Maintenance,Grounds Maintenance,12,2018,1557.60,9726,28/02/2018,KPIN,C R SWIFT LANDSCAPING LTD,
ICT,2510,IT Communications,WAN Quarterly charge for Colch,12,2018,1532.51,9727,15/02/2018,KPIN,DAISY UPDATA COMMUNICATIONS LTD,
ICT,2510,IT Communications,WAN quarterly Charges 01/04/2,12,2018,83269.18,9728,15/02/2018,KPIN,DAISY UPDATA COMMUNICATIONS LTD,
ICT,B217,Payments in Advance,WAN quarterly Charges 01/04/2,12,2018,83269.18,9728,15/02/2018,KPIN,DAISY UPDATA COMMUNICATIONS LTD,
ICT,2510,IT Communications,WAN quarterly Charges 01/04/2,12,2018,-83269.18,9728,15/02/2018,KPIN,DAISY UPDATA COMMUNICATIONS LTD,
Property Services,1321,Water Meters,01/12/17-21/02/18,12,2018,106.59,9729,22/02/2018,KPIN,ANGLIAN WATER BUSINESS (NATIONAL) LTD,
Property Services,1322,Sewerage Charges,01/12/17-21/02/18,12,2018,106.18,9729,22/02/2018,KPIN,ANGLIAN WATER BUSINESS (NATIONAL) LTD,
Property Services,1321,Water Meters,01/12/17-21/02/18,12,2018,339.71,9730,22/02/2018,KPIN,ANGLIAN WATER BUSINESS (NATIONAL) LTD,
Property Services,1322,Sewerage Charges,01/12/17-21/02/18,12,2018,298.49,9730,22/02/2018,KPIN,ANGLIAN WATER BUSINESS (NATIONAL) LTD,
Property Services,1322,Sewerage Charges,01/09/17-24/02/18,12,2018,73.86,9731,24/02/2018,KPIN,ANGLIAN WATER BUSINESS (NATIONAL) LTD,
Property Services,1322,Sewerage Charges,08/07/17-24/02/18,12,2018,429.22,9732,24/02/2018,KPIN,ANGLIAN WATER BUSINESS (NATIONAL) LTD,
Water Services,2087,Water Services,HE1098,12,2018,672.30,9733,19/02/2018,KPIN,NORTHUMBRIAN WATER LTD (HYDRANTS),
Water Services,2087,Water Services,HE1243,12,2018,452.30,9734,19/02/2018,KPIN,NORTHUMBRIAN WATER LTD (HYDRANTS),
Water Services,2087,Water Services,HE1156,12,2018,219.50,9735,19/02/2018,KPIN,NORTHUMBRIAN WATER LTD (HYDRANTS),
Water Services,2087,Water Services,HE1233,12,2018,485.40,9736,19/02/2018,KPIN,NORTHUMBRIAN WATER LTD (HYDRANTS),
Water Services,2087,Water Services,HE1211,12,2018,447.80,9737,21/02/2018,KPIN,NORTHUMBRIAN WATER LTD (HYDRANTS),
ICT,4005,IT Consumables,Call out charge to inspect pri,12,2018,95.00,9738,26/02/2018,KPIN,UTILIZE PLC,
ICT,4005,IT Consumables,Rollers for HP Printer in FF43,12,2018,20.00,9738,26/02/2018,KPIN,UTILIZE PLC,
ICT,4005,IT Consumables,Call out charge to inspect pri,12,2018,40.00,9738,26/02/2018,KPIN,UTILIZE PLC,
Operations,4009,Operational Support Costs,Ballistic helmet cover to fit,12,2018,82.00,9739,26/02/2018,KPIN,RIG EQUIPMENT LTD,
Operations,4009,Operational Support Costs,Ballistic helmet cover to fit,12,2018,41.00,9739,26/02/2018,KPIN,RIG EQUIPMENT LTD,
Operations,4009,Operational Support Costs,Ballistic helmet cover to fit,12,2018,594.50,9739,26/02/2018,KPIN,RIG EQUIPMENT LTD,
Operations,4009,Operational Support Costs,Carriage,12,2018,12.25,9739,26/02/2018,KPIN,RIG EQUIPMENT LTD,
Operations,4009,Operational Support Costs,Ballistic helmet cover to fit,12,2018,729.75,9739,26/02/2018,KPIN,RIG EQUIPMENT LTD,
Operations,4009,Operational Support Costs,Ballistic helmet cover to fit,12,2018,-729.75,9739,26/02/2018,KPIN,RIG EQUIPMENT LTD,
Training,0715,In House Operational Training,In House Operational Training,12,2018,2975.00,9740,23/02/2018,KPIN,TENDRING RECYCLING,
Training,0715,In House Operational Training,In House Operational Training,12,2018,100.00,9740,23/02/2018,KPIN,TENDRING RECYCLING,
Training,0715,In House Operational Training,In House Operational Training,12,2018,1750.00,9740,23/02/2018,KPIN,TENDRING RECYCLING,
Training,0715,In House Operational Training,In House Operational Training,12,2018,100.00,9740,23/02/2018,KPIN,TENDRING RECYCLING,
Training,B217,Payments in Advance,1452 - Annual FireBike Team Re,12,2018,1440.00,9741,27/02/2018,KPIN,TOTAL ADVANCED,
Training,0702,External Training - L&D Panel,External Training - L&D Panel,12,2018,1440.00,9741,27/02/2018,KPIN,TOTAL ADVANCED,
Training,0702,External Training - L&D Panel,External Training - L&D Panel,12,2018,-1440.00,9741,27/02/2018,KPIN,TOTAL ADVANCED,
Operations,4009,Operational Support Costs,"Ballistic Helmet, Revision Bat",12,2018,1220.56,9742,23/02/2018,KPIN,BEECHWOOD EQUIPMENT LTD,
Operations,4009,Operational Support Costs,"Ballistic Helmet, Revision Bat",12,2018,8849.06,9742,23/02/2018,KPIN,BEECHWOOD EQUIPMENT LTD,
Operations,4009,Operational Support Costs,"Ballistic Helmet, Revision Bat",12,2018,610.28,9742,23/02/2018,KPIN,BEECHWOOD EQUIPMENT LTD,
Operations,4009,Operational Support Costs,Delivery,12,2018,5.00,9742,23/02/2018,KPIN,BEECHWOOD EQUIPMENT LTD,
Operations,4009,Operational Support Costs,"Ballistic Helmet, Revision Bat",12,2018,-10684.90,9742,23/02/2018,KPIN,BEECHWOOD EQUIPMENT LTD,
Operations,4009,Operational Support Costs,"Ballistic Helmet, Revision Bat",12,2018,10684.90,9742,23/02/2018,KPIN,BEECHWOOD EQUIPMENT LTD,
Purchasing & Supply,2024,Cleaning Equipment,6663 Scott Performance Hand To,12,2018,337.12,9743,26/02/2018,KPIN,BUNZL CLEANING & HYGIENE SUPPLIES,
Purchasing & Supply,1310,Cleaning products,8538 Scott 320 Toilet Roll 2Pl,12,2018,144.34,9743,26/02/2018,KPIN,BUNZL CLEANING & HYGIENE SUPPLIES,
ICT,2510,IT Communications,CALL / RENTAL CHARGES,12,2018,43.50,9744,21/02/2018,KPIN,VODAFONE LIMITED,
Human Resources,2903,Consultancy Fees,Mediation Event 22.02.18,12,2018,950.00,9746,23/02/2018,KPIN,UK MEDIATION LTD,
Property Services,1040,Planned Works,Sewage plant emptying,12,2018,115.00,9747,27/02/2018,KPIN,ASHWASTE ENVIRONMENTAL LTD,
Property Services,1050,Building Maintenance,Boiler not working.  No heat o,12,2018,120.00,9748,27/02/2018,KPIN,EMS ENGINEERING MAINTENANCE SERVICES LTD,
Operations,4110,Travelling Expenses,Travelling Expenses,12,2018,7.00,9749,27/02/2018,KPIN,CAPITA TRAVEL AND EVENTS LTD,
Operations,4110,Travelling Expenses,Travelling Expenses,12,2018,3.50,9749,27/02/2018,KPIN,CAPITA TRAVEL AND EVENTS LTD,
Operations,4110,Travelling Expenses,Travelling Expenses,12,2018,3.50,9749,27/02/2018,KPIN,CAPITA TRAVEL AND EVENTS LTD,
Operations,4110,Travelling Expenses,Travelling Expenses,12,2018,3.50,9749,27/02/2018,KPIN,CAPITA TRAVEL AND EVENTS LTD,
Operations,4110,Travelling Expenses,Travelling Expenses,12,2018,26.40,9749,27/02/2018,KPIN,CAPITA TRAVEL AND EVENTS LTD,
Operations,4110,Travelling Expenses,Travelling Expenses,12,2018,22.70,9749,27/02/2018,KPIN,CAPITA TRAVEL AND EVENTS LTD,
Operations,4110,Travelling Expenses,Travelling Expenses,12,2018,26.40,9749,27/02/2018,KPIN,CAPITA TRAVEL AND EVENTS LTD,
Operations,4110,Travelling Expenses,Travelling Expenses,12,2018,7.00,9749,27/02/2018,KPIN,CAPITA TRAVEL AND EVENTS LTD,
Operations,4110,Travelling Expenses,Travelling Expenses,12,2018,32.30,9749,27/02/2018,KPIN,CAPITA TRAVEL AND EVENTS LTD,
Operations,4110,Travelling Expenses,Travelling Expenses,12,2018,38.40,9749,27/02/2018,KPIN,CAPITA TRAVEL AND EVENTS LTD,
Operations,4110,Travelling Expenses,Travelling Expenses,12,2018,39.50,9749,27/02/2018,KPIN,CAPITA TRAVEL AND EVENTS LTD,
Operations,4110,Travelling Expenses,Travelling Expenses,12,2018,20.00,9749,27/02/2018,KPIN,CAPITA TRAVEL AND EVENTS LTD,
Community Safety,4019,Community Safety,Child car seat safety checking,12,2018,175.00,9750,27/02/2018,KPIN,"JANE MCELROY, CHILD CAR SEAT SAFETY CONSULTANT",
Community Safety,4019,Community Safety,Travel expenses,12,2018,30.00,9750,27/02/2018,KPIN,"JANE MCELROY, CHILD CAR SEAT SAFETY CONSULTANT",
Corp Risk & Bus Cont,B217,Payments in Advance,Room hire & delegate fees (inc,12,2018,-630.00,9751,27/02/2018,KPIN,DRIVERMETRICS LIMITED,
Corp Risk & Bus Cont,B217,Payments in Advance,DRI Workshop - including train,12,2018,-5000.00,9751,27/02/2018,KPIN,DRIVERMETRICS LIMITED,
Corp Risk & Bus Cont,B217,Payments in Advance,Room hire & delegate fees (inc,12,2018,630.00,9751,27/02/2018,KPIN,DRIVERMETRICS LIMITED,
Corp Risk & Bus Cont,B217,Payments in Advance,DRI Workshop - including train,12,2018,5000.00,9751,27/02/2018,KPIN,DRIVERMETRICS LIMITED,
Finance & Pay,B217,Payments in Advance,Room hire & delegate fees (inc,12,2018,630.00,9751,27/02/2018,KPIN,DRIVERMETRICS LIMITED,
Finance & Pay,B217,Payments in Advance,DRI Workshop - including train,12,2018,5000.00,9751,27/02/2018,KPIN,DRIVERMETRICS LIMITED,
Property Services,1050,Building Maintenance,Bay door - damaged due to coll,12,2018,257.40,9752,27/02/2018,KPIN,HS DOOR SYSTEMS LTD,
Property Services,1050,Building Maintenance,Bay door - damaged due to coll,12,2018,2675.00,9752,27/02/2018,KPIN,HS DOOR SYSTEMS LTD,
Catering,4130,Hospitality & Entertaining,SHQ MESS CLUB,12,2018,125.88,9753,28/02/2018,KPIN,DIRECT MEATS,
Property Services,4003,Postage Direct Mailing & Carriage,Exchange of drysuits (Safequip,12,2018,18.83,9754,23/02/2018,KPIN,T N T UK LTD,
Property Services,0180,Casual and Temporary Staff,Casual and Temporary Staff,12,2018,589.20,9755,27/02/2018,KPIN,HAYS CONSTRUCTION & PROPERTY,
Operations - USAR,2030,Operational Equipment Support,Oxygen Cylinder Rental Size W ,12,2018,35.50,9756,26/02/2018,KPIN,B O C LTD,
Operations - USAR,2030,Operational Equipment Support,Annual Oxygen Cylinder rental ,12,2018,4.16,9756,26/02/2018,KPIN,B O C LTD,
Training,0715,In House Operational Training,In House Operational Training,12,2018,81.27,9757,27/02/2018,KPIN,AIR PRODUCTS PLC,
Training,0715,In House Operational Training,In House Operational Training,12,2018,4.95,9757,27/02/2018,KPIN,AIR PRODUCTS PLC,
Training,0715,In House Operational Training,In House Operational Training,12,2018,61.00,9757,27/02/2018,KPIN,AIR PRODUCTS PLC,
Training,0715,In House Operational Training,In House Operational Training,12,2018,36.96,9759,27/02/2018,KPIN,STAT-EXPRESS,
Purchasing & Supply,1310,Cleaning products,General Purpose Detergent 5L (,12,2018,42.24,9760,27/02/2018,KPIN,BUNZL CLEANING & HYGIENE SUPPLIES,
Purchasing & Supply,2024,Cleaning Equipment,6332 Kleenex Hair & Body Showe,12,2018,91.64,9760,27/02/2018,KPIN,BUNZL CLEANING & HYGIENE SUPPLIES,
Stores,B205,Stocks & WIP (Purchasing & Supply Stores),Viakal Limescale Remover 500ML,12,2018,22.32,9762,27/02/2018,KPIN,BUNZL CLEANING & HYGIENE SUPPLIES,
Stores,B205,Stocks & WIP (Purchasing & Supply Stores),Dettol Antibacterial Surface C,12,2018,21.00,9762,27/02/2018,KPIN,BUNZL CLEANING & HYGIENE SUPPLIES,
Stores,B205,Stocks & WIP (Purchasing & Supply Stores),CleanWorks Twine Socket Mop Ye,12,2018,16.68,9762,27/02/2018,KPIN,BUNZL CLEANING & HYGIENE SUPPLIES,
Stores,B205,Stocks & WIP (Purchasing & Supply Stores),8577 Scott Folded Toilet Tissu,12,2018,140.58,9762,27/02/2018,KPIN,BUNZL CLEANING & HYGIENE SUPPLIES,
Stores,B205,Stocks & WIP (Purchasing & Supply Stores),General Purpose Detergent 5L (,12,2018,31.68,9762,27/02/2018,KPIN,BUNZL CLEANING & HYGIENE SUPPLIES,
Stores,B205,Stocks & WIP (Purchasing & Supply Stores),Shield 3 Way Toilet Cleaner 1L,12,2018,27.24,9762,27/02/2018,KPIN,BUNZL CLEANING & HYGIENE SUPPLIES,
Stores,B205,Stocks & WIP (Purchasing & Supply Stores),Bryta Oven & Grill Foam 500ML ,12,2018,17.94,9762,27/02/2018,KPIN,BUNZL CLEANING & HYGIENE SUPPLIES,
Technical Services,2031,Managed Personal Protective Equipment,Provision of PPE Managed Servi,12,2018,49258.55,9763,26/02/2018,KPIN,BALLYCLARE LIMITED,
Property Services,1050,Building Maintenance,Dishwasher replacement Q2456 w,12,2018,2253.00,9764,28/02/2018,KPIN,GW COMMERCIAL EQUIPMENT LIMITED,
Purchasing & Supply,2303,Clothing & Footwear,NM368 - Essential mens pleat f,12,2018,194.40,9765,27/02/2018,KPIN,ALEXANDRA  PLC,
Purchasing & Supply,2303,Clothing & Footwear,NM368 - Essential mens pleat f,12,2018,194.40,9765,27/02/2018,KPIN,ALEXANDRA  PLC,
Purchasing & Supply,2303,Clothing & Footwear,NM368 - Essential mens pleat f,12,2018,48.60,9766,27/02/2018,KPIN,ALEXANDRA  PLC,
Purchasing & Supply,2303,Clothing & Footwear,NM368 - Essential mens pleat f,12,2018,194.40,9766,27/02/2018,KPIN,ALEXANDRA  PLC,
Purchasing & Supply,2303,Clothing & Footwear,NM368 - Essential mens pleat f,12,2018,48.60,9767,27/02/2018,KPIN,ALEXANDRA  PLC,
Technical Services,2031,Managed Personal Protective Equipment,Provision of PPE for New Recru,12,2018,14790.77,9768,26/02/2018,KPIN,BALLYCLARE LIMITED,
Police Collaboration,0180,Casual and Temporary Staff,Casual and Temporary Staff,12,2018,1695.00,9769,28/02/2018,KPIN,ALLEN LANE LIMITED,
Human Resources,0960,Occupational Health,Occupational Health,12,2018,148.00,9770,28/02/2018,KPIN,CHELMSFORD PRIORY,
Human Resources,0960,Occupational Health,Occupational Health,12,2018,148.00,9771,28/02/2018,KPIN,CHELMSFORD PRIORY,
Training,0715,In House Operational Training,In House Operational Training,12,2018,33.45,9772,28/02/2018,KPIN,OFFICE IS LIMITED,
Purchasing & Supply,4001,Stationery,XEROX A4 RECYCLED SUPREME PAPE,12,2018,72.75,9773,28/02/2018,KPIN,OFFICE IS LIMITED,
Purchasing & Supply,4001,Stationery,WB BUFF PACKAGING TAPE 50X66,12,2018,2.13,9773,28/02/2018,KPIN,OFFICE IS LIMITED,
Purchasing & Supply,4001,Stationery,WB MEMO PAD A4 FEINT 80LF,12,2018,3.32,9773,28/02/2018,KPIN,OFFICE IS LIMITED,
Purchasing & Supply,4001,Stationery,Permanent Marker Bullet Tip Bl,12,2018,1.40,9773,28/02/2018,KPIN,OFFICE IS LIMITED,
Purchasing & Supply,4001,Stationery,WB WHITEBOARD MARKER CHISEL GR,12,2018,1.34,9773,28/02/2018,KPIN,OFFICE IS LIMITED,
Purchasing & Supply,4001,Stationery,TIPPEX RAPID CORRECTION FLUID,12,2018,5.04,9773,28/02/2018,KPIN,OFFICE IS LIMITED,
Purchasing & Supply,4001,Stationery,WB CONTRACT PENCIL RUBBER TIPP,12,2018,0.39,9773,28/02/2018,KPIN,OFFICE IS LIMITED,
Purchasing & Supply,4001,Stationery,Q-CONNECT QUICK TAC ADHESIVE P,12,2018,3.00,9773,28/02/2018,KPIN,OFFICE IS LIMITED,
Purchasing & Supply,4001,Stationery,OFFICE IS CLEAR RULER 300MM KF,12,2018,0.30,9773,28/02/2018,KPIN,OFFICE IS LIMITED,
Purchasing & Supply,4001,Stationery,REPORT FILES PK 25 BLU KF01454,12,2018,1.81,9773,28/02/2018,KPIN,OFFICE IS LIMITED,
Purchasing & Supply,4001,Stationery,I/S METAL PENCIL SHARPENERS,12,2018,0.68,9773,28/02/2018,KPIN,OFFICE IS LIMITED,
Purchasing & Supply,4001,Stationery,WB A4 MANILLA DIVIDER 10PART M,12,2018,0.54,9773,28/02/2018,KPIN,OFFICE IS LIMITED,
Purchasing & Supply,4001,Stationery,Sharpie China Marker Bullet Ti,12,2018,16.08,9773,28/02/2018,KPIN,OFFICE IS LIMITED,
Purchasing & Supply,4001,Stationery,IS SCISSORS 210MM KF01227,12,2018,0.51,9773,28/02/2018,KPIN,OFFICE IS LIMITED,
Purchasing & Supply,4001,Stationery,REPORT FILES PK 25 RED KF01455,12,2018,1.81,9773,28/02/2018,KPIN,OFFICE IS LIMITED,
Purchasing & Supply,4001,Stationery,WB A4 MANILLA DIVIDER 5PART MU,12,2018,0.10,9773,28/02/2018,KPIN,OFFICE IS LIMITED,
Purchasing & Supply,4001,Stationery,WB PUNCHED POCKET A4 CLR 27048,12,2018,1.64,9773,28/02/2018,KPIN,OFFICE IS LIMITED,
Purchasing & Supply,4001,Stationery,Ballpoint Pen Blue Medium 9600,12,2018,1.34,9773,28/02/2018,KPIN,OFFICE IS LIMITED,
Purchasing & Supply,4001,Stationery,Ballpoint Pen Black Medium 960,12,2018,1.34,9773,28/02/2018,KPIN,OFFICE IS LIMITED,
Purchasing & Supply,4001,Stationery,WB STAPLES 26/6 PK5000,12,2018,0.60,9773,28/02/2018,KPIN,OFFICE IS LIMITED,
Purchasing & Supply,4001,Stationery,WB CLEAR TAPE 24X66,12,2018,2.74,9773,28/02/2018,KPIN,OFFICE IS LIMITED,
Purchasing & Supply,4001,Stationery,WB WHITEBOARD MARKER CHISEL BL,12,2018,1.34,9773,28/02/2018,KPIN,OFFICE IS LIMITED,
Purchasing & Supply,4001,Stationery,5 Star Brass Drawing Pins Box1,12,2018,0.24,9773,28/02/2018,KPIN,OFFICE IS LIMITED,
Purchasing & Supply,4001,Stationery,IS DL WHT WINDOW S/AD 80GSM BX,12,2018,7.02,9773,28/02/2018,KPIN,OFFICE IS LIMITED,
Purchasing & Supply,4001,Stationery,IS C4 MAN PLAIN P.S BOX 250 02,12,2018,4.42,9773,28/02/2018,KPIN,OFFICE IS LIMITED,
Purchasing & Supply,4001,Stationery,IS DL WHT PLAIN S/AD 80GSM BX1,12,2018,6.71,9773,28/02/2018,KPIN,OFFICE IS LIMITED,
Purchasing & Supply,4001,Stationery,Ballpoint Pen Red Medium WX260,12,2018,2.68,9774,28/02/2018,KPIN,OFFICE IS LIMITED,
Purchasing & Supply,4001,Stationery,5 Star Push Pins Ast Opaque Pk,12,2018,2.18,9774,28/02/2018,KPIN,OFFICE IS LIMITED,
Purchasing & Supply,4001,Stationery,County Cotton String Ball Medi,12,2018,13.13,9774,28/02/2018,KPIN,OFFICE IS LIMITED,
Purchasing & Supply,4001,Stationery,Black n Red Wirebound Notebook,12,2018,19.72,9774,28/02/2018,KPIN,OFFICE IS LIMITED,
Purchasing & Supply,4001,Stationery,OFFICE IS CLEAR RULER 300MM KF,12,2018,1.00,9774,28/02/2018,KPIN,OFFICE IS LIMITED,
Purchasing & Supply,4001,Stationery,Ballpoint Pen Black Medium 960,12,2018,2.68,9774,28/02/2018,KPIN,OFFICE IS LIMITED,
Purchasing & Supply,4001,Stationery,Sharpie China Marker Bullet Ti,12,2018,10.72,9775,28/02/2018,KPIN,OFFICE IS LIMITED,
Purchasing & Supply,4001,Stationery,WB PUNCHED POCKET A4 CLR 27048,12,2018,0.82,9775,28/02/2018,KPIN,OFFICE IS LIMITED,
Purchasing & Supply,4001,Stationery,Ballpoint Pen Black Medium 960,12,2018,2.68,9775,28/02/2018,KPIN,OFFICE IS LIMITED,
Purchasing & Supply,4001,Stationery,Permanent Marker Bullet Tip Bl,12,2018,1.40,9775,28/02/2018,KPIN,OFFICE IS LIMITED,
Purchasing & Supply,4001,Stationery,Q-CONNECT CLIPBOARD MASONITE A,12,2018,1.92,9775,28/02/2018,KPIN,OFFICE IS LIMITED,
Purchasing & Supply,4001,Stationery,WB A4 MANILLA DIVIDER 10PART M,12,2018,1.62,9775,28/02/2018,KPIN,OFFICE IS LIMITED,
Purchasing & Supply,4001,Stationery,TIPPEX RAPID CORRECTION FLUID,12,2018,1.68,9775,28/02/2018,KPIN,OFFICE IS LIMITED,
Purchasing & Supply,4001,Stationery,WB RING BINDER A4 RED,12,2018,3.79,9775,28/02/2018,KPIN,OFFICE IS LIMITED,
Purchasing & Supply,4001,Stationery,WB CONTRACT LETTERTRAY BLACK,12,2018,1.18,9775,28/02/2018,KPIN,OFFICE IS LIMITED,
Purchasing & Supply,4001,Stationery,WB BOXFILE CLOUD FOOLSCAP,12,2018,11.65,9775,28/02/2018,KPIN,OFFICE IS LIMITED,
Purchasing & Supply,4001,Stationery,Q-CONNECT 77MM ROUND WAVY PPRC,12,2018,1.70,9775,28/02/2018,KPIN,OFFICE IS LIMITED,
Purchasing & Supply,4001,Stationery,WB RING BINDER A4 BLUE,12,2018,3.79,9775,28/02/2018,KPIN,OFFICE IS LIMITED,
Purchasing & Supply,4001,Stationery,County Cotton String Ball Medi,12,2018,13.13,9775,28/02/2018,KPIN,OFFICE IS LIMITED,
Purchasing & Supply,4001,Stationery,IS SCISSORS 210MM KF01227,12,2018,0.68,9775,28/02/2018,KPIN,OFFICE IS LIMITED,
Purchasing & Supply,4001,Stationery,OFFICE IS FOOLSCAP LEVER ARCH ,12,2018,2.61,9775,28/02/2018,KPIN,OFFICE IS LIMITED,
Purchasing & Supply,4001,Stationery,WB RING BINDER A4 GREEN,12,2018,3.79,9775,28/02/2018,KPIN,OFFICE IS LIMITED,
Purchasing & Supply,4001,Stationery,WB YELLOW NOTE 75X125MM,12,2018,3.54,9775,28/02/2018,KPIN,OFFICE IS LIMITED,
Purchasing & Supply,4001,Stationery,Ballpoint Pen Red Medium WX260,12,2018,1.34,9775,28/02/2018,KPIN,OFFICE IS LIMITED,
Purchasing & Supply,4001,Stationery,Permanent Bullet Marker Black ,12,2018,2.80,9776,28/02/2018,KPIN,OFFICE IS LIMITED,
Purchasing & Supply,4001,Stationery,A4 80gsm High White Recycled C,12,2018,14.55,9776,28/02/2018,KPIN,OFFICE IS LIMITED,
Purchasing & Supply,4001,Stationery,"Pen, Marker, Bullet Tip, Red P",12,2018,0.75,9776,28/02/2018,KPIN,OFFICE IS LIMITED,
Purchasing & Supply,4001,Stationery,Medium Ballpoint Pen Black,12,2018,5.36,9776,28/02/2018,KPIN,OFFICE IS LIMITED,
Purchasing & Supply,4001,Stationery,Single Pvc Clipboard Fs Bk,12,2018,2.94,9776,28/02/2018,KPIN,OFFICE IS LIMITED,
Purchasing & Supply,4001,Stationery,LABELS:SELF-ADHES 40 x 50mm ,12,2018,0.69,9776,28/02/2018,KPIN,OFFICE IS LIMITED,
Purchasing & Supply,4001,Stationery,Shatter Resist Ruler 300mm,12,2018,0.60,9776,28/02/2018,KPIN,OFFICE IS LIMITED,
Purchasing & Supply,4001,Stationery,Correction Fluid 20Ml,12,2018,1.68,9776,28/02/2018,KPIN,OFFICE IS LIMITED,
Purchasing & Supply,4001,Stationery,Self Stick Notes 76X127Mm Yell,12,2018,1.77,9776,28/02/2018,KPIN,OFFICE IS LIMITED,
Purchasing & Supply,4001,Stationery,A4 Clear Punched Pocket Pack 1,12,2018,2.46,9776,28/02/2018,KPIN,OFFICE IS LIMITED,
Purchasing & Supply,4001,Stationery,Medium Ballpoint Pen Blue,12,2018,2.68,9776,28/02/2018,KPIN,OFFICE IS LIMITED,
Stores,B205,Stocks & WIP (Purchasing & Supply Stores),XEROX A4 RECYCLED SUPREME PAPE,12,2018,582.00,9777,28/02/2018,KPIN,OFFICE IS LIMITED,
Stores,B205,Stocks & WIP (Purchasing & Supply Stores),Black n Red Wirebound Notebook,12,2018,19.72,9777,28/02/2018,KPIN,OFFICE IS LIMITED,
Stores,B205,Stocks & WIP (Purchasing & Supply Stores),Freight Misc,12,2018,7.50,9778,28/02/2018,KPIN,NORTHERN DIVER INTERNATIONAL LTD,
Stores,B205,Stocks & WIP (Purchasing & Supply Stores),Glove. 3mm Neoprene/ Kevlar  -,12,2018,91.00,9778,28/02/2018,KPIN,NORTHERN DIVER INTERNATIONAL LTD,
Property Services,1499,Furniture and Fittings,Key cut for new barn locks + K,12,2018,71.95,9779,28/02/2018,KPIN,BRENTWOOD LOCK & SAFE CO LTD,
Not Analysed,B114,Fixed Assets Under Construction ITC Equipment,"Licences, support and maintena",12,2018,-980.00,9780,28/02/2018,KPIN,KEFRON (UK) LIMITED,
Not Analysed,B114,Fixed Assets Under Construction ITC Equipment,"Licences, support and maintena",12,2018,980.00,9780,28/02/2018,KPIN,KEFRON (UK) LIMITED,
ITTP Development,2040,IT Maintenance and Contracts,MAINT FEB 18,12,2018,980.00,9780,28/02/2018,KPIN,KEFRON (UK) LIMITED,
Property Services,1330,Building Cleaning,Monthly Cleaning - FEB,12,2018,4312.31,9781,28/02/2018,KPIN,PARKVALE SERVICES LTD,
Operations - USAR,2030,Operational Equipment Support,MAK242094-1 Fuel Cell GN420/GN,12,2018,27.90,9782,28/02/2018,KPIN,TOOL DESPATCH LTD,
ICT,0180,Casual and Temporary Staff,Casual and Temporary Staff,12,2018,2000.00,9783,23/02/2018,KPIN,THE PEOPLE NETWORK,
ICT,0180,Casual and Temporary Staff,Casual and Temporary Staff,12,2018,577.50,9784,23/02/2018,KPIN,THE PEOPLE NETWORK,
ICT,0180,Casual and Temporary Staff,Casual and Temporary Staff,12,2018,2500.00,9785,23/02/2018,KPIN,THE PEOPLE NETWORK,
ICT,0180,Casual and Temporary Staff,Casual and Temporary Staff,12,2018,800.00,9786,23/02/2018,KPIN,THE PEOPLE NETWORK,
ICT,0180,Casual and Temporary Staff,Casual and Temporary Staff,12,2018,1480.00,9787,23/02/2018,KPIN,THE PEOPLE NETWORK,
Not Analysed,B114,Fixed Assets Under Construction ITC Equipment,Travel Charge,12,2018,240.00,9788,28/02/2018,KPIN,ONI PLC,
Not Analysed,B114,Fixed Assets Under Construction ITC Equipment,Gold Project Management less �,12,2018,4000.00,9788,28/02/2018,KPIN,ONI PLC,
Not Analysed,B114,Fixed Assets Under Construction ITC Equipment,Professional Services,12,2018,8025.00,9788,28/02/2018,KPIN,ONI PLC,
Workshops Management,B217,Payments in Advance,Body Stage Year 1/2/3,12,2018,50408.06,9789,28/02/2018,KPIN,ANGLOCO LTD,
Workshops Management,B217,Payments in Advance,YEAR 4 INCREASE,12,2018,690.00,9789,28/02/2018,KPIN,ANGLOCO LTD,
Workshops Management,B217,Payments in Advance,Body Stage Year 1/2/3,12,2018,50408.06,9790,28/02/2018,KPIN,ANGLOCO LTD,
Workshops Management,B217,Payments in Advance,YEAR 4 INCREASE,12,2018,690.00,9790,28/02/2018,KPIN,ANGLOCO LTD,
Workshops Management,B217,Payments in Advance,YEAR 4 INCREASE,12,2018,540.00,9791,28/02/2018,KPIN,ANGLOCO LTD,
Workshops Management,B217,Payments in Advance,Fire Engineering Year 1/2/3,12,2018,26841.24,9791,28/02/2018,KPIN,ANGLOCO LTD,
Not Analysed,B113,Fixed Assets Under Construction Vehicles,Community Safety Vehicle as co,12,2018,33340.00,9792,28/02/2018,KPIN,ANGLOCO LTD,
Community Safety,0180,Casual and Temporary Staff,Casual and Temporary Staff,12,2018,768.12,9793,01/03/2018,KPIN,SUCCESS RECRUIT LIMITED,
Technical Services,2031,Managed Personal Protective Equipment,27213/A Rank Marking A Crew Ma,12,2018,40.50,9794,27/02/2018,KPIN,ROSENBAUER UK PLC,
Stores,B205,Stocks & WIP (Purchasing & Supply Stores),"Lamp, head Petzl Pixa 3 LED",12,2018,192.00,9795,27/02/2018,KPIN,ALLBATTERIES UK LTD,
Property Services,1330,Building Cleaning,Waste collection - February,12,2018,47.53,9796,28/02/2018,KPIN,GREEN RECYCLING LIMITED,
Property Services,1330,Building Cleaning,Waste collection - February,12,2018,29.45,9797,28/02/2018,KPIN,GREEN RECYCLING LIMITED,
Property Services,1330,Building Cleaning,Waste collection - February,12,2018,45.33,9798,28/02/2018,KPIN,GREEN RECYCLING LIMITED,
Property Services,1330,Building Cleaning,Waste collection - February,12,2018,86.33,9799,28/02/2018,KPIN,GREEN RECYCLING LIMITED,
Property Services,1330,Building Cleaning,Waste collection - February,12,2018,20.03,9800,28/02/2018,KPIN,GREEN RECYCLING LIMITED,
Property Services,1330,Building Cleaning,Waste collection - February,12,2018,121.21,9801,28/02/2018,KPIN,GREEN RECYCLING LIMITED,
Property Services,1330,Building Cleaning,Waste collection - February,12,2018,125.29,9802,28/02/2018,KPIN,GREEN RECYCLING LIMITED,
Property Services,1330,Building Cleaning,Waste collection - February,12,2018,31.45,9803,28/02/2018,KPIN,GREEN RECYCLING LIMITED,
Property Services,1330,Building Cleaning,Waste collection - February,12,2018,58.73,9804,28/02/2018,KPIN,GREEN RECYCLING LIMITED,
Property Services,1330,Building Cleaning,Waste collection - February,12,2018,45.33,9805,28/02/2018,KPIN,GREEN RECYCLING LIMITED,
Property Services,1330,Building Cleaning,Waste collection - February,12,2018,51.61,9806,28/02/2018,KPIN,GREEN RECYCLING LIMITED,
Property Services,1330,Building Cleaning,Waste collection - February,12,2018,37.77,9807,28/02/2018,KPIN,GREEN RECYCLING LIMITED,
Property Services,1330,Building Cleaning,Waste collection - February,12,2018,45.33,9808,28/02/2018,KPIN,GREEN RECYCLING LIMITED,
Property Services,1330,Building Cleaning,Waste collection - February,12,2018,127.56,9809,28/02/2018,KPIN,GREEN RECYCLING LIMITED,
Property Services,1330,Building Cleaning,Waste collection - February,12,2018,31.53,9810,28/02/2018,KPIN,GREEN RECYCLING LIMITED,
Property Services,1330,Building Cleaning,Waste collection - February,12,2018,35.69,9811,28/02/2018,KPIN,GREEN RECYCLING LIMITED,
Property Services,1330,Building Cleaning,Waste collection - February,12,2018,29.45,9812,28/02/2018,KPIN,GREEN RECYCLING LIMITED,
Property Services,1330,Building Cleaning,Waste collection - February,12,2018,47.53,9813,28/02/2018,KPIN,GREEN RECYCLING LIMITED,
Property Services,1330,Building Cleaning,Waste collection - February,12,2018,45.33,9814,28/02/2018,KPIN,GREEN RECYCLING LIMITED,
Property Services,1330,Building Cleaning,Waste collection - February,12,2018,82.08,9815,28/02/2018,KPIN,GREEN RECYCLING LIMITED,
Property Services,1330,Building Cleaning,Waste collection - February,12,2018,33.85,9816,28/02/2018,KPIN,GREEN RECYCLING LIMITED,
Property Services,1330,Building Cleaning,Waste collection - February,12,2018,94.81,9817,28/02/2018,KPIN,GREEN RECYCLING LIMITED,
Property Services,1330,Building Cleaning,Waste collection - February,12,2018,49.57,9818,28/02/2018,KPIN,GREEN RECYCLING LIMITED,
Property Services,1330,Building Cleaning,Waste collection - February,12,2018,33.61,9819,28/02/2018,KPIN,GREEN RECYCLING LIMITED,
Property Services,1330,Building Cleaning,Waste collection - February,12,2018,716.41,9820,28/02/2018,KPIN,GREEN RECYCLING LIMITED,
Property Services,1330,Building Cleaning,Waste collection - February,12,2018,86.41,9821,28/02/2018,KPIN,GREEN RECYCLING LIMITED,
Property Services,1330,Building Cleaning,Waste collection - February,12,2018,49.57,9822,28/02/2018,KPIN,GREEN RECYCLING LIMITED,
Property Services,1330,Building Cleaning,Waste collection - February,12,2018,45.33,9823,28/02/2018,KPIN,GREEN RECYCLING LIMITED,
Property Services,1330,Building Cleaning,Waste collection - February,12,2018,29.45,9824,28/02/2018,KPIN,GREEN RECYCLING LIMITED,
Property Services,1330,Building Cleaning,Waste collection - February,12,2018,43.29,9825,28/02/2018,KPIN,GREEN RECYCLING LIMITED,
Property Services,1330,Building Cleaning,Waste collection - February,12,2018,86.41,9826,28/02/2018,KPIN,GREEN RECYCLING LIMITED,
Property Services,1330,Building Cleaning,Waste collection - February,12,2018,82.17,9827,28/02/2018,KPIN,GREEN RECYCLING LIMITED,
Property Services,1330,Building Cleaning,Waste collection - February,12,2018,44.13,9828,28/02/2018,KPIN,GREEN RECYCLING LIMITED,
Property Services,1330,Building Cleaning,Waste collection - February,12,2018,29.45,9829,28/02/2018,KPIN,GREEN RECYCLING LIMITED,
Property Services,1330,Building Cleaning,Waste collection - February,12,2018,127.45,9830,28/02/2018,KPIN,GREEN RECYCLING LIMITED,
Property Services,1330,Building Cleaning,Waste collection - February,12,2018,29.45,9831,28/02/2018,KPIN,GREEN RECYCLING LIMITED,
Property Services,1330,Building Cleaning,Waste collection - February,12,2018,88.37,9832,28/02/2018,KPIN,GREEN RECYCLING LIMITED,
Property Services,1330,Building Cleaning,Waste collection - February,12,2018,37.77,9833,28/02/2018,KPIN,GREEN RECYCLING LIMITED,
Property Services,1330,Building Cleaning,Waste collection - February,12,2018,33.61,9834,28/02/2018,KPIN,GREEN RECYCLING LIMITED,
Property Services,1330,Building Cleaning,Waste collection - February,12,2018,58.65,9835,28/02/2018,KPIN,GREEN RECYCLING LIMITED,
Property Services,1330,Building Cleaning,Waste collection - February,12,2018,341.17,9836,28/02/2018,KPIN,GREEN RECYCLING LIMITED,
Property Services,1330,Building Cleaning,Waste collection - February,12,2018,35.73,9837,28/02/2018,KPIN,GREEN RECYCLING LIMITED,
Property Services,1330,Building Cleaning,Waste collection - February,12,2018,31.53,9838,28/02/2018,KPIN,GREEN RECYCLING LIMITED,
Property Services,1330,Building Cleaning,Waste collection - February,12,2018,82.17,9839,28/02/2018,KPIN,GREEN RECYCLING LIMITED,
Property Services,1330,Building Cleaning,Waste collection - February,12,2018,168.33,9840,28/02/2018,KPIN,GREEN RECYCLING LIMITED,
Property Services,1330,Building Cleaning,Waste collection - February,12,2018,44.13,9841,28/02/2018,KPIN,GREEN RECYCLING LIMITED,
Property Services,1330,Building Cleaning,Waste collection - February,12,2018,44.13,9842,28/02/2018,KPIN,GREEN RECYCLING LIMITED,
Property Services,1330,Building Cleaning,Waste collection - February,12,2018,43.29,9843,28/02/2018,KPIN,GREEN RECYCLING LIMITED,
Property Services,1060,Grounds Maintenance,12 YARD SKIP EXCHANGE,12,2018,104.88,9844,28/02/2018,KPIN,GREEN RECYCLING LIMITED,
Property Services,1060,Grounds Maintenance,Skip daily rental,12,2018,40.04,9844,28/02/2018,KPIN,GREEN RECYCLING LIMITED,
Property Services,4003,Postage Direct Mailing & Carriage,Courier Service 26/02/2018 on ,12,2018,184.44,9845,28/02/2018,KPIN,ANGLIA COURIER EXPRESS (EAST ANGLIA) LTD,
Technical Services,2030,Operational Equipment Support,4J4900 EvoLite Vented helmet,12,2018,85.06,9846,28/02/2018,KPIN,ARCO LTD,
Property Services,0180,Casual and Temporary Staff,Casual and Temporary Staff,12,2018,1115.65,9847,28/02/2018,KPIN,HAYS CONSTRUCTION & PROPERTY,
Workshops Management,3201,Petrol and Diesel,Petrol and Diesel,12,2018,2403.50,9848,26/02/2018,KPIN,CERTAS ENERGY UK LTD,
Property Services,0180,Casual and Temporary Staff,Casual and Temporary Staff,12,2018,98.20,9849,28/02/2018,KPIN,HAYS CONSTRUCTION & PROPERTY,
Property Services,0180,Casual and Temporary Staff,Casual and Temporary Staff,12,2018,1219.76,9849,28/02/2018,KPIN,HAYS CONSTRUCTION & PROPERTY,
Property Services,0180,Casual and Temporary Staff,Casual and Temporary Staff,12,2018,1160.25,9850,28/02/2018,KPIN,HAYS CONSTRUCTION & PROPERTY,
Property Services,0180,Casual and Temporary Staff,Casual and Temporary Staff,12,2018,25.74,9850,28/02/2018,KPIN,HAYS CONSTRUCTION & PROPERTY,
Property Services,0180,Casual and Temporary Staff,Casual and Temporary Staff,12,2018,1190.00,9852,28/02/2018,KPIN,HAYS CONSTRUCTION & PROPERTY,
Property Services,0180,Casual and Temporary Staff,Casual and Temporary Staff,12,2018,1115.65,9853,28/02/2018,KPIN,HAYS CONSTRUCTION & PROPERTY,
Property Services,0180,Casual and Temporary Staff,Casual and Temporary Staff,12,2018,1190.02,9854,28/02/2018,KPIN,HAYS CONSTRUCTION & PROPERTY,
Property Services,0180,Casual and Temporary Staff,Casual and Temporary Staff,12,2018,892.52,9855,28/02/2018,KPIN,HAYS CONSTRUCTION & PROPERTY,
Property Services,0180,Casual and Temporary Staff,Casual and Temporary Staff,12,2018,1115.65,9856,28/02/2018,KPIN,HAYS CONSTRUCTION & PROPERTY,
Property Services,0180,Casual and Temporary Staff,Casual and Temporary Staff,12,2018,83.70,9856,28/02/2018,KPIN,HAYS CONSTRUCTION & PROPERTY,
Property Services,0180,Casual and Temporary Staff,Casual and Temporary Staff,12,2018,1115.65,9857,28/02/2018,KPIN,HAYS CONSTRUCTION & PROPERTY,
Catering,4130,Hospitality & Entertaining,KP MESSCLUB,12,2018,46.59,9858,22/02/2018,KPIN,DONALD FREESTON,
Catering,4130,Hospitality & Entertaining,KP MESSCLUB,12,2018,43.98,9859,23/02/2018,KPIN,DONALD FREESTON,
Catering,4130,Hospitality & Entertaining,KP MESSCLUB,12,2018,41.21,9860,27/02/2018,KPIN,DONALD FREESTON,
Catering,4130,Hospitality & Entertaining,KP MESSCLUB,12,2018,62.01,9861,28/02/2018,KPIN,DONALD FREESTON,
Catering,4130,Hospitality & Entertaining,KP MESSCLUB,12,2018,274.37,9862,23/02/2018,KPIN,H&J FOODS LTD T/A OLYMPIC FOODS,
Catering,4130,Hospitality & Entertaining,KP MESSCLUB,12,2018,44.00,9863,23/02/2018,KPIN,THE LITTLE FISH COMPANY (KELVEDON) LTD,
Catering,4130,Hospitality & Entertaining,KP MESSCLUB,12,2018,122.75,9864,26/02/2018,KPIN,DONALD FREESTON,
ICT,2510,IT Communications,SMS CHARGES - FEBRUARY,12,2018,583.15,9865,28/02/2018,KPIN,SRCL LIMITED,
Water Services,2087,Water Services,FS00000083,12,2018,1072.30,9866,01/03/2018,KPIN,NORTHUMBRIAN WATER LTD (HYDRANTS),
Project 2020,6899,Miscellaneous Expenses,Install ETB at Baddow Fire Sta,12,2018,560.00,9867,27/02/2018,KPIN,C S ELECTRICAL ESSEX LTD,
Technical Services,2030,Operational Equipment Support,Maillon Rapide Maillon 10mm PP,12,2018,24.00,9868,28/02/2018,KPIN,LYON EQUIPMENT LTD,
Technical Services,2030,Operational Equipment Support,Maillon Rapide Delta Maillon 1,12,2018,28.00,9868,28/02/2018,KPIN,LYON EQUIPMENT LTD,
Technical Services,2030,Operational Equipment Support,Carriage,12,2018,6.50,9868,28/02/2018,KPIN,LYON EQUIPMENT LTD,
Technical Services,2030,Operational Equipment Support,Mallion Rapid Normal Twist Mal,12,2018,64.00,9868,28/02/2018,KPIN,LYON EQUIPMENT LTD,
Purchasing & Supply,2303,Clothing & Footwear,Peacekeeper P3 Aqua boot - siz,12,2018,96.24,9869,23/02/2018,KPIN,ALTBERG LTD,
ICT,B217,Payments in Advance,Resource Xpress Apr18-Mar19,12,2018,2729.09,9870,28/02/2018,KPIN,SEVERNSOFT LIMITED TRADING AS ESSENTIAL COMPUTING,
ICT,2040,IT Maintenance and Contracts,Resource Xpress 19 licences 01,12,2018,2729.09,9870,28/02/2018,KPIN,SEVERNSOFT LIMITED TRADING AS ESSENTIAL COMPUTING,
ICT,2040,IT Maintenance and Contracts,Resource Xpress 19 licences 01,12,2018,-2729.09,9870,28/02/2018,KPIN,SEVERNSOFT LIMITED TRADING AS ESSENTIAL COMPUTING,
Community Safety,0180,Casual and Temporary Staff,Casual and Temporary Staff,12,2018,573.76,9872,25/02/2018,KPIN,PURE RESOURCING SOLUTIONS LTD,
Community Safety,0180,Casual and Temporary Staff,Casual and Temporary Staff,12,2018,23.40,9872,25/02/2018,KPIN,PURE RESOURCING SOLUTIONS LTD,
ICT,0180,Casual and Temporary Staff,Casual and Temporary Staff,12,2018,612.34,9873,25/02/2018,KPIN,PURE RESOURCING SOLUTIONS LTD,
Community Safety,0180,Casual and Temporary Staff,Casual and Temporary Staff,12,2018,233.25,9874,25/02/2018,KPIN,PURE RESOURCING SOLUTIONS LTD,
Human Resources,0180,Casual and Temporary Staff,Casual and Temporary Staff,12,2018,646.56,9875,25/02/2018,KPIN,PURE RESOURCING SOLUTIONS LTD,
Community Safety,0180,Casual and Temporary Staff,Casual and Temporary Staff,12,2018,589.04,9876,25/02/2018,KPIN,PURE RESOURCING SOLUTIONS LTD,
Stores,B205,Stocks & WIP (Purchasing & Supply Stores),Freight Misc,12,2018,8.50,9877,23/02/2018,KPIN,JACTONE PRODUCTS LTD,
Stores,B205,Stocks & WIP (Purchasing & Supply Stores),Fire Extinguisher.Dry Powder 1,12,2018,79.60,9877,23/02/2018,KPIN,JACTONE PRODUCTS LTD,
ICT,4005,IT Consumables,HP MODEL: MM1000FBFVR PART#: ,12,2018,354.00,9878,02/03/2018,KPIN,DATA PRO IT LIMITED,
Corporate Comms,4008,Media Expenses,CC Subs Feb 18,12,2018,462.78,9879,26/02/2018,KPIN,CROWD CONTROL HQ,
Property Services,1050,Building Maintenance,Hinges to hose store broken,12,2018,58.44,9880,28/02/2018,KPIN,NORMAN DAVID MAINTENANCE,
Property Services,1050,Building Maintenance,Repair collapsed drainage gull,12,2018,67.09,9881,28/02/2018,KPIN,NORMAN DAVID MAINTENANCE,
Property Services,1050,Building Maintenance,Door closer broken (fire door),12,2018,189.81,9882,28/02/2018,KPIN,NORMAN DAVID MAINTENANCE,
Property Services,1050,Building Maintenance,Repair / replace broken floor ,12,2018,76.57,9883,28/02/2018,KPIN,NORMAN DAVID MAINTENANCE,
Property Services,1050,Building Maintenance,Equipment shop door lock  Repa,12,2018,68.86,9884,28/02/2018,KPIN,NORMAN DAVID MAINTENANCE,
Property Services,1499,Furniture and Fittings,New station sign,12,2018,57.68,9885,28/02/2018,KPIN,NORMAN DAVID MAINTENANCE,
Property Services,1050,Building Maintenance,Provide and install racking to,12,2018,900.56,9886,02/03/2018,KPIN,NORMAN DAVID MAINTENANCE,
Property Services,1050,Building Maintenance,Provide and install racking to,12,2018,500.00,9886,02/03/2018,KPIN,NORMAN DAVID MAINTENANCE,
ICT,2510,IT Communications,March 2018,12,2018,890.00,9887,01/03/2018,KPIN,PAGEONE COMMUNICATIONS LTD,
Service Leadership Team,6899,Miscellaneous Expenses,Reward & Recognition Certifica,12,2018,72.00,9888,28/02/2018,KPIN,BENSONS PRINTING COMPANY LTD,
Service Leadership Team,6899,Miscellaneous Expenses,ADDITIONAL A4 CERTIFICATE,12,2018,15.00,9888,28/02/2018,KPIN,BENSONS PRINTING COMPANY LTD,
Training,2016,Fitness Equipment,Gym Mat,12,2018,80.65,9889,21/02/2018,KPIN,SPORTSAFE UK LTD,
Stores,B205,Stocks & WIP (Purchasing & Supply Stores),Glove Dispoable Purple Nitrile,12,2018,45.15,9890,20/02/2018,KPIN,S P SERVICES (UK) LTD,
Stores,B205,Stocks & WIP (Purchasing & Supply Stores),Window Punch/ Seatbelt Cutter,12,2018,49.95,9891,08/02/2018,KPIN,S P SERVICES (UK) LTD,
Stores,B205,Stocks & WIP (Purchasing & Supply Stores),Motorist First Aid Kit Medium ,12,2018,104.95,9891,08/02/2018,KPIN,S P SERVICES (UK) LTD,
Finance & Pay,0180,Casual and Temporary Staff,Casual and Temporary Staff,12,2018,571.28,9892,25/02/2018,KPIN,PURE RESOURCING SOLUTIONS LTD,
Human Resources,0180,Casual and Temporary Staff,Casual and Temporary Staff,12,2018,-571.28,9892,25/02/2018,KPIN,PURE RESOURCING SOLUTIONS LTD,
Human Resources,0180,Casual and Temporary Staff,Casual and Temporary Staff,12,2018,571.28,9892,25/02/2018,KPIN,PURE RESOURCING SOLUTIONS LTD,
Property Services,1060,Grounds Maintenance,Pest Control,12,2018,155.67,9893,28/02/2018,KPIN,NBC ENVIRONMENT LTD,
Human Resources,0960,Occupational Health,Occupational Health,12,2018,250.00,9894,22/02/2018,KPIN,JENNIE WICKENDEN-WALSH,
Technical Services,2032,Operational Equip-Initial Purchase,Filming of live fire exercise ,12,2018,455.00,9895,21/02/2018,KPIN,UNITRONICS VIDEO PRODUCTION,
ICT,2040,IT Maintenance and Contracts,Fully managed cloud backup Sol,12,2018,3250.00,9896,28/02/2018,KPIN,IOMART CLOUD SERVICE,
Property Services,0180,Casual and Temporary Staff,Casual and Temporary Staff,12,2018,461.67,9897,16/02/2018,KPIN,PURSUIT RESOURCES GROUP LTD,
Property Services,0180,Casual and Temporary Staff,Casual and Temporary Staff,12,2018,475.66,9897,16/02/2018,KPIN,PURSUIT RESOURCES GROUP LTD,
Stores,B205,Stocks & WIP (Purchasing & Supply Stores),Airway Guedel Disp. Size 1 (Co,12,2018,4.00,9898,19/02/2018,KPIN,S P SERVICES (UK) LTD,
Stores,B205,Stocks & WIP (Purchasing & Supply Stores),Airway Guedel Disp. Size 2 (Co,12,2018,4.00,9898,19/02/2018,KPIN,S P SERVICES (UK) LTD,
Stores,B205,Stocks & WIP (Purchasing & Supply Stores),Freight Misc,12,2018,4.95,9898,19/02/2018,KPIN,S P SERVICES (UK) LTD,
Stores,B205,Stocks & WIP (Purchasing & Supply Stores),Airway Guedel Disposable. Size,12,2018,4.00,9898,19/02/2018,KPIN,S P SERVICES (UK) LTD,
Stores,B205,Stocks & WIP (Purchasing & Supply Stores),Airway Guedel Disposable. Size,12,2018,4.00,9898,19/02/2018,KPIN,S P SERVICES (UK) LTD,
Stores,B205,Stocks & WIP (Purchasing & Supply Stores),Airway Guedel Disp. Size 3 (Co,12,2018,4.00,9898,19/02/2018,KPIN,S P SERVICES (UK) LTD,
Stores,B205,Stocks & WIP (Purchasing & Supply Stores),Airway Guedel Disp. Size 4 (Co,12,2018,4.00,9898,19/02/2018,KPIN,S P SERVICES (UK) LTD,
Training,0710,Organisational Development,Organisational Development,12,2018,3906.00,9899,02/03/2018,KPIN,LISA HARDY,
Property Services,1050,Building Maintenance,Fire alarm recommendations,12,2018,210.00,9900,01/03/2018,KPIN,FISK FIRE PROTECTION LTD,
Property Services,1050,Building Maintenance,Smoke detector head - loose in,12,2018,198.00,9901,01/03/2018,KPIN,FISK FIRE PROTECTION LTD,
Police Collaboration,0180,Casual and Temporary Staff,Casual and Temporary Staff,12,2018,433.08,9903,02/03/2018,KPIN,REED SPECIALIST RECRUITMENT LIMITED,
Police Collaboration,0180,Casual and Temporary Staff,Casual and Temporary Staff,12,2018,-433.08,9903,02/03/2018,KPIN,REED SPECIALIST RECRUITMENT LIMITED,
Project 2020,0180,Casual and Temporary Staff,Casual and Temporary Staff,12,2018,433.08,9903,02/03/2018,KPIN,REED SPECIALIST RECRUITMENT LIMITED,
Stores,B205,Stocks & WIP (Purchasing & Supply Stores),Beeswax tablet (Drysuits),12,2018,2.46,9904,26/02/2018,KPIN,SAFEQUIP LTD,
Operations - USAR,2030,Operational Equipment Support,Driver Glove size 9 (USAR),12,2018,22.59,9905,02/02/2018,KPIN,R S COMPONENTS LTD,
Operations - USAR,2030,Operational Equipment Support,Driver Glove size 10 (USAR),12,2018,30.12,9905,02/02/2018,KPIN,R S COMPONENTS LTD,
Water Services,2087,Water Services,"486334 Ball Valve 1/4"" M - F",12,2018,28.32,9906,12/02/2018,KPIN,R S COMPONENTS LTD,
Technical Services,2032,Operational Equip-Initial Purchase,Responder Drysuit - Medium,12,2018,620.00,9907,02/03/2018,KPIN,NORTHERN DIVER INTERNATIONAL LTD,
Technical Services,2032,Operational Equip-Initial Purchase,Freestyle Safety Boot - State ,12,2018,60.00,9907,02/03/2018,KPIN,NORTHERN DIVER INTERNATIONAL LTD,
Technical Services,2032,Operational Equip-Initial Purchase,Freestyle Safety Boot - State ,12,2018,240.00,9907,02/03/2018,KPIN,NORTHERN DIVER INTERNATIONAL LTD,
Technical Services,2032,Operational Equip-Initial Purchase,Freestyle Safety Boot - State ,12,2018,60.00,9907,02/03/2018,KPIN,NORTHERN DIVER INTERNATIONAL LTD,
Technical Services,2032,Operational Equip-Initial Purchase,Glove. 3mm Neoprene/ Kevlar  -,12,2018,52.00,9907,02/03/2018,KPIN,NORTHERN DIVER INTERNATIONAL LTD,
Technical Services,2032,Operational Equip-Initial Purchase,Glove. 3mm Neoprene/ Kevlar  -,12,2018,130.00,9907,02/03/2018,KPIN,NORTHERN DIVER INTERNATIONAL LTD,
Technical Services,2032,Operational Equip-Initial Purchase,CARRIAGE,12,2018,30.00,9907,02/03/2018,KPIN,NORTHERN DIVER INTERNATIONAL LTD,
Technical Services,2032,Operational Equip-Initial Purchase,Freestyle Safety Boot - State ,12,2018,120.00,9907,02/03/2018,KPIN,NORTHERN DIVER INTERNATIONAL LTD,
Technical Services,2032,Operational Equip-Initial Purchase,Freestyle Safety Boot - State ,12,2018,540.00,9907,02/03/2018,KPIN,NORTHERN DIVER INTERNATIONAL LTD,
Technical Services,2032,Operational Equip-Initial Purchase,Freestyle Safety Boot - State ,12,2018,240.00,9907,02/03/2018,KPIN,NORTHERN DIVER INTERNATIONAL LTD,
Technical Services,2032,Operational Equip-Initial Purchase,Freestyle Safety Boot - State ,12,2018,60.00,9907,02/03/2018,KPIN,NORTHERN DIVER INTERNATIONAL LTD,
Technical Services,2032,Operational Equip-Initial Purchase,Glove. 3mm Neoprene/ Kevlar  -,12,2018,104.00,9907,02/03/2018,KPIN,NORTHERN DIVER INTERNATIONAL LTD,
Technical Services,2032,Operational Equip-Initial Purchase,Glove. 3mm Neoprene/ Kevlar  -,12,2018,52.00,9907,02/03/2018,KPIN,NORTHERN DIVER INTERNATIONAL LTD,
Technical Services,2032,Operational Equip-Initial Purchase,Responder Drysuit - X Large,12,2018,930.00,9907,02/03/2018,KPIN,NORTHERN DIVER INTERNATIONAL LTD,
Technical Services,2032,Operational Equip-Initial Purchase,Responder Drysuit - Large,12,2018,2170.00,9907,02/03/2018,KPIN,NORTHERN DIVER INTERNATIONAL LTD,
Technical Services,2032,Operational Equip-Initial Purchase,Responder Drysuit - XX Large,12,2018,155.00,9907,02/03/2018,KPIN,NORTHERN DIVER INTERNATIONAL LTD,
Technical Services,2032,Operational Equip-Initial Purchase,Freestyle Safety Boot - State ,12,2018,60.00,9907,02/03/2018,KPIN,NORTHERN DIVER INTERNATIONAL LTD,
Technical Services,2032,Operational Equip-Initial Purchase,Freestyle Safety Boot - State ,12,2018,180.00,9907,02/03/2018,KPIN,NORTHERN DIVER INTERNATIONAL LTD,
Operations,4009,Operational Support Costs,Freight Misc,12,2018,8.99,9908,28/02/2018,KPIN,THE OUTDOORS COMPANY,
Operations,4009,Operational Support Costs,Viper Recon Extra Pack 45 ltr ,12,2018,96.99,9908,28/02/2018,KPIN,THE OUTDOORS COMPANY,
Operations,4009,Operational Support Costs,Viper Recon,12,2018,105.98,9908,28/02/2018,KPIN,THE OUTDOORS COMPANY,
Operations,4009,Operational Support Costs,Viper Recon,12,2018,-105.98,9908,28/02/2018,KPIN,THE OUTDOORS COMPANY,
Training,0702,External Training - L&D Panel,External Training - L&D Panel,12,2018,2458.20,9909,29/09/2017,KPIN,COVENTRY UNIVERSITY,
Training,0702,External Training - L&D Panel,External Training - L&D Panel,12,2018,-2458.20,9909,29/09/2017,KPIN,COVENTRY UNIVERSITY,
Essex Civil Prot ECC,0702,External Training - L&D Panel,External Training - L&D Panel,12,2018,2458.20,9909,29/09/2017,KPIN,COVENTRY UNIVERSITY,
Human Resources,0960,Occupational Health,Occupational Health,12,2018,700.00,9910,02/03/2018,KPIN,CLARE POWELL,
Corporate Comms,4008,Media Expenses,W/T recruitment campaign,12,2018,22595.32,9911,21/02/2018,KPIN,ZERO ABOVE LTD,
Operations - USAR,2030,Operational Equipment Support,Freight Misc,12,2018,8.99,9912,01/03/2018,KPIN,THE OUTDOORS COMPANY,
Operations - USAR,2030,Operational Equipment Support,"Smock, Extreme, Montane (Black",12,2018,252.00,9912,01/03/2018,KPIN,THE OUTDOORS COMPANY,
Operations - USAR,2030,Operational Equipment Support,"Smock, Extreme, Montane (Black",12,2018,168.00,9912,01/03/2018,KPIN,THE OUTDOORS COMPANY,
Technical Services,2030,Operational Equipment Support,Hotsox -Large,12,2018,100.00,9913,02/03/2018,KPIN,NORTHERN DIVER INTERNATIONAL LTD,
Technical Services,2030,Operational Equipment Support,Freight Misc,12,2018,7.50,9913,02/03/2018,KPIN,NORTHERN DIVER INTERNATIONAL LTD,
Technical Services,2030,Operational Equipment Support,Hotsox -Medium,12,2018,50.00,9913,02/03/2018,KPIN,NORTHERN DIVER INTERNATIONAL LTD,
Technical Services,2030,Operational Equipment Support,Hotsox - X Large,12,2018,75.00,9913,02/03/2018,KPIN,NORTHERN DIVER INTERNATIONAL LTD,
Human Resources,0960,Occupational Health,Occupational Health,12,2018,168.00,9914,28/02/2018,KPIN,PHYSIOTHERAPY ESSEX LTD,
Human Resources,0960,Occupational Health,Occupational Health,12,2018,650.00,9914,28/02/2018,KPIN,PHYSIOTHERAPY ESSEX LTD,
Operations,4009,Operational Support Costs,Challenge in South Wales - Rop,12,2018,900.00,9915,03/03/2018,KPIN,UKRO,
Operations,4009,Operational Support Costs,Challenge in South Wales - Ext,12,2018,1800.00,9915,03/03/2018,KPIN,UKRO,
Operations,4009,Operational Support Costs,Challenge in South Wales - Tra,12,2018,450.00,9915,03/03/2018,KPIN,UKRO,
Operations,4009,Operational Support Costs,Challenge in Wales Sept18,12,2018,-3150.00,9915,03/03/2018,KPIN,UKRO,
Operations,B217,Payments in Advance,Challenge in Wales Sept18,12,2018,3150.00,9915,03/03/2018,KPIN,UKRO,
Workshops Management,3201,Petrol and Diesel,Petrol and Diesel,12,2018,3687.76,9916,28/02/2018,KPIN,ALLSTAR BUSINESS SOLUTIONS LTD,
Workshops Management,3201,Petrol and Diesel,Petrol and Diesel,12,2018,-3687.76,9916,28/02/2018,KPIN,ALLSTAR BUSINESS SOLUTIONS LTD,
ICT,4005,IT Consumables,"1 x Sata 250GB 2.5 HDD, replac",12,2018,47.00,9917,05/03/2018,KPIN,DATA PRO IT LIMITED,
Property Services,0180,Casual and Temporary Staff,Casual and Temporary Staff,12,2018,1190.00,9918,02/03/2018,KPIN,HAYS CONSTRUCTION & PROPERTY,
Property Services,0180,Casual and Temporary Staff,Casual and Temporary Staff,12,2018,215.46,9918,02/03/2018,KPIN,HAYS CONSTRUCTION & PROPERTY,
Community Safety,4019,Community Safety,Fellowes Black DS-500C Cross C,12,2018,82.57,9919,02/03/2018,KPIN,BANNER GROUP LIMITED,
Property Services,1303,Fuel Oil,850L of heating oil,12,2018,345.44,9920,28/02/2018,KPIN,CERTAS ENERGY UK LTD,
Purchasing & Supply,2024,Cleaning Equipment,6663 Scott Performance Hand To,12,2018,96.32,9921,02/03/2018,KPIN,BUNZL CLEANING & HYGIENE SUPPLIES,
Purchasing & Supply,2024,Cleaning Equipment,Dettol Antibacterial Surface C,12,2018,21.00,9921,02/03/2018,KPIN,BUNZL CLEANING & HYGIENE SUPPLIES,
Not Analysed,B118,Asset Protection,1718/408 Training Room Refurbi,12,2018,40195.57,9922,01/03/2018,KPIN,MILLANE CONTRACT SERVICES LTD,
Stores,B205,Stocks & WIP (Purchasing & Supply Stores),Fleece - Thor III dark navy cr,12,2018,389.75,9923,26/02/2018,KPIN,BALLANTYNE EDWARDS LTD,
Stores,B205,Stocks & WIP (Purchasing & Supply Stores),Fleece - Thor III black with c,12,2018,311.80,9923,26/02/2018,KPIN,BALLANTYNE EDWARDS LTD,
Stores,B205,Stocks & WIP (Purchasing & Supply Stores),High Vis Waistcoat Yellow Larg,12,2018,29.95,9923,26/02/2018,KPIN,BALLANTYNE EDWARDS LTD,
Property Services,1330,Building Cleaning,Extraction fan to cooker.  Gre,12,2018,120.00,9924,28/02/2018,KPIN,MONTHIND CLEAN LLP,
Training,0707,Operational Training Contracts,Admin Fee,12,2018,55.00,9925,05/03/2018,KPIN,ROADTRAIN LEGAL & FINANCIAL LTD,
Training,0707,Operational Training Contracts,27/02 - 05/03/2018 LGV Driver ,12,2018,550.00,9925,05/03/2018,KPIN,ROADTRAIN LEGAL & FINANCIAL LTD,
Training,0707,Operational Training Contracts,Theory,12,2018,11.00,9925,05/03/2018,KPIN,ROADTRAIN LEGAL & FINANCIAL LTD,
Training,0707,Operational Training Contracts,Medical ,12,2018,50.00,9925,05/03/2018,KPIN,ROADTRAIN LEGAL & FINANCIAL LTD,
Training,0707,Operational Training Contracts,DSA Test Fee,12,2018,115.00,9925,05/03/2018,KPIN,ROADTRAIN LEGAL & FINANCIAL LTD,
Training,0707,Operational Training Contracts,Theory,12,2018,37.00,9925,05/03/2018,KPIN,ROADTRAIN LEGAL & FINANCIAL LTD,
Training,0707,Operational Training Contracts,DSA Test Fee ,12,2018,115.00,9926,05/03/2018,KPIN,ROADTRAIN LEGAL & FINANCIAL LTD,
Training,0707,Operational Training Contracts,Theory ,12,2018,37.00,9926,05/03/2018,KPIN,ROADTRAIN LEGAL & FINANCIAL LTD,
Training,0707,Operational Training Contracts,LGV Driver Training ,12,2018,550.00,9926,05/03/2018,KPIN,ROADTRAIN LEGAL & FINANCIAL LTD,
Training,0707,Operational Training Contracts,Medical ,12,2018,50.00,9926,05/03/2018,KPIN,ROADTRAIN LEGAL & FINANCIAL LTD,
Training,0707,Operational Training Contracts,Admin Fee ,12,2018,55.00,9926,05/03/2018,KPIN,ROADTRAIN LEGAL & FINANCIAL LTD,
Corporate Comms,4008,Media Expenses,Feb Comms Support,12,2018,562.50,9927,28/02/2018,KPIN,QUANTUM PUBLIC RELATIONS,
Property Services,1060,Grounds Maintenance,Plant hire - MARCH,12,2018,226.40,9928,05/03/2018,KPIN,LESLEYS BLOOMERS LTD,
Human Resources,0960,Occupational Health,Occupational Health,12,2018,26.40,9929,05/03/2018,KPIN,LESLEYS BLOOMERS LTD,
Training,0715,In House Operational Training,In House Operational Training,12,2018,23.10,9930,28/02/2018,KPIN,RUTH LEE LTD,
Training,0715,In House Operational Training,In House Operational Training,12,2018,144.00,9930,28/02/2018,KPIN,RUTH LEE LTD,
ICT,B217,Payments in Advance,Annual  Support E-Task 1st Apr,12,2018,4634.00,9931,05/03/2018,KPIN,KIM SOFTWARE SOLUTIONS LTD,
ICT,2040,IT Maintenance and Contracts,Annual  Support E-Task 1st Apr,12,2018,4634.00,9931,05/03/2018,KPIN,KIM SOFTWARE SOLUTIONS LTD,
ICT,2040,IT Maintenance and Contracts,Annual  Support E-Task 1st Apr,12,2018,-4634.00,9931,05/03/2018,KPIN,KIM SOFTWARE SOLUTIONS LTD,
Property Services,1499,Furniture and Fittings,Blind requested for small wind,12,2018,97.00,9932,28/02/2018,KPIN,NANTMOR BLINDS LTD,
Property Services,1499,Furniture and Fittings,Blinds need repairing,12,2018,193.00,9933,28/02/2018,KPIN,NANTMOR BLINDS LTD,
Training,4111,Subsistence Allowances,Subsistence Allowances,12,2018,170.50,9934,02/03/2018,KPIN,THE SANDWICH MAN,
Training,4111,Subsistence Allowances,Subsistence Allowances,12,2018,58.50,9934,02/03/2018,KPIN,THE SANDWICH MAN,
Training,4111,Subsistence Allowances,Subsistence Allowances,12,2018,77.00,9934,02/03/2018,KPIN,THE SANDWICH MAN,
Training,4111,Subsistence Allowances,Subsistence Allowances,12,2018,33.00,9934,02/03/2018,KPIN,THE SANDWICH MAN,
Training,4111,Subsistence Allowances,Subsistence Allowances,12,2018,77.00,9934,02/03/2018,KPIN,THE SANDWICH MAN,
Training,4111,Subsistence Allowances,Subsistence Allowances,12,2018,77.00,9934,02/03/2018,KPIN,THE SANDWICH MAN,
Training,4111,Subsistence Allowances,Subsistence Allowances,12,2018,170.50,9934,02/03/2018,KPIN,THE SANDWICH MAN,
Training,4111,Subsistence Allowances,Subsistence Allowances,12,2018,214.50,9934,02/03/2018,KPIN,THE SANDWICH MAN,
Technical Services,2030,Operational Equipment Support,Assorted Sandwiches & Fruit Pl,12,2018,82.50,9935,02/03/2018,KPIN,THE SANDWICH MAN,
Property Services,1050,Building Maintenance,test for asbestos in boiler ro,12,2018,200.00,9936,28/02/2018,KPIN,BROADLAND GROUP LIMITED,
Purchasing & Supply,2012,Office/Admin Equipment (incl copiers),Trodat 4928 Original Seen & Ve,12,2018,57.18,9937,16/02/2018,KPIN,E M RICHFORD LTD,
Human Resources,6899,Miscellaneous Expenses,EDM Monthly Invoice Feb 2018,12,2018,137.54,9938,26/02/2018,KPIN,EDM GROUP LIMITED,
Property Services,1050,Building Maintenance,Minor Works 1718/216  - Distri,12,2018,1613.00,9939,28/02/2018,KPIN,L & D SERVICES LTD,
Property Services,1050,Building Maintenance,Electrical test and inspection,12,2018,450.00,9940,28/02/2018,KPIN,L & D SERVICES LTD,
Property Services,1050,Building Maintenance,Electrical test and inspection,12,2018,450.00,9940,28/02/2018,KPIN,L & D SERVICES LTD,
Property Services,1050,Building Maintenance,Electrical test and inspection,12,2018,450.00,9940,28/02/2018,KPIN,L & D SERVICES LTD,
Property Services,1050,Building Maintenance,Electrical test and inspection,12,2018,450.00,9940,28/02/2018,KPIN,L & D SERVICES LTD,
Human Resources,0960,Occupational Health,Occupational Health,12,2018,6060.00,9941,28/02/2018,KPIN,PEOPLE ASSET MANAGEMENT LIMITED,
Technical Services,2032,Operational Equip-Initial Purchase,10506 - Pilot Skull cap,12,2018,88.95,9942,05/03/2018,KPIN,PALM EQUIPMENT INTERNATIONAL LIMITED,
Technical Services,2032,Operational Equip-Initial Purchase,Freight Misc,12,2018,8.50,9942,05/03/2018,KPIN,PALM EQUIPMENT INTERNATIONAL LIMITED,
Catering,4130,Hospitality & Entertaining,KP MESSCLUB,12,2018,145.90,9943,05/03/2018,KPIN,DIRECT MEATS,
Property Services,1322,Sewerage Charges,01/09/17-24/02/18,12,2018,90.38,9944,24/02/2018,KPIN,ANGLIAN WATER BUSINESS (NATIONAL) LTD,
Property Services,1322,Sewerage Charges,01/09/17-24/02/18,12,2018,333.26,9945,24/02/2018,KPIN,ANGLIAN WATER BUSINESS (NATIONAL) LTD,
Property Services,1322,Sewerage Charges,01/09/17-24/02/18,12,2018,506.11,9946,24/02/2018,KPIN,ANGLIAN WATER BUSINESS (NATIONAL) LTD,
Property Services,1322,Sewerage Charges,01/09/17-24/02/18,12,2018,127.06,9947,24/02/2018,KPIN,ANGLIAN WATER BUSINESS (NATIONAL) LTD,
Property Services,1322,Sewerage Charges,01/09/17-24/02/18,12,2018,638.40,9948,24/02/2018,KPIN,ANGLIAN WATER BUSINESS (NATIONAL) LTD,
ICT,2510,IT Communications,BT BILL FEB 2018,12,2018,10374.56,9949,22/02/2018,KPIN,BRITISH TELECOMMUNICATIONS,
Water Services,2087,Water Services,HW1476,12,2018,447.80,9950,28/02/2018,KPIN,NORTHUMBRIAN WATER LTD (HYDRANTS),
Water Services,2087,Water Services,HE1076,12,2018,424.00,9951,28/02/2018,KPIN,NORTHUMBRIAN WATER LTD (HYDRANTS),
Property Services,4003,Postage Direct Mailing & Carriage,Postage - Response JAN,12,2018,6.38,9952,19/02/2018,KPIN,ROYAL MAIL GROUP LIMITED,
Property Services,4003,Postage Direct Mailing & Carriage,Postage - Response JAN/FEB,12,2018,6.65,9953,26/02/2018,KPIN,ROYAL MAIL GROUP LIMITED,
Property Services,1040,Planned Works,Provision of mobile security s,12,2018,1098.68,9954,28/02/2018,KPIN,OAKPARK SECURITY SYSTEMS LIMITED,
Stores,B205,Stocks & WIP (Purchasing & Supply Stores),CE401YC Cyan Toner HP507A - 60,12,2018,1002.84,9955,28/02/2018,KPIN,XMA LIMITED,
Stores,B205,Stocks & WIP (Purchasing & Supply Stores),CE402YC Yellow Toner HP507A - ,12,2018,501.42,9955,28/02/2018,KPIN,XMA LIMITED,
Stores,B205,Stocks & WIP (Purchasing & Supply Stores),"Toner, Cyan, CE251A",12,2018,245.32,9955,28/02/2018,KPIN,XMA LIMITED,
Stores,B205,Stocks & WIP (Purchasing & Supply Stores),CE400X Toner Black HP507X - 11,12,2018,742.38,9955,28/02/2018,KPIN,XMA LIMITED,
Stores,B205,Stocks & WIP (Purchasing & Supply Stores),CE403YC Magenta Toner HP507A -,12,2018,501.42,9955,28/02/2018,KPIN,XMA LIMITED,
Stores,B205,Stocks & WIP (Purchasing & Supply Stores),"Toner cartridge, yellow, CE252",12,2018,265.26,9955,28/02/2018,KPIN,XMA LIMITED,
Technical Services,2032,Operational Equip-Initial Purchase,Responder Drysuit - XXX Large,12,2018,155.00,9956,05/03/2018,KPIN,NORTHERN DIVER INTERNATIONAL LTD,
Training,4111,Subsistence Allowances,Subsistence Allowances,12,2018,40.50,9957,02/02/2018,KPIN,SARAHS CATERING LIMITED,
Training,4111,Subsistence Allowances,Subsistence Allowances,12,2018,54.00,9957,02/02/2018,KPIN,SARAHS CATERING LIMITED,
Training,4111,Subsistence Allowances,Subsistence Allowances,12,2018,20.25,9957,02/02/2018,KPIN,SARAHS CATERING LIMITED,
Training,4111,Subsistence Allowances,Subsistence Allowances,12,2018,40.50,9957,02/02/2018,KPIN,SARAHS CATERING LIMITED,
Training,4111,Subsistence Allowances,Subsistence Allowances,12,2018,100.00,9957,02/02/2018,KPIN,SARAHS CATERING LIMITED,
Training,4111,Subsistence Allowances,Subsistence Allowances,12,2018,54.00,9957,02/02/2018,KPIN,SARAHS CATERING LIMITED,
Training,4111,Subsistence Allowances,Subsistence Allowances,12,2018,20.00,9957,02/02/2018,KPIN,SARAHS CATERING LIMITED,
Training,4111,Subsistence Allowances,Subsistence Allowances,12,2018,121.75,9957,02/02/2018,KPIN,SARAHS CATERING LIMITED,
Training,4111,Subsistence Allowances,Subsistence Allowances,12,2018,18.00,9957,02/02/2018,KPIN,SARAHS CATERING LIMITED,
Training,4111,Subsistence Allowances,Subsistence Allowances,12,2018,20.00,9957,02/02/2018,KPIN,SARAHS CATERING LIMITED,
Training,4111,Subsistence Allowances,Subsistence Allowances,12,2018,10.00,9957,02/02/2018,KPIN,SARAHS CATERING LIMITED,
Training,4111,Subsistence Allowances,Subsistence Allowances,12,2018,40.50,9957,02/02/2018,KPIN,SARAHS CATERING LIMITED,
Training,4111,Subsistence Allowances,Subsistence Allowances,12,2018,40.50,9957,02/02/2018,KPIN,SARAHS CATERING LIMITED,
Training,4111,Subsistence Allowances,Subsistence Allowances,12,2018,40.50,9957,02/02/2018,KPIN,SARAHS CATERING LIMITED,
Training,4111,Subsistence Allowances,Subsistence Allowances,12,2018,33.75,9957,02/02/2018,KPIN,SARAHS CATERING LIMITED,
Training,4111,Subsistence Allowances,Subsistence Allowances,12,2018,54.00,9957,02/02/2018,KPIN,SARAHS CATERING LIMITED,
Training,4111,Subsistence Allowances,Subsistence Allowances,12,2018,54.00,9957,02/02/2018,KPIN,SARAHS CATERING LIMITED,
Training,4111,Subsistence Allowances,Subsistence Allowances,12,2018,50.00,9957,02/02/2018,KPIN,SARAHS CATERING LIMITED,
Training,4111,Subsistence Allowances,Subsistence Allowances,12,2018,54.00,9957,02/02/2018,KPIN,SARAHS CATERING LIMITED,
Training,4111,Subsistence Allowances,Subsistence Allowances,12,2018,54.00,9957,02/02/2018,KPIN,SARAHS CATERING LIMITED,
Training,4111,Subsistence Allowances,Subsistence Allowances,12,2018,40.50,9957,02/02/2018,KPIN,SARAHS CATERING LIMITED,
Training,4111,Subsistence Allowances,Subsistence Allowances,12,2018,54.00,9958,10/02/2018,KPIN,SARAHS CATERING LIMITED,
Training,4111,Subsistence Allowances,Subsistence Allowances,12,2018,135.00,9958,10/02/2018,KPIN,SARAHS CATERING LIMITED,
Training,4111,Subsistence Allowances,Subsistence Allowances,12,2018,15.00,9958,10/02/2018,KPIN,SARAHS CATERING LIMITED,
Training,4111,Subsistence Allowances,Subsistence Allowances,12,2018,54.00,9958,10/02/2018,KPIN,SARAHS CATERING LIMITED,
Training,4111,Subsistence Allowances,Subsistence Allowances,12,2018,60.00,9958,10/02/2018,KPIN,SARAHS CATERING LIMITED,
Training,4111,Subsistence Allowances,Subsistence Allowances,12,2018,40.50,9958,10/02/2018,KPIN,SARAHS CATERING LIMITED,
Training,4111,Subsistence Allowances,Subsistence Allowances,12,2018,10.00,9958,10/02/2018,KPIN,SARAHS CATERING LIMITED,
Training,4111,Subsistence Allowances,Subsistence Allowances,12,2018,40.50,9958,10/02/2018,KPIN,SARAHS CATERING LIMITED,
Training,4111,Subsistence Allowances,Subsistence Allowances,12,2018,20.00,9958,10/02/2018,KPIN,SARAHS CATERING LIMITED,
Training,4111,Subsistence Allowances,Subsistence Allowances,12,2018,33.75,9958,10/02/2018,KPIN,SARAHS CATERING LIMITED,
Training,4111,Subsistence Allowances,Subsistence Allowances,12,2018,54.00,9958,10/02/2018,KPIN,SARAHS CATERING LIMITED,
Training,4111,Subsistence Allowances,Subsistence Allowances,12,2018,33.75,9959,16/02/2018,KPIN,SARAHS CATERING LIMITED,
Training,4111,Subsistence Allowances,Subsistence Allowances,12,2018,80.00,9959,16/02/2018,KPIN,SARAHS CATERING LIMITED,
Training,4111,Subsistence Allowances,Subsistence Allowances,12,2018,81.00,9959,16/02/2018,KPIN,SARAHS CATERING LIMITED,
Training,4111,Subsistence Allowances,Subsistence Allowances,12,2018,33.75,9959,16/02/2018,KPIN,SARAHS CATERING LIMITED,
Training,4111,Subsistence Allowances,Subsistence Allowances,12,2018,54.00,9959,16/02/2018,KPIN,SARAHS CATERING LIMITED,
Training,4111,Subsistence Allowances,Subsistence Allowances,12,2018,54.00,9959,16/02/2018,KPIN,SARAHS CATERING LIMITED,
Training,4111,Subsistence Allowances,Subsistence Allowances,12,2018,60.75,9959,16/02/2018,KPIN,SARAHS CATERING LIMITED,
Training,4111,Subsistence Allowances,Subsistence Allowances,12,2018,114.75,9959,16/02/2018,KPIN,SARAHS CATERING LIMITED,
Training,4111,Subsistence Allowances,Subsistence Allowances,12,2018,60.75,9959,16/02/2018,KPIN,SARAHS CATERING LIMITED,
Training,4111,Subsistence Allowances,Subsistence Allowances,12,2018,60.75,9959,16/02/2018,KPIN,SARAHS CATERING LIMITED,
Training,4111,Subsistence Allowances,Subsistence Allowances,12,2018,60.75,9959,16/02/2018,KPIN,SARAHS CATERING LIMITED,
Training,4111,Subsistence Allowances,Subsistence Allowances,12,2018,50.00,9959,16/02/2018,KPIN,SARAHS CATERING LIMITED,
Training,4111,Subsistence Allowances,Subsistence Allowances,12,2018,10.00,9959,16/02/2018,KPIN,SARAHS CATERING LIMITED,
Training,4111,Subsistence Allowances,Subsistence Allowances,12,2018,33.75,9959,16/02/2018,KPIN,SARAHS CATERING LIMITED,
Training,4111,Subsistence Allowances,Subsistence Allowances,12,2018,33.75,9959,16/02/2018,KPIN,SARAHS CATERING LIMITED,
Training,4111,Subsistence Allowances,Subsistence Allowances,12,2018,20.00,9959,16/02/2018,KPIN,SARAHS CATERING LIMITED,
Training,4111,Subsistence Allowances,Subsistence Allowances,12,2018,60.75,9960,23/02/2018,KPIN,SARAHS CATERING LIMITED,
Training,4111,Subsistence Allowances,Subsistence Allowances,12,2018,20.00,9960,23/02/2018,KPIN,SARAHS CATERING LIMITED,
Training,4111,Subsistence Allowances,Subsistence Allowances,12,2018,60.75,9960,23/02/2018,KPIN,SARAHS CATERING LIMITED,
Training,4111,Subsistence Allowances,Subsistence Allowances,12,2018,54.00,9960,23/02/2018,KPIN,SARAHS CATERING LIMITED,
Training,4111,Subsistence Allowances,Subsistence Allowances,12,2018,60.75,9960,23/02/2018,KPIN,SARAHS CATERING LIMITED,
Training,4111,Subsistence Allowances,Subsistence Allowances,12,2018,60.75,9960,23/02/2018,KPIN,SARAHS CATERING LIMITED,
Training,4111,Subsistence Allowances,Subsistence Allowances,12,2018,6.00,9960,23/02/2018,KPIN,SARAHS CATERING LIMITED,
Training,4111,Subsistence Allowances,Subsistence Allowances,12,2018,60.75,9960,23/02/2018,KPIN,SARAHS CATERING LIMITED,
Training,4111,Subsistence Allowances,Subsistence Allowances,12,2018,30.00,9960,23/02/2018,KPIN,SARAHS CATERING LIMITED,
Training,4111,Subsistence Allowances,Subsistence Allowances,12,2018,20.00,9960,23/02/2018,KPIN,SARAHS CATERING LIMITED,
Training,4111,Subsistence Allowances,Subsistence Allowances,12,2018,33.75,9960,23/02/2018,KPIN,SARAHS CATERING LIMITED,
Training,4111,Subsistence Allowances,Subsistence Allowances,12,2018,33.75,9961,02/03/2018,KPIN,SARAHS CATERING LIMITED,
Training,4111,Subsistence Allowances,Subsistence Allowances,12,2018,33.75,9961,02/03/2018,KPIN,SARAHS CATERING LIMITED,
Training,4111,Subsistence Allowances,Subsistence Allowances,12,2018,54.00,9961,02/03/2018,KPIN,SARAHS CATERING LIMITED,
Training,4111,Subsistence Allowances,Subsistence Allowances,12,2018,47.25,9961,02/03/2018,KPIN,SARAHS CATERING LIMITED,
Training,4111,Subsistence Allowances,Subsistence Allowances,12,2018,60.75,9961,02/03/2018,KPIN,SARAHS CATERING LIMITED,
Training,4111,Subsistence Allowances,Subsistence Allowances,12,2018,33.75,9961,02/03/2018,KPIN,SARAHS CATERING LIMITED,
Training,4111,Subsistence Allowances,Subsistence Allowances,12,2018,33.75,9961,02/03/2018,KPIN,SARAHS CATERING LIMITED,
Training,4111,Subsistence Allowances,Subsistence Allowances,12,2018,54.00,9961,02/03/2018,KPIN,SARAHS CATERING LIMITED,
Training,4111,Subsistence Allowances,Subsistence Allowances,12,2018,33.75,9961,02/03/2018,KPIN,SARAHS CATERING LIMITED,
Training,4111,Subsistence Allowances,Subsistence Allowances,12,2018,100.00,9961,02/03/2018,KPIN,SARAHS CATERING LIMITED,
Service Leadership Team,2903,Consultancy Fees,Consultancy engagement fee (Fe,12,2018,1000.00,9962,15/02/2018,KPIN,WESTMINSTER TRAINING LTD,
Property Services,0180,Casual and Temporary Staff,Casual and Temporary Staff,12,2018,26.28,9963,05/03/2018,KPIN,HAYS CONSTRUCTION & PROPERTY,
ICT,2040,IT Maintenance and Contracts,Cover to call out at Brentwood,12,2018,62.50,9964,28/02/2018,KPIN,MERVAD ELECTRICAL LIMITED,
Property Services,1499,Furniture and Fittings,Signage to put on the wall at ,12,2018,121.00,9965,28/02/2018,KPIN,NORTH ESSEX SIGNS LTD,
Property Services,1040,Planned Works,Pumps service - Jan,12,2018,440.41,9966,27/02/2018,KPIN,T-T PUMPS LIMITED,
Community Safety,4021,Home Safety,12492 Screw driver bit set 32 ,12,2018,74.93,9967,23/02/2018,KPIN,SCREWFIX DIRECT LTD,
Property Services,1499,Furniture and Fittings,6875H Double barrel foot pump,12,2018,5.83,9967,23/02/2018,KPIN,SCREWFIX DIRECT LTD,
Purchasing & Supply,2012,Office/Admin Equipment (incl copiers),96870 Bungee cords 600 x 12mm ,12,2018,5.83,9967,23/02/2018,KPIN,SCREWFIX DIRECT LTD,
Training,0715,In House Operational Training,In House Operational Training,12,2018,5.00,9968,04/03/2018,KPIN,NUCO TRAINING LTD,
Property Services,0180,Casual and Temporary Staff,Casual and Temporary Staff,12,2018,10.98,9969,05/03/2018,KPIN,HAYS CONSTRUCTION & PROPERTY,
Property Services,0180,Casual and Temporary Staff,Casual and Temporary Staff,12,2018,29.25,9969,05/03/2018,KPIN,HAYS CONSTRUCTION & PROPERTY,
Property Services,0180,Casual and Temporary Staff,Casual and Temporary Staff,12,2018,178.50,9970,05/03/2018,KPIN,HAYS CONSTRUCTION & PROPERTY,
Property Services,0180,Casual and Temporary Staff,Casual and Temporary Staff,12,2018,25.20,9970,05/03/2018,KPIN,HAYS CONSTRUCTION & PROPERTY,
Property Services,0180,Casual and Temporary Staff,Casual and Temporary Staff,12,2018,32.40,9971,05/03/2018,KPIN,HAYS CONSTRUCTION & PROPERTY,
ICT,4005,IT Consumables,Disposal with Secure30 Ricoh ,12,2018,390.00,9972,27/02/2018,KPIN,RICOH UK LIMITED (Northampton),
Property Services,1050,Building Maintenance,Pipework and drainage to dishw,12,2018,305.22,9973,06/03/2018,KPIN,A T B PLUMBING & BUILDING SERVICES LTD,
Property Services,1050,Building Maintenance,Cold tap not working to sink i,12,2018,118.99,9974,06/03/2018,KPIN,A T B PLUMBING & BUILDING SERVICES LTD,
Operations,2401,Laundry,Laundry - 05.02.18 to 04.03.18,12,2018,1113.29,9975,04/03/2018,KPIN,PHS BESAFE,
Property Services,1050,Building Maintenance,Pipework to washdown hose leak,12,2018,84.68,9976,06/03/2018,KPIN,A T B PLUMBING & BUILDING SERVICES LTD,
Property Services,1050,Building Maintenance,Repair defective drainage gull,12,2018,244.43,9977,06/03/2018,KPIN,A T B PLUMBING & BUILDING SERVICES LTD,
Property Services,1050,Building Maintenance,Shower blocked and affecting W,12,2018,122.13,9978,06/03/2018,KPIN,A T B PLUMBING & BUILDING SERVICES LTD,
Property Services,1050,Building Maintenance,WC seat broken.,12,2018,141.83,9979,06/03/2018,KPIN,A T B PLUMBING & BUILDING SERVICES LTD,
Property Services,1050,Building Maintenance,Make good following renewal of,12,2018,316.85,9980,06/03/2018,KPIN,A T B PLUMBING & BUILDING SERVICES LTD,
Property Services,1050,Building Maintenance,Wall damaged in high winds. Br,12,2018,2277.57,9981,06/03/2018,KPIN,A T B PLUMBING & BUILDING SERVICES LTD,
Property Services,1050,Building Maintenance,Replace defective sealed unit ,12,2018,383.50,9982,06/03/2018,KPIN,A T B PLUMBING & BUILDING SERVICES LTD,
Property Services,1050,Building Maintenance,Replace/repair defective lock ,12,2018,100.00,9982,06/03/2018,KPIN,A T B PLUMBING & BUILDING SERVICES LTD,
Finance & Pay,4203,Risk Protection - Third Party Costs,191533013020 ,12,2018,1380.00,9983,06/03/2018,KPIN,ZURICH MUNICIPAL,
Operations,2401,Laundry,Cleaning of RTC surcoats,12,2018,201.45,9984,26/02/2018,KPIN,BRISTOL UNIFORMS LTD RE BRISTOL CARE,
Operations,2401,Laundry,Cleaning of Large RTC Blanket,12,2018,47.40,9984,26/02/2018,KPIN,BRISTOL UNIFORMS LTD RE BRISTOL CARE,
Operations,2401,Laundry,Cleaning of Air Bag,12,2018,11.85,9984,26/02/2018,KPIN,BRISTOL UNIFORMS LTD RE BRISTOL CARE,
Not Analysed,B217,Payments in Advance,290518 Tact Emerg Management,12,2018,2750.00,9985,28/02/2018,KPIN,SERCO LIMITED,
Operations - USAR,2030,Operational Equipment Support,CORE-RMGA-3100 Ronhill Men's T,12,2018,150.00,9986,27/02/2018,KPIN,GO OUTDOORS LIMITED,
Operations - USAR,2030,Operational Equipment Support,CORE-RMGA-3100 Ronhill Men's T,12,2018,25.00,9986,27/02/2018,KPIN,GO OUTDOORS LIMITED,
Operations - USAR,2030,Operational Equipment Support,CORE-RMGA-3100 Ronhill Men's T,12,2018,25.00,9986,27/02/2018,KPIN,GO OUTDOORS LIMITED,
Operations - USAR,2030,Operational Equipment Support,Renewal of discount card,12,2018,4.17,9986,27/02/2018,KPIN,GO OUTDOORS LIMITED,
Operations - USAR,2030,Operational Equipment Support,Freight Misc,12,2018,8.33,9986,27/02/2018,KPIN,GO OUTDOORS LIMITED,
Operations,2026,First Aid,PRM-BSM Medium First Aid Kit,12,2018,26.94,9987,05/03/2018,KPIN,AERO HEALTHCARE LTD,
Operations,2026,First Aid,Freight Misc,12,2018,9.90,9987,05/03/2018,KPIN,AERO HEALTHCARE LTD,
Workplace Safety,2903,Consultancy Fees,Consultancy Services Feb 18,12,2018,1800.00,9988,05/03/2018,KPIN,INDEPENDENT FIRE RISK ASSESSMENTS LTD,
Workplace Safety,2903,Consultancy Fees,Expenses Feb 18,12,2018,180.00,9988,05/03/2018,KPIN,INDEPENDENT FIRE RISK ASSESSMENTS LTD,
Training,0715,In House Operational Training,In House Operational Training,12,2018,100.00,9989,22/10/2017,KPIN,ESSEX MARINE TRAINING LTD,
Technical Services,2032,Operational Equip-Initial Purchase,"Sled, Water Rescue RS3",12,2018,1100.00,9990,27/02/2018,KPIN,M F C INTERNATIONAL LTD,
Technical Services,2032,Operational Equip-Initial Purchase,Freight Misc,12,2018,25.00,9990,27/02/2018,KPIN,M F C INTERNATIONAL LTD,
Property Services,2903,Consultancy Fees,1718/415 - Station Refurbishem,12,2018,4900.50,9991,28/02/2018,KPIN,INGLETON WOOD LLP,
Property Services,2903,Consultancy Fees,1718/408 Refurbishment of trai,12,2018,846.45,9992,28/02/2018,KPIN,INGLETON WOOD LLP,
Property Services,2903,Consultancy Fees,1718/425 Clacton fire Station ,12,2018,1017.05,9993,28/02/2018,KPIN,INGLETON WOOD LLP,
Property Services,2903,Consultancy Fees,CANCELLED BY KPIN10389,12,2018,388.00,9994,28/02/2018,KPIN,INGLETON WOOD LLP,
Stores,B205,Stocks & WIP (Purchasing & Supply Stores),Jug measuring glass 1 litre  P,12,2018,21.84,9995,05/03/2018,KPIN,NISBETS PLC,
Stores,B205,Stocks & WIP (Purchasing & Supply Stores),Chopping Board Polyeth Ye,12,2018,4.79,9995,05/03/2018,KPIN,NISBETS PLC,
Stores,B205,Stocks & WIP (Purchasing & Supply Stores),Pan paella 2 handle non stick ,12,2018,30.39,9995,05/03/2018,KPIN,NISBETS PLC,
Stores,B205,Stocks & WIP (Purchasing & Supply Stores),CB466 Mug White 10oz Pk 36,12,2018,50.40,9995,05/03/2018,KPIN,NISBETS PLC,
Stores,B205,Stocks & WIP (Purchasing & Supply Stores),Pan frying 240mm ,12,2018,27.18,9995,05/03/2018,KPIN,NISBETS PLC,
Stores,B205,Stocks & WIP (Purchasing & Supply Stores),Basins:Pudding Polyprop 3Pt Pk,12,2018,33.59,9995,05/03/2018,KPIN,NISBETS PLC,
Stores,B205,Stocks & WIP (Purchasing & Supply Stores),Chopping Board Polyeth Wh,12,2018,4.79,9995,05/03/2018,KPIN,NISBETS PLC,
Stores,B205,Stocks & WIP (Purchasing & Supply Stores),Chopping Board Polyeth Br,12,2018,4.79,9995,05/03/2018,KPIN,NISBETS PLC,
Stores,B205,Stocks & WIP (Purchasing & Supply Stores),Chopping Board Polyeth Gr,12,2018,9.58,9995,05/03/2018,KPIN,NISBETS PLC,
Stores,B205,Stocks & WIP (Purchasing & Supply Stores),Chopping Board Polyeth Re,12,2018,4.79,9995,05/03/2018,KPIN,NISBETS PLC,
ICT,4005,IT Consumables,CREDIT KPIN 1034,12,2018,-598.00,9996,28/02/2018,KPIN,RICOH UK LIMITED (Northampton),
Property Services,1499,Furniture and Fittings,Relocate lockers in shower roo,12,2018,420.00,9997,28/02/2018,KPIN,PRIMARY OFFICE FURNITURE SERVICES LTD,
Human Resources,4518,Other Local Authority Services,Service Level Agreement Mar 18,12,2018,8509.54,9998,06/03/2018,KPIN,ESSEX PENSION FUND,
Training,0710,Organisational Development,Organisational Development,12,2018,2698.00,9999,28/02/2018,KPIN,ELIESHA TRAINING LIMITED,
Training,0710,Organisational Development,Organisational Development,12,2018,1486.00,9999,28/02/2018,KPIN,ELIESHA TRAINING LIMITED,
Training,0710,Organisational Development,Organisational Development,12,2018,1486.00,9999,28/02/2018,KPIN,ELIESHA TRAINING LIMITED,
Training,0710,Organisational Development,Organisational Development,12,2018,1090.00,10000,28/02/2018,KPIN,ELIESHA TRAINING LIMITED,
Training,0710,Organisational Development,Organisational Development,12,2018,286.00,10001,28/02/2018,KPIN,ELIESHA TRAINING LIMITED,
ICT,0180,Casual and Temporary Staff,Casual and Temporary Staff,12,2018,1480.00,10002,02/03/2018,KPIN,THE PEOPLE NETWORK,
ICT,0180,Casual and Temporary Staff,Casual and Temporary Staff,12,2018,2000.00,10003,02/03/2018,KPIN,THE PEOPLE NETWORK,
ICT,0180,Casual and Temporary Staff,Casual and Temporary Staff,12,2018,2500.00,10004,02/03/2018,KPIN,THE PEOPLE NETWORK,
ICT,0180,Casual and Temporary Staff,Casual and Temporary Staff,12,2018,1050.00,10005,02/03/2018,KPIN,THE PEOPLE NETWORK,
Station Group Management,4015,Community Commanders Funds,A2 Station Plans,12,2018,210.00,10006,06/03/2018,KPIN,BENSONS PRINTING COMPANY LTD,
Station Group Management,4015,Community Commanders Funds,A3 Station Plans,12,2018,144.00,10006,06/03/2018,KPIN,BENSONS PRINTING COMPANY LTD,
Human Resources,0708,Equalities and Community Engagement,Equalities and Community Engagement,12,2018,284.00,10007,06/03/2018,KPIN,BENSONS PRINTING COMPANY LTD,
Catering,2017,Canteen Equipment,Recommended parts,12,2018,119.41,10008,06/03/2018,KPIN,GW COMMERCIAL EQUIPMENT LIMITED,
Catering,2017,Canteen Equipment,Miele dishwasher faults,12,2018,100.00,10008,06/03/2018,KPIN,GW COMMERCIAL EQUIPMENT LIMITED,
Workshops Management,3201,Petrol and Diesel,Petrol and Diesel,12,2018,2211.22,10009,01/03/2018,KPIN,CERTAS ENERGY UK LTD,
Community Safety,4019,Community Safety,Daytona Roadstar GTX Boots - S,12,2018,291.66,10010,05/03/2018,KPIN,Hideout Leather (2001) Ltd,
Community Safety,4019,Community Safety,Daytona Roadstar GTX Boots - S,12,2018,291.66,10010,05/03/2018,KPIN,Hideout Leather (2001) Ltd,
ICT,4005,IT Consumables,2 x CST.1/UV  100mm Cable ties,12,2018,1.86,10011,06/03/2018,KPIN,CO-STAR COMPONENTS,
ICT,4005,IT Consumables,1 x Roll ITG.401 Gorilla Tape ,12,2018,1.71,10011,06/03/2018,KPIN,CO-STAR COMPONENTS,
ICT,4005,IT Consumables,3 x CP100 Truckfone GSM Refill,12,2018,652.50,10011,06/03/2018,KPIN,CO-STAR COMPONENTS,
ICT,4005,IT Consumables,2 x CST.3/UV   200mm Cable tie,12,2018,7.00,10011,06/03/2018,KPIN,CO-STAR COMPONENTS,
ICT,4005,IT Consumables,1 x Can AP.11 Butane Gas Refil,12,2018,1.85,10011,06/03/2018,KPIN,CO-STAR COMPONENTS,
ICT,4005,IT Consumables,1 x bag WT.56 Pre-insulated wi,12,2018,8.90,10011,06/03/2018,KPIN,CO-STAR COMPONENTS,
Workshops Management,3201,Petrol and Diesel,Petrol and Diesel,12,2018,2884.20,10012,02/03/2018,KPIN,CERTAS ENERGY UK LTD,
Human Resources,4016,Recruitment,Recruitment,12,2018,650.00,10013,12/02/2018,KPIN,TD SOFTWARE LTD,
ICT,2510,IT Communications,MONTHLY CHARGES FEB 2018,12,2018,766.01,10014,01/03/2018,KPIN,EE LTD,
Catering,4130,Hospitality & Entertaining,KP MESSCLUB,12,2018,92.33,10016,07/03/2018,KPIN,DIRECT MEATS,
Stores,B205,Stocks & WIP (Purchasing & Supply Stores),Rock Salt white de-icing,12,2018,806.40,10017,02/03/2018,KPIN,ICETHAW,
